Local authority department which incurred the expenditure,Service Division,Cost Centre,Summary of the Purpose of Expenditure,Expense Type,Expense Code,Detailed Expense Type,Date of Transaction,Transaction Number,Beneficiary,Merchant Category Number,Merchant Category,Gross Amount,VAT,Net Amount
Regeneration and Local Services,Business Durham CL0850,030699,Business Growth and Innovation General,Supplies and Services,342033,Computers and Communications,01-Apr-2019,000008429377465,MEMBERSHIP - 1 YEAR,7372,Computer hardware,4.21,0.00,4.21
Regeneration and Local Services,Environmental Services,031200,North Pennines Core,Supplies and Services,348037,Subsistence E348,01-Apr-2019,000008429378643,AUTOGRILL STUTTGART,5812,Subsistence,0.27,0.00,0.27
Regeneration and Local Services,Environmental Services,031200,North Pennines Core,Transport,235057,Public Transport,01-Apr-2019,000008429378647,DB AUTOMATEN,4112,Staff travelling,0.34,0.00,0.34
Regeneration and Local Services,Development and Housing,030554,International Relations 030554,Supplies and Services,348037,Subsistence E348,01-Apr-2019,000008437601211,COSTA COFFEE 43035195,5814,Subsistence,20.65,0.00,20.65
Resources BK0010,Digital and Customer Services,065481,Technical Services 065481,Supplies and Services,342053,Computers and Communications,01-Apr-2019,000008437601239,WWW.JA.NET,8699,Computer software,192.00,0.00,192.00
Resources BK0010,Digital and Customer Services,065303,Design & Print - Design,Supplies and Services,342053,Computers and Communications,01-Apr-2019,000008437601249,REFUELDESCADSOFT,5970,Computer software,594.00,0.00,594.00
Regeneration and Local Services,Development and Housing,030773,CLLD North,Transport,235057,Public Transport,01-Apr-2019,000008437601303,GO NORTH EAST LIMITED,4131,Staff travelling,110.00,0.00,110.00
Regeneration and Local Services,Development and Housing,030773,CLLD North,Transport,235057,Public Transport,01-Apr-2019,000008437601307,RADAR TAXIS RadarTax,4121,Staff travelling,29.90,0.00,29.90
Regeneration and Local Services,Development and Housing,030773,CLLD North,Transport,235057,Public Transport,01-Apr-2019,000008437601309,RADAR TAXIS RadarTax,4121,Staff travelling,32.50,0.00,32.50
Children and Young Peoples Services,Head of Childrens Social Care,085342,9 Cedar Drive Aycliffe,Supplies and Services,324117,Provisions E324,01-Apr-2019,000008437601343,TESCO STORES 2916,5411,Catering costs - provisions,33.10,0.00,33.10
Children and Young Peoples Services,Head of Childrens Social Care,085342,9 Cedar Drive Aycliffe,Supplies and Services,324117,Provisions E324,01-Apr-2019,000008437601347,TESCO STORES 2916,5411,Catering costs - provisions,32.10,0.00,32.10
Children and Young Peoples Services,Head of Childrens Social Care,085342,9 Cedar Drive Aycliffe,Supplies and Services,324117,Provisions E324,01-Apr-2019,000008437601349,TESCO STORES 2916,5411,Catering costs - provisions,19.21,0.00,19.21
Children and Young Peoples Services,Head of Childrens Social Care,085332,Middlestone Moor CU,Supplies and Services,324117,Provisions E324,01-Apr-2019,000008437601359,ALDI 74 774,5411,Catering costs - provisions,11.82,0.00,11.82
Regeneration and Local Services,Business Durham CL0850,030699,Business Growth and Innovation General,Supplies and Services,304999,Equipment and Materials,01-Apr-2019,000008437601361,LINKEDIN-371 7688896,5968,Misc equipment tools and materials,5.52,0.92,4.60
Regeneration and Local Services,Environmental Services,010367,C&G - South Grounds Maintenance,Supplies and Services,304221,Equipment and Materials,01-Apr-2019,000008437601431,SCREWFIX PETERLEE,5211,Direct materials,181.02,30.17,150.85
Regeneration and Local Services,Corporate Property and Land,021242,Catering - County Hall,Supplies and Services,324117,Provisions E324,01-Apr-2019,000008437601507,JR HOLLAND FOODSERVICE,5499,Catering costs - provisions,79.46,0.00,79.46
Regeneration and Local Services,Corporate Property and Land,021242,Catering - County Hall,Supplies and Services,324117,Provisions E324,01-Apr-2019,000008437601513,WWW.ADELIEFOODS.CO.UK,5499,Catering costs - provisions,212.20,0.00,212.20
Regeneration and Local Services,Corporate Property and Land,021242,Catering - County Hall,Supplies and Services,324117,Provisions E324,01-Apr-2019,000008437601519,WWW.ADELIEFOODS.CO.UK,5499,Catering costs - provisions,31.75,0.00,31.75
Regeneration and Local Services,Corporate Property and Land,021242,Catering - County Hall,Supplies and Services,324117,Provisions E324,01-Apr-2019,000008437601525,WWW.ADELIEFOODS.CO.UK,5499,Catering costs - provisions,45.59,0.00,45.59
Regeneration and Local Services,Corporate Property and Land,021242,Catering - County Hall,Supplies and Services,324117,Provisions E324,01-Apr-2019,000008437601531,WWW.ADELIEFOODS.CO.UK,5499,Catering costs - provisions,41.52,0.00,41.52
Regeneration and Local Services,Corporate Property and Land,021242,Catering - County Hall,Supplies and Services,324117,Provisions E324,01-Apr-2019,000008437601537,FREEMAN CATERING BUTCH,5422,Catering costs - provisions,299.28,0.00,299.28
Children and Young Peoples Services,Head of Early Help Inclusion & Vulnerable Children.,088106,Ferryhill & N.Aycliffe 0-19 Targeted Family Support,Supplies and Services,384999,Miscellaneous Expenses,01-Apr-2019,000008437601589,ARGOS RETAIL GROUP,5310,Other expenses,24.00,0.00,24.00
Children and Young Peoples Services,Head of Early Help Inclusion & Vulnerable Children.,088106,Ferryhill & N.Aycliffe 0-19 Targeted Family Support,Supplies and Services,384999,Miscellaneous Expenses,01-Apr-2019,000008437601593,B & Q 1162,5200,Other expenses,-56.00,0.00,-56.00
Regeneration and Local Services,Culture Sport and Tourism,054812,Gala Theatre - Catering etc,Supplies and Services,324117,Provisions E324,01-Apr-2019,000008437601639,FREEMAN CATERING BUTCH,5422,Catering costs - provisions,16.20,0.00,16.20
Children and Young Peoples Services,Head of Childrens Social Care,085362,LAC & Permanence Team 2,Supplies and Services,384999,Miscellaneous Expenses,01-Apr-2019,000008437601697,HM PASSPORT OFFICE,9399,Other expenses,49.00,0.00,49.00
Children and Young Peoples Services,Head of Childrens Social Care,085362,LAC & Permanence Team 2,Supplies and Services,384999,Miscellaneous Expenses,01-Apr-2019,000008437601701,HM PASSPORT OFFICE,9399,Other expenses,49.00,0.00,49.00
Children and Young Peoples Services,Head of Childrens Social Care,085362,LAC & Permanence Team 2,Supplies and Services,384999,Miscellaneous Expenses,01-Apr-2019,000008437601705,HM PASSPORT OFFICE,9399,Other expenses,49.00,0.00,49.00
Children and Young Peoples Services,Head of Childrens Social Care,085362,LAC & Permanence Team 2,Supplies and Services,384999,Miscellaneous Expenses,01-Apr-2019,000008437601713,GEN REGISTER OFFICE,9399,Other expenses,42.00,0.00,42.00
Children and Young Peoples Services,Head of Childrens Social Care,085333,Coxhoe Satelite Home,Supplies and Services,324117,Provisions E324,01-Apr-2019,000008437601741,CO-OP GROUP 310016,5411,Catering costs - provisions,5.70,0.00,5.70
Children and Young Peoples Services,Head of Childrens Social Care,085334,West Rainton Satelite Home,Supplies and Services,324117,Provisions E324,01-Apr-2019,000008437601799,TESCO STORES 2371,5411,Catering costs - provisions,110.11,0.00,110.11
Children and Young Peoples Services,Head of Childrens Social Care,085334,West Rainton Satelite Home,Supplies and Services,312011,Newspapers books and periodicals E312,01-Apr-2019,000008437601803,HOME BARGAINS,5251,Books-school library,32.55,0.00,32.55
Children and Young Peoples Services,Head of Childrens Social Care,085334,West Rainton Satelite Home,Supplies and Services,312011,Newspapers books and periodicals E312,01-Apr-2019,000008437601811,HOME BARGAINS,5251,Books-school library,14.95,0.00,14.95
Children and Young Peoples Services,Head of Education and Skills,071732,Dean Bank Childcare,Supplies and Services,324117,Provisions E324,01-Apr-2019,000008437601911,TESCO STORES 2916,5411,Catering costs - provisions,6.60,0.00,6.60
Children and Young Peoples Services,Head of Education and Skills,071732,Dean Bank Childcare,Supplies and Services,324117,Provisions E324,01-Apr-2019,000008437601919,ASDA GROCERIES ONLINE,5411,Catering costs - provisions,65.02,0.00,65.02
Regeneration and Local Services,Culture Sport and Tourism,054813,Gala Theatre - Technical,Supplies and Services,304403,Equipment and Materials,01-Apr-2019,000008437601933,LYCO GROUP LTD,5065,Other consumables,179.94,0.00,179.94
Children and Young Peoples Services,Head of Childrens Social Care,085334,West Rainton Satelite Home,Supplies and Services,308011,Furniture,01-Apr-2019,000008437601977,OAKFURNITURELAND.CO.UK,5712,Furniture repair and replacement,999.00,166.50,832.50
Children and Young Peoples Services,Head of Education and Skills,071903,EYDCP-Sustainability EDS,Supplies and Services,312011,Newspapers books and periodicals E312,01-Apr-2019,000008437602137,AMZN MKTP UK MZ65533A4,5942,Books-school library,31.00,0.00,31.00
Adult and Health Services,Head of Adults,055202,Support and Recovery,Supplies and Services,312011,Newspapers books and periodicals E312,01-Apr-2019,000008437602169,AMZN Mktp UK MZ3I803V4,5942,Books-school library,6.98,0.00,6.98
Regeneration and Local Services,Environmental Services,010301,C&G - North Grounds Maintenance,Supplies and Services,328041,Clothing uniforms and laundry E328,01-Apr-2019,000008437602223,WWW.DICKIESSTORE.CO.UK,5691,Clothing uniforms and laundry,56.00,0.00,56.00
Regeneration and Local Services,Development and Housing,030771,Durham Advance Flexible Fund,Supplies and Services,324117,Provisions E324,01-Apr-2019,000008437602235,COSTA COFFEE SEAHAM,5812,Catering costs - provisions,5.30,0.88,4.42
Regeneration and Local Services,Development and Housing,030771,Durham Advance Flexible Fund,Supplies and Services,384700,Miscellaneous Expenses,01-Apr-2019,000008437602243,GO NORTH EAST LIMITED,4131,Miscellaneous grants,20.00,0.00,20.00
Regeneration and Local Services,Development and Housing,031500,Housing Solutions - Core Team,Supplies and Services,364320,Grants to Voluntary Organisations,01-Apr-2019,000008437602307,HOTEL 52,7011,Accommodation assistance,93.98,0.00,93.98
Children and Young Peoples Services,Head of Early Help Inclusion & Vulnerable Children.,071445,Chester le Street One Point Hub,Supplies and Services,328041,Clothing uniforms and laundry E328,01-Apr-2019,000008437602367,WWW.THEWORKS.CO.UK,5310,Clothing uniforms and laundry,29.50,0.00,29.50
Children and Young Peoples Services,Head of Early Help Inclusion & Vulnerable Children.,085952,Secure Education,Supplies and Services,324117,Provisions E324,01-Apr-2019,000008437602389,TESCO STORES 6329,5411,Catering costs - provisions,113.30,0.00,113.30
Regeneration and Local Services,Environmental Services,011060,C&G - Hardwick Park Catering,Supplies and Services,324117,Provisions E324,01-Apr-2019,000008437602491,JR HOLLAND FOODSERVICE,5499,Catering costs - provisions,121.99,0.00,121.99
Regeneration and Local Services,Environmental Services,011060,C&G - Hardwick Park Catering,Supplies and Services,324117,Provisions E324,01-Apr-2019,000008437602497,JR HOLLAND FOODSERVICE,5499,Catering costs - provisions,69.27,0.00,69.27
Regeneration and Local Services,Environmental Services,011060,C&G - Hardwick Park Catering,Supplies and Services,324117,Provisions E324,01-Apr-2019,000008437602501,FREEMAN CATERING BUTCH,5422,Catering costs - provisions,30.16,0.00,30.16
Regeneration and Local Services,Environmental Services,011060,C&G - Hardwick Park Catering,Supplies and Services,324117,Provisions E324,01-Apr-2019,000008437602507,FREEMAN CATERING BUTCH,5422,Catering costs - provisions,40.24,0.00,40.24
Regeneration and Local Services,Culture Sport and Tourism,054815,Gala Theatre Stage School,Supplies and Services,312011,Newspapers books and periodicals E312,01-Apr-2019,000008437602543,Amazon.co.uk MZ1A05J24,5969,Books-school library,11.16,0.00,11.16
Regeneration and Local Services,Culture Sport and Tourism,054815,Gala Theatre Stage School,Supplies and Services,304403,Equipment and Materials,01-Apr-2019,000008437602549,AMZNMktplace,5999,Other consumables,13.00,0.00,13.00
Regeneration and Local Services,Corporate Property and Land,021234,Catering - Locomotion,Supplies and Services,324117,Provisions E324,01-Apr-2019,000008437602581,JR HOLLAND FOODSERVICE,5499,Catering costs - provisions,10.50,0.00,10.50
Regeneration and Local Services,Corporate Property and Land,021234,Catering - Locomotion,Supplies and Services,324117,Provisions E324,01-Apr-2019,000008437602587,JR HOLLAND FOODSERVICE,5499,Catering costs - provisions,77.37,0.00,77.37
Regeneration and Local Services,Corporate Property and Land,021234,Catering - Locomotion,Supplies and Services,324117,Provisions E324,01-Apr-2019,000008437602593,WWW.ADELIEFOODS.CO.UK,5499,Catering costs - provisions,32.80,0.00,32.80
Regeneration and Local Services,Corporate Property and Land,021234,Catering - Locomotion,Supplies and Services,324117,Provisions E324,01-Apr-2019,000008437602597,WWW.ADELIEFOODS.CO.UK,5499,Catering costs - provisions,71.66,0.00,71.66
Regeneration and Local Services,Corporate Property and Land,021234,Catering - Locomotion,Supplies and Services,324117,Provisions E324,01-Apr-2019,000008437602605,WWW.ADELIEFOODS.CO.UK,5499,Catering costs - provisions,98.40,0.00,98.40
Regeneration and Local Services,Corporate Property and Land,021234,Catering - Locomotion,Supplies and Services,324117,Provisions E324,01-Apr-2019,000008437602615,WWW.ADELIEFOODS.CO.UK,5499,Catering costs - provisions,40.27,0.00,40.27
Regeneration and Local Services,Corporate Property and Land,021234,Catering - Locomotion,Supplies and Services,324117,Provisions E324,01-Apr-2019,000008437602627,FREEMAN CATERING BUTCH,5422,Catering costs - provisions,87.23,0.00,87.23
Regeneration and Local Services,Corporate Property and Land,010525,Catering - Green Lane,Supplies and Services,324117,Provisions E324,01-Apr-2019,000008437602759,WWW.ADELIEFOODS.CO.UK,5499,Catering costs - provisions,31.04,0.00,31.04
Regeneration and Local Services,Corporate Property and Land,010525,Catering - Green Lane,Supplies and Services,324117,Provisions E324,01-Apr-2019,000008437602771,WWW.ADELIEFOODS.CO.UK,5499,Catering costs - provisions,31.04,0.00,31.04
Regeneration and Local Services,Development and Housing,030771,Durham Advance Flexible Fund,Transport,235057,Public Transport,01-Apr-2019,000008437602813,AUCKLAND CASTLE,7523,Staff travelling,0.60,0.00,0.60
Children and Young Peoples Services,Head of Childrens Social Care,085551,Short Break Services-Park Hse Sher,Supplies and Services,308011,Furniture,01-Apr-2019,000008437602923,BAILEY BLINDS,5714,Furniture repair and replacement,39.00,6.50,32.50
Children and Young Peoples Services,Head of Early Help Inclusion & Vulnerable Children.,071443,Stanley One Point Hub,Supplies and Services,312011,Newspapers books and periodicals E312,01-Apr-2019,000008437603017,Amazon.co.uk MZ6YA8JP4,5969,Books-school library,16.99,0.00,16.99
Children and Young Peoples Services,Head of Early Help Inclusion & Vulnerable Children.,071443,Stanley One Point Hub,Supplies and Services,312011,Newspapers books and periodicals E312,01-Apr-2019,000008437603031,Amazon.co.uk MZ9S593J4,5969,Books-school library,27.70,0.00,27.70
Resources BK0010,Resources Management CK0450,069000,Resources Management 069000,Supplies and Services,324117,Provisions E324,01-Apr-2019,000008437603309,CO-OP GROUP 310016,5411,Catering costs - provisions,6.00,0.00,6.00
Regeneration and Local Services,Environmental Services,010367,C&G - South Grounds Maintenance,Supplies and Services,324117,Provisions E324,01-Apr-2019,000008437603359,J M RAINE,5399,Catering costs - provisions,24.12,4.02,20.10
Children and Young Peoples Services,Head of Childrens Social Care,085342,9 Cedar Drive Aycliffe,Supplies and Services,324117,Provisions E324,01-Apr-2019,000008437603403,TESCO STORES 2916,5411,Catering costs - provisions,21.93,0.00,21.93
Children and Young Peoples Services,Head of Childrens Social Care,085342,9 Cedar Drive Aycliffe,Supplies and Services,324117,Provisions E324,01-Apr-2019,000008437603407,MARTIN MCCOLL,5499,Catering costs - provisions,10.68,0.00,10.68
Children and Young Peoples Services,Head of Early Help Inclusion & Vulnerable Children.,071616,Seaham Childrens Centre,Supplies and Services,308011,Furniture,01-Apr-2019,000008437603429,WWW.IKEA.COM,5712,Furniture repair and replacement,48.95,0.00,48.95
Children and Young Peoples Services,Head of Childrens Social Care,085537,Full Circle,Supplies and Services,304403,Equipment and Materials,01-Apr-2019,000008437603483,AMZNMktplace,5999,Other consumables,9.99,0.00,9.99
Children and Young Peoples Services,Head of Childrens Social Care,085352,Tow Law CU,Supplies and Services,304403,Equipment and Materials,01-Apr-2019,000008437603495,AMZNMktplace,5999,Other consumables,18.46,0.00,18.46
Children and Young Peoples Services,Head of Childrens Social Care,085352,Tow Law CU,Supplies and Services,304403,Equipment and Materials,01-Apr-2019,000008437603503,AMZNMktplace,5999,Other consumables,33.00,0.00,33.00
Regeneration and Local Services,Corporate Property and Land,030691,Catering - Durham Dales Centre,Supplies and Services,324117,Provisions E324,01-Apr-2019,000008437603525,FREEMAN CATERING BUTCH,5422,Catering costs - provisions,155.09,0.00,155.09
Regeneration and Local Services,Corporate Property and Land,030691,Catering - Durham Dales Centre,Supplies and Services,324117,Provisions E324,01-Apr-2019,000008437603531,FREEMAN CATERING BUTCH,5422,Catering costs - provisions,8.50,0.00,8.50
Regeneration and Local Services,Corporate Property and Land,030691,Catering - Durham Dales Centre,Supplies and Services,324117,Provisions E324,01-Apr-2019,000008437603537,FREEMAN CATERING BUTCH,5422,Catering costs - provisions,66.06,0.00,66.06
Adult and Health Services,Head of Adults,055643,Hawthorn House LD Respite Unit,Supplies and Services,324117,Provisions E324,01-Apr-2019,000008437603647,JR HOLLAND FOODSERVICE,5499,Catering costs - provisions,26.51,0.00,26.51
Adult and Health Services,Head of Adults,055643,Hawthorn House LD Respite Unit,Supplies and Services,324117,Provisions E324,01-Apr-2019,000008437603653,JR HOLLAND FOODSERVICE,5499,Catering costs - provisions,14.00,0.00,14.00
Adult and Health Services,Head of Adults,055643,Hawthorn House LD Respite Unit,Supplies and Services,324117,Provisions E324,01-Apr-2019,000008437603659,FREEMAN CATERING BUTCH,5422,Catering costs - provisions,110.07,0.00,110.07
Children and Young Peoples Services,Head of Early Help Inclusion & Vulnerable Children.,085957,Secure Management,Supplies and Services,384999,Miscellaneous Expenses,01-Apr-2019,000008437603847,PAYPAL SAFE SOUND,8398,Other expenses,96.00,0.00,96.00
Children and Young Peoples Services,Head of Early Help Inclusion & Vulnerable Children.,085961,Themed Week Activity,Supplies and Services,304403,Equipment and Materials,01-Apr-2019,000008437603851,AMZNMktplace,5999,Other consumables,5.99,0.00,5.99
Regeneration and Local Services,Environmental Services,026591,C&G - Hardwick Park,Supplies and Services,332047,Printing Stationery and Gen Off Exps,01-Apr-2019,000008437603925,AMZNMktplace,5999,Stationery,21.00,3.50,17.50
Regeneration and Local Services,Environmental Services,026591,C&G - Hardwick Park,Supplies and Services,304245,Equipment and Materials,01-Apr-2019,000008437603929,LINERS BAGS & SACK,5085,Materials,61.48,0.00,61.48
Regeneration and Local Services,Environmental Services,026591,C&G - Hardwick Park,Supplies and Services,332047,Printing Stationery and Gen Off Exps,01-Apr-2019,000008437603933,WWW LITTLECRAFTYBUGS C,5970,Stationery,39.95,0.00,39.95
Regeneration and Local Services,Corporate Property and Land,021324,Catering - Meadowfield,Supplies and Services,324117,Provisions E324,01-Apr-2019,000008437603977,FREEMAN CATERING BUTCH,5422,Catering costs - provisions,6.65,0.00,6.65
Regeneration and Local Services,Corporate Property and Land,021324,Catering - Meadowfield,Supplies and Services,324117,Provisions E324,01-Apr-2019,000008437603981,FREEMAN CATERING BUTCH,5422,Catering costs - provisions,59.90,0.00,59.90
Regeneration and Local Services,Corporate Property and Land,021324,Catering - Meadowfield,Supplies and Services,324117,Provisions E324,01-Apr-2019,000008437603987,FREEMAN CATERING BUTCH,5422,Catering costs - provisions,66.54,0.00,66.54
Children and Young Peoples Services,Head of Early Help Inclusion & Vulnerable Children.,085801,CDYOS - Support,Supplies and Services,328041,Clothing uniforms and laundry E328,01-Apr-2019,000008437604081,WWW.THEWORKS.CO.UK,5310,Clothing uniforms and laundry,3.00,0.00,3.00
Children and Young Peoples Services,Head of Childrens Social Care,085332,Middlestone Moor CU,Supplies and Services,324093,Provisions E324,01-Apr-2019,000008437604313,PARENTPAY E-COM R,8220,Meals-School Meals Service,40.00,0.00,40.00
Regeneration and Local Services,Culture Sport and Tourism,011263,Louisa Centre 011263,Supplies and Services,304259,Equipment and Materials,01-Apr-2019,000008437604357,DECATHLON,5941,Equipment-purchase and rental,89.85,0.00,89.85
Adult and Health Services,Head of Adults,055306,Spennymoor Pathways,Supplies and Services,304403,Equipment and Materials,01-Apr-2019,000008437604661,HOME BARGAINS SPENNYMO,5251,Other consumables,4.64,0.00,4.64
Adult and Health Services,Head of Adults,055306,Spennymoor Pathways,Supplies and Services,324117,Provisions E324,01-Apr-2019,000008437604665,ASDA SUPERSTORE 4987,5411,Catering costs - provisions,9.21,0.00,9.21
Regeneration and Local Services,Corporate Property and Land,021235,Catering - Wharton Park,Supplies and Services,324117,Provisions E324,01-Apr-2019,000008437604719,JR HOLLAND FOODSERVICE,5499,Catering costs - provisions,34.51,0.00,34.51
Regeneration and Local Services,Culture Sport and Tourism,054812,Gala Theatre - Catering etc,Supplies and Services,324117,Provisions E324,01-Apr-2019,000008441770691,BATLEYS PERTH,5300,Catering costs - provisions,29.76,4.96,24.80
Regeneration and Local Services,Culture Sport and Tourism,054812,Gala Theatre - Catering etc,Supplies and Services,324117,Provisions E324,01-Apr-2019,000008441770691 - 1,BATLEYS PERTH,5300,Catering costs - provisions,18.51,,18.51
Regeneration and Local Services,Culture Sport and Tourism,054812,Gala Theatre - Catering etc,Supplies and Services,324117,Provisions E324,01-Apr-2019,000008441770697,BATLEYS PERTH,5300,Catering costs - provisions,46.74,7.79,38.95
Regeneration and Local Services,Culture Sport and Tourism,054812,Gala Theatre - Catering etc,Supplies and Services,324117,Provisions E324,01-Apr-2019,000008441770697 - 1,BATLEYS PERTH,5300,Catering costs - provisions,131.58,,131.58
Regeneration and Local Services,Environmental Services,011060,C&G - Hardwick Park Catering,Supplies and Services,324117,Provisions E324,01-Apr-2019,000008441771137,BATLEYS PERTH,5300,Catering costs - provisions,-4.69,0.00,-4.69
Regeneration and Local Services,Corporate Property and Land,030691,Catering - Durham Dales Centre,Supplies and Services,324117,Provisions E324,01-Apr-2019,000008441771461,BATLEYS PERTH,5300,Catering costs - provisions,96.42,16.07,80.35
Regeneration and Local Services,Corporate Property and Land,030691,Catering - Durham Dales Centre,Supplies and Services,324117,Provisions E324,01-Apr-2019,000008441771461 - 1,BATLEYS PERTH,5300,Catering costs - provisions,177.70,,177.70
Children and Young Peoples Services,Head of Early Help Inclusion & Vulnerable Children.,085957,Secure Management,Supplies and Services,338057,Services,01-Apr-2019,000008441771709,AMZN MKTP UK MZ4AE5JS4,5942,Medical fees 338057,16.98,2.83,14.15
Regeneration and Local Services,Development and Housing,031576,B& B - Temp Accom,Supplies and Services,364320,Grants to Voluntary Organisations,01-Apr-2019,000008441771805,PREMIER INN,3811,Accommodation assistance,84.50,14.08,70.42
Regeneration and Local Services,Corporate Property and Land,021235,Catering - Wharton Park,Supplies and Services,324117,Provisions E324,01-Apr-2019,000008441772047,BATLEYS PERTH,5300,Catering costs - provisions,46.98,7.83,39.15
Regeneration and Local Services,Corporate Property and Land,021235,Catering - Wharton Park,Supplies and Services,324117,Provisions E324,01-Apr-2019,000008441772047 - 1,BATLEYS PERTH,5300,Catering costs - provisions,15.73,,15.73
Children and Young Peoples Services,Head of Education and Skills,071801,Selby Cottage Childcare Centre,Supplies and Services,324117,Provisions E324,02-Apr-2019,000008441770431,TESCO STORES 2278,5411,Catering costs - provisions,20.00,0.00,20.00
Children and Young Peoples Services,Head of Education and Skills,054640,Durham Learning Resources 054640,Supplies and Services,304245,Equipment and Materials,02-Apr-2019,000008441770439,AMZNMktplace,5999,Materials,127.20,0.00,127.20
Children and Young Peoples Services,Head of Education and Skills,054640,Durham Learning Resources 054640,Supplies and Services,304245,Equipment and Materials,02-Apr-2019,000008441770447,AMZNMktplace,5999,Materials,25.90,0.00,25.90
Children and Young Peoples Services,Head of Education and Skills,054640,Durham Learning Resources 054640,Supplies and Services,304245,Equipment and Materials,02-Apr-2019,000008441770451,AMZNMktplace,5999,Materials,7.95,0.00,7.95
Resources BK0010,Corporate Finance & Commercial Services,069810,Health and Safety 069810,Employees,040149,Recruitment Instruction and Training,02-Apr-2019,000008441770453,UNIVERSITY OF NORTHUMB,8220,Training-all costs,44.00,0.00,44.00
Children and Young Peoples Services,Head of Education and Skills,075021,Youth Employment Initiative,Supplies and Services,384999,Miscellaneous Expenses,02-Apr-2019,000008441770489,AMZNMktplace,5999,Other expenses,19.99,3.33,16.66
Children and Young Peoples Services,Head of Education and Skills,075021,Youth Employment Initiative,Supplies and Services,384999,Miscellaneous Expenses,02-Apr-2019,000008441770493,AMZN Mktp UK MZ3XS1TE4,5942,Other expenses,32.97,0.00,32.97
Children and Young Peoples Services,Head of Education and Skills,075021,Youth Employment Initiative,Supplies and Services,384999,Miscellaneous Expenses,02-Apr-2019,000008441770501,AMZN Mktp UK MZ7F07TE4,5942,Other expenses,34.74,0.00,34.74
Children and Young Peoples Services,Head of Education and Skills,075021,Youth Employment Initiative,Supplies and Services,384999,Miscellaneous Expenses,02-Apr-2019,000008441770505,AMZNMktplace,5999,Other expenses,29.97,5.00,24.97
Children and Young Peoples Services,Head of Education and Skills,075021,Youth Employment Initiative,Supplies and Services,384999,Miscellaneous Expenses,02-Apr-2019,000008441770511,AMZNMktplace,5999,Other expenses,39.87,6.65,33.22
Children and Young Peoples Services,Head of Education and Skills,075021,Youth Employment Initiative,Supplies and Services,384999,Miscellaneous Expenses,02-Apr-2019,000008441770515,AMZNMktplace,5999,Other expenses,22.17,0.00,22.17
Adult and Health Services,Head of Adults,055302,Durham Pathways,Supplies and Services,324117,Provisions E324,02-Apr-2019,000008441770531,SAINSBURYS SACAT 0776,5411,Catering costs - provisions,10.70,0.00,10.70
Regeneration and Local Services,Culture Sport and Tourism,030705,Visit County Durham 030705,Supplies and Services,384199,Miscellaneous Expenses,02-Apr-2019,000008441770547,DMXZONE,5734,Other hired and contracted services,52.80,8.80,44.00
Regeneration and Local Services,Culture Sport and Tourism,030708,VCD - Marketing & Information,Supplies and Services,384199,Miscellaneous Expenses,02-Apr-2019,000008441770551,MAILCHIMP MONTHLY,5968,Other hired and contracted services,232.58,38.76,193.82
Children and Young Peoples Services,Head of Childrens Social Care,085621,Families First Aycliffe,Supplies and Services,338045,Services,02-Apr-2019,000008441770559,HARTLEPOOL BC,9399,Legal expenses 338045,23.20,0.00,23.20
Children and Young Peoples Services,Head of Childrens Social Care,085332,Middlestone Moor CU,Supplies and Services,332047,Printing Stationery and Gen Off Exps,02-Apr-2019,000008441770567,TESCO STORES 2916,5411,Stationery,2.50,0.00,2.50
Children and Young Peoples Services,Head of Childrens Social Care,085332,Middlestone Moor CU,Supplies and Services,308011,Furniture,02-Apr-2019,000008441770571,BAILEY BLINDS,5714,Furniture repair and replacement,7.50,0.00,7.50
Children and Young Peoples Services,Head of Childrens Social Care,085332,Middlestone Moor CU,Supplies and Services,324117,Provisions E324,02-Apr-2019,000008441770577,ASDA STORES,5411,Catering costs - provisions,26.44,0.00,26.44
Children and Young Peoples Services,Head of Childrens Social Care,085332,Middlestone Moor CU,Supplies and Services,324117,Provisions E324,02-Apr-2019,000008441770581,TESCO STORES 2371,5411,Catering costs - provisions,69.35,0.00,69.35
Children and Young Peoples Services,Head of Childrens Social Care,085332,Middlestone Moor CU,Supplies and Services,324117,Provisions E324,02-Apr-2019,000008441770585,ALDI 59 774,5411,Catering costs - provisions,2.55,0.00,2.55
Regeneration and Local Services,Business Durham CL0850,030699,Business Growth and Innovation General,Supplies and Services,312011,Newspapers books and periodicals E312,02-Apr-2019,000008441770593,FASTHOSTS INTERNET,4816,Books-school library,59.99,10.00,49.99
Regeneration and Local Services,Business Durham CL0850,030699,Business Growth and Innovation General,Supplies and Services,312011,Newspapers books and periodicals E312,02-Apr-2019,000008441770599,FASTHOSTS INTERNET,4816,Books-school library,66.30,11.05,55.25
Regeneration and Local Services,Development and Housing,030544,Rural Employability - Client Engagement,Transport,230031,Contract Hire,02-Apr-2019,000008441770649,ARRIVA NORTH EAST,4131,Pupils-transport to play fields etc,15.60,0.00,15.60
Regeneration and Local Services,Corporate Property and Land,021242,Catering - County Hall,Supplies and Services,324117,Provisions E324,02-Apr-2019,000008441770661,JR HOLLAND FOODSERVICE,5499,Catering costs - provisions,28.05,0.00,28.05
Regeneration and Local Services,Corporate Property and Land,021242,Catering - County Hall,Supplies and Services,324117,Provisions E324,02-Apr-2019,000008441770667,JR HOLLAND FOODSERVICE,5499,Catering costs - provisions,31.51,0.00,31.51
Regeneration and Local Services,Corporate Property and Land,021242,Catering - County Hall,Supplies and Services,324117,Provisions E324,02-Apr-2019,000008441770673,JR HOLLAND FOODSERVICE,5499,Catering costs - provisions,168.00,0.00,168.00
Regeneration and Local Services,Culture Sport and Tourism,054812,Gala Theatre - Catering etc,Supplies and Services,324117,Provisions E324,02-Apr-2019,000008441770705,JR HOLLAND FOODSERVICE,5499,Catering costs - provisions,29.95,0.00,29.95
Regeneration and Local Services,Corporate Property and Land,021242,Catering - County Hall,Supplies and Services,324117,Provisions E324,02-Apr-2019,000008441770729,W Peat,5422,Catering costs - provisions,66.00,0.00,66.00
Regeneration and Local Services,Development and Housing,030773,CLLD North,Transport,235057,Public Transport,02-Apr-2019,000008441770755,AUCKLAND CASTLE,7523,Staff travelling,1.10,0.00,1.10
Children and Young Peoples Services,Head of Childrens Social Care,085362,LAC & Permanence Team 2,Supplies and Services,384999,Miscellaneous Expenses,02-Apr-2019,000008441770765,WWW.DURHAM.GOV.UK,9399,Other expenses,22.00,0.00,22.00
Children and Young Peoples Services,Head of Childrens Social Care,085333,Coxhoe Satelite Home,Supplies and Services,328041,Clothing uniforms and laundry E328,02-Apr-2019,000008441770775,B & M RETAIL,5310,Clothing uniforms and laundry,4.48,0.00,4.48
Regeneration and Local Services,Culture Sport and Tourism,010664,Freemans Quay Leisure Centre,Supplies and Services,328041,Clothing uniforms and laundry E328,02-Apr-2019,000008441770849,ARGOS RETAIL GROUP,5310,Clothing uniforms and laundry,219.99,36.67,183.32
Transformation and Partnerships,Business Support,052986,CYPS - Locality and Operational Support,Supplies and Services,324117,Provisions E324,02-Apr-2019,000008441770861,ASDA SUPERSTORE 4987,5411,Catering costs - provisions,6.00,0.00,6.00
Children and Young Peoples Services,Head of Education and Skills,071732,Dean Bank Childcare,Supplies and Services,328041,Clothing uniforms and laundry E328,02-Apr-2019,000008441770917,B & M RETAIL,5310,Clothing uniforms and laundry,19.99,0.00,19.99
Regeneration and Local Services,Culture Sport and Tourism,011223,Operations Locality 1,Supplies and Services,304221,Equipment and Materials,02-Apr-2019,000008441770931,B & Q 1120,5211,Direct materials,443.11,0.00,443.11
Regeneration and Local Services,Culture Sport and Tourism,011223,Operations Locality 1,Supplies and Services,304221,Equipment and Materials,02-Apr-2019,000008441770935,SCREWFIX BISHOP AUCKLA,5211,Direct materials,25.98,0.00,25.98
Adult and Health Services,Head of Adults,055202,Support and Recovery,Supplies and Services,324117,Provisions E324,02-Apr-2019,000008441771035,SAINSBURYS LOC4634,5411,Catering costs - provisions,13.00,0.00,13.00
Children and Young Peoples Services,Head of Early Help Inclusion & Vulnerable Children.,085961,Themed Week Activity,Supplies and Services,304335,Equipment and Materials,02-Apr-2019,000008441771091,AMZNMktplace,5999,ICT supplies etc,8.10,1.35,6.75
Children and Young Peoples Services,Head of Early Help Inclusion & Vulnerable Children.,085961,Themed Week Activity,Supplies and Services,304335,Equipment and Materials,02-Apr-2019,000008441771091 - 1,AMZNMktplace,5999,ICT supplies etc,37.99,,37.99
Children and Young Peoples Services,Head of Early Help Inclusion & Vulnerable Children.,085952,Secure Education,Supplies and Services,312009,Newspapers books and periodicals E312,02-Apr-2019,000008441771093,ETSY.COM - JSPERSONALT,5699,Newspapers books and periodicals,24.49,0.00,24.49
Regeneration and Local Services,Environmental Services,010367,C&G - South Grounds Maintenance,Supplies and Services,304221,Equipment and Materials,02-Apr-2019,000008441771103,MKM PETERLEE,5211,Direct materials,49.88,8.31,41.57
Regeneration and Local Services,Environmental Services,011060,C&G - Hardwick Park Catering,Premises,145009,Cleaning and Domestic Supplies,02-Apr-2019,000008441771115,ALLIANCE DISPOSABLES L,2842,Other cleaning and domestic costs,151.78,25.30,126.48
Regeneration and Local Services,Environmental Services,011060,C&G - Hardwick Park Catering,Premises,145009,Cleaning and Domestic Supplies,02-Apr-2019,000008441771123,ALLIANCE DISPOSABLES L,2842,Other cleaning and domestic costs,67.97,11.33,56.64
Regeneration and Local Services,Environmental Services,011060,C&G - Hardwick Park Catering,Supplies and Services,324117,Provisions E324,02-Apr-2019,000008441771131,JR HOLLAND FOODSERVICE,5499,Catering costs - provisions,10.68,0.00,10.68
Regeneration and Local Services,Culture Sport and Tourism,054815,Gala Theatre Stage School,Supplies and Services,312011,Newspapers books and periodicals E312,02-Apr-2019,000008441771159,AMZN Mktp UK MZ8BA9TJ4,5942,Books-school library,5.98,0.00,5.98
Children and Young Peoples Services,Head of Childrens Social Care,085334,West Rainton Satelite Home,Supplies and Services,304259,Equipment and Materials,02-Apr-2019,000008441771177,SPORTSDIRECT 264,5941,Equipment-purchase and rental,107.99,0.00,107.99
Regeneration and Local Services,Corporate Property and Land,010525,Catering - Green Lane,Supplies and Services,324117,Provisions E324,02-Apr-2019,000008441771215,JR HOLLAND FOODSERVICE,5499,Catering costs - provisions,187.04,0.00,187.04
Regeneration and Local Services,Corporate Property and Land,010525,Catering - Green Lane,Supplies and Services,324117,Provisions E324,02-Apr-2019,000008441771221,JR HOLLAND FOODSERVICE,5499,Catering costs - provisions,17.51,0.00,17.51
Transformation and Partnerships,Partnerships & Community Engagement Div.,060472,Syrian Vulnerable Persons Scheme,Supplies and Services,324117,Provisions E324,02-Apr-2019,000008441771231,ASDA GROCERIES ONLINE,5411,Catering costs - provisions,280.39,0.00,280.39
Transformation and Partnerships,Partnerships & Community Engagement Div.,060472,Syrian Vulnerable Persons Scheme,Supplies and Services,324117,Provisions E324,02-Apr-2019,000008441771237,ASDA GROCERIES ONLINE,5411,Catering costs - provisions,105.20,0.00,105.20
Transformation and Partnerships,Partnerships & Community Engagement Div.,060472,Syrian Vulnerable Persons Scheme,Supplies and Services,324117,Provisions E324,02-Apr-2019,000008441771243,ASDA GROCERIES ONLINE,5411,Catering costs - provisions,-0.36,0.00,-0.36
Resources BK0010,Finance & Transactional Services,065176,Quality/Subsidy/Appeals/Training/Support,Supplies and Services,338048,Services,02-Apr-2019,000008441771357,HMCOURTS-SERVICE.G,9222,Court costs 338048,944.00,0.00,944.00
Regeneration and Local Services,Development and Housing,030771,Durham Advance Flexible Fund,Supplies and Services,304403,Equipment and Materials,02-Apr-2019,000008441771367,AMZNMktplace,5999,Other consumables,15.48,0.00,15.48
Regeneration and Local Services,Development and Housing,030771,Durham Advance Flexible Fund,Supplies and Services,328041,Clothing uniforms and laundry E328,02-Apr-2019,000008441771373,MATALAN,5691,Clothing uniforms and laundry,61.10,10.18,50.92
Children and Young Peoples Services,Head of Childrens Social Care,085333,Coxhoe Satelite Home,Supplies and Services,324117,Provisions E324,02-Apr-2019,000008441771375,ASDA SUPERSTORE 4987,5411,Catering costs - provisions,71.39,0.00,71.39
Regeneration and Local Services,Development and Housing,031500,Housing Solutions - Core Team,Employees,040149,Recruitment Instruction and Training,02-Apr-2019,000008441771387,PREMIER INN,3811,Training-all costs,89.00,14.83,74.17
Children and Young Peoples Services,Head of Childrens Social Care,085342,9 Cedar Drive Aycliffe,Supplies and Services,304259,Equipment and Materials,02-Apr-2019,000008441771391,PHOTOTRONICS SCHOLASTI,7221,Equipment-purchase and rental,23.00,0.00,23.00
Regeneration and Local Services,Environmental Services,010367,C&G - South Grounds Maintenance,Supplies and Services,304221,Equipment and Materials,02-Apr-2019,000008441771411,SCREWFIX DIRECT LT,5211,Direct materials,29.99,5.00,24.99
Regeneration and Local Services,Corporate Property and Land,030691,Catering - Durham Dales Centre,Supplies and Services,324117,Provisions E324,02-Apr-2019,000008441771497,JR HOLLAND FOODSERVICE,5499,Catering costs - provisions,32.02,0.00,32.02
Regeneration and Local Services,Corporate Property and Land,030691,Catering - Durham Dales Centre,Supplies and Services,324117,Provisions E324,02-Apr-2019,000008441771499,JR HOLLAND FOODSERVICE,5499,Catering costs - provisions,1.56,0.00,1.56
Adult and Health Services,Head of Adults,055643,Hawthorn House LD Respite Unit,Supplies and Services,324117,Provisions E324,02-Apr-2019,000008441771527,JR HOLLAND FOODSERVICE,5499,Catering costs - provisions,17.38,0.00,17.38
Regeneration and Local Services,Environmental Services,010301,C&G - North Grounds Maintenance,Supplies and Services,304221,Equipment and Materials,02-Apr-2019,000008441771613,HARELAW SAWMILL,5211,Direct materials,341.80,56.97,284.83
Transformation and Partnerships,Business Support,052986,CYPS - Locality and Operational Support,Supplies and Services,324117,Provisions E324,02-Apr-2019,000008441771621,ASDA GROCERIES ONLINE,5411,Catering costs - provisions,52.00,0.00,52.00
Transformation and Partnerships,Business Support,052986,CYPS - Locality and Operational Support,Supplies and Services,324117,Provisions E324,02-Apr-2019,000008441771629,ASDA GROCERIES ONLINE,5411,Catering costs - provisions,-10.00,0.00,-10.00
Children and Young Peoples Services,Head of Early Help Inclusion & Vulnerable Children.,074000,TTF-Attachment and Results,Transfer Payments,525033,Other,02-Apr-2019,000008441771651,ASDA GEORGE COM LEEDS,5411,Grants to individuals,145.95,24.33,121.62
Children and Young Peoples Services,Head of Early Help Inclusion & Vulnerable Children.,074000,TTF-Attachment and Results,Transfer Payments,525033,Other,02-Apr-2019,000008441771657,ASDA GEORGE COM LEEDS,5411,Grants to individuals,45.96,7.66,38.30
Children and Young Peoples Services,Head of Early Help Inclusion & Vulnerable Children.,074000,TTF-Attachment and Results,Transfer Payments,525033,Other,02-Apr-2019,000008441771657 - 1,ASDA GEORGE COM LEEDS,5411,Grants to individuals,58.99,,58.99
Resources BK0010,Digital and Customer Services,065335,School Services - Implementations,Supplies and Services,304303,Equipment and Materials,02-Apr-2019,000008441771663,WWW.TOOLSTATION.COM,5251,Network for resale,110.90,18.48,92.42
Resources BK0010,Digital and Customer Services,065335,School Services - Implementations,Supplies and Services,304639,Equipment and Materials,02-Apr-2019,000008441771669,AMZNMktplace,5999,Technicians-supplies,32.29,0.00,32.29
Resources BK0010,Digital and Customer Services,065335,School Services - Implementations,Supplies and Services,304639,Equipment and Materials,02-Apr-2019,000008441771675,REPLACEBASE,5732,Technicians-supplies,81.90,13.65,68.25
Children and Young Peoples Services,Head of Early Help Inclusion & Vulnerable Children.,085955,Auckland,Supplies and Services,304649,Equipment and Materials,02-Apr-2019,000008441771703,AMZNMktplace,5999,Toys,53.99,9.00,44.99
Children and Young Peoples Services,Head of Early Help Inclusion & Vulnerable Children.,085957,Secure Management,Premises,115125,Repairs to Grounds,02-Apr-2019,000008441771715,LIGHTINGEVE,5719,General maintenance,438.60,73.10,365.50
Children and Young Peoples Services,Head of Early Help Inclusion & Vulnerable Children.,085957,Secure Management,Supplies and Services,304639,Equipment and Materials,02-Apr-2019,000008441771725,SCREWFIX DIRECT,5200,Technicians-supplies,35.98,6.00,29.98
Children and Young Peoples Services,Head of Early Help Inclusion & Vulnerable Children.,085957,Secure Management,Supplies and Services,304639,Equipment and Materials,02-Apr-2019,000008441771731,SCREWFIX DIRECT,5200,Technicians-supplies,17.99,3.00,14.99
Transformation and Partnerships,Business Support,052986,CYPS - Locality and Operational Support,Supplies and Services,312011,Newspapers books and periodicals E312,02-Apr-2019,000008441771747,AMZN Mktp UK MZ8WK2T04,5942,Books-school library,19.90,3.32,16.58
Regeneration and Local Services,Culture Sport and Tourism,054235,Bishop Auckland Town Hall Cafe,Supplies and Services,324117,Provisions E324,02-Apr-2019,000008441771767,JR HOLLAND FOODSERVICE,5499,Catering costs - provisions,44.59,0.00,44.59
Regeneration and Local Services,Environmental Services,026591,C&G - Hardwick Park,Supplies and Services,332047,Printing Stationery and Gen Off Exps,02-Apr-2019,000008441771773,WILKO.COM,5399,Stationery,9.50,0.00,9.50
Regeneration and Local Services,Corporate Property and Land,021324,Catering - Meadowfield,Supplies and Services,324117,Provisions E324,02-Apr-2019,000008441771779,JR HOLLAND FOODSERVICE,5499,Catering costs - provisions,49.35,0.00,49.35
Regeneration and Local Services,Corporate Property and Land,021324,Catering - Meadowfield,Supplies and Services,324117,Provisions E324,02-Apr-2019,000008441771783,JR HOLLAND FOODSERVICE,5499,Catering costs - provisions,14.19,0.00,14.19
Regeneration and Local Services,Environmental Services,010301,C&G - North Grounds Maintenance,Supplies and Services,304221,Equipment and Materials,02-Apr-2019,000008441771813,B & Q 1343,5211,Direct materials,153.00,0.00,153.00
Children and Young Peoples Services,Head of Early Help Inclusion & Vulnerable Children.,085801,CDYOS - Support,Supplies and Services,324117,Provisions E324,02-Apr-2019,000008441771827,ASDA GROCERIES ONLINE,5411,Catering costs - provisions,32.55,0.00,32.55
Regeneration and Local Services,Environmental Services,031228,North Pennines - Fellfoot Forward,Supplies and Services,352001,Conference Expenses,02-Apr-2019,000008441771975,EB REWILDING-A SOLUTI,7399,Conferencesseminars fees etc,59.22,0.00,59.22
Regeneration and Local Services,Development and Housing,031500,Housing Solutions - Core Team,Supplies and Services,352001,Conference Expenses,02-Apr-2019,000008441771985,HOTEL 52,7011,Conferencesseminars fees etc,183.98,0.00,183.98
Regeneration and Local Services,Culture Sport and Tourism,054812,Gala Theatre - Catering etc,Supplies and Services,324117,Provisions E324,02-Apr-2019,000008441771993,TESCO STORES 6029,5411,Catering costs - provisions,11.44,0.00,11.44
Transformation and Partnerships,Partnerships & Community Engagement Div.,060472,Syrian Vulnerable Persons Scheme,Supplies and Services,308011,Furniture,02-Apr-2019,000008441772139,B & Q 1343,5211,Furniture repair and replacement,10.00,1.67,8.33
Transformation and Partnerships,Partnerships & Community Engagement Div.,060472,Syrian Vulnerable Persons Scheme,Supplies and Services,308011,Furniture,02-Apr-2019,000008441772145,B & M RETAIL,5310,Furniture repair and replacement,17.91,0.00,17.91
Regeneration and Local Services,Business Durham CL0850,030694,Plexus 2,Supplies and Services,304403,Equipment and Materials,02-Apr-2019,000008441772149,AMZNMktplace,5999,Other consumables,7.47,0.00,7.47
Transformation and Partnerships,Business Support,052986,CYPS - Locality and Operational Support,Supplies and Services,338064,Services,02-Apr-2019,000008441772221,DISCLOSURE SCOTLAND,9399,Disclosure & Barring (DBS) Fees,25.00,0.00,25.00
Regeneration and Local Services,Development and Housing,031576,B& B - Temp Accom,Employees,040149,Recruitment Instruction and Training,02-Apr-2019,000008447112105,PREMIER INN,3811,Training-all costs,84.00,14.00,70.00
Regeneration and Local Services,Corporate Property and Land,021242,Catering - County Hall,Supplies and Services,324117,Provisions E324,02-Apr-2019,000008447112309,BATLEYS PERTH,5300,Catering costs - provisions,476.16,79.36,396.80
Regeneration and Local Services,Corporate Property and Land,021242,Catering - County Hall,Supplies and Services,324117,Provisions E324,02-Apr-2019,000008447112309 - 1,BATLEYS PERTH,5300,Catering costs - provisions,210.67,,210.67
Children and Young Peoples Services,Head of Early Help Inclusion & Vulnerable Children.,071746,Newton Aycliffe Childrens Centre,Supplies and Services,324117,Provisions E324,02-Apr-2019,000008447112607,BATLEYS PERTH,5300,Catering costs - provisions,11.62,0.00,11.62
Regeneration and Local Services,Environmental Services,011060,C&G - Hardwick Park Catering,Supplies and Services,324117,Provisions E324,02-Apr-2019,000008447112673,BATLEYS PERTH,5300,Catering costs - provisions,25.92,4.32,21.60
Regeneration and Local Services,Environmental Services,011060,C&G - Hardwick Park Catering,Supplies and Services,324117,Provisions E324,02-Apr-2019,000008447112673 - 1,BATLEYS PERTH,5300,Catering costs - provisions,125.55,,125.55
Regeneration and Local Services,Environmental Services,011060,C&G - Hardwick Park Catering,Supplies and Services,324117,Provisions E324,02-Apr-2019,000008447112675,BATLEYS PERTH,5300,Catering costs - provisions,13.90,0.00,13.90
Regeneration and Local Services,Corporate Property and Land,021234,Catering - Locomotion,Supplies and Services,324117,Provisions E324,02-Apr-2019,000008447112707,BATLEYS PERTH,5300,Catering costs - provisions,416.52,69.42,347.10
Regeneration and Local Services,Corporate Property and Land,021234,Catering - Locomotion,Supplies and Services,324117,Provisions E324,02-Apr-2019,000008447112707 - 1,BATLEYS PERTH,5300,Catering costs - provisions,68.32,,68.32
Regeneration and Local Services,Corporate Property and Land,021234,Catering - Locomotion,Supplies and Services,324117,Provisions E324,02-Apr-2019,000008447112717,BATLEYS PERTH,5300,Catering costs - provisions,10.09,0.00,10.09
Regeneration and Local Services,Corporate Property and Land,010525,Catering - Green Lane,Supplies and Services,324117,Provisions E324,02-Apr-2019,000008447112729,BATLEYS PERTH,5300,Catering costs - provisions,105.00,17.50,87.50
Regeneration and Local Services,Corporate Property and Land,010525,Catering - Green Lane,Supplies and Services,324117,Provisions E324,02-Apr-2019,000008447112729 - 1,BATLEYS PERTH,5300,Catering costs - provisions,85.73,,85.73
Regeneration and Local Services,Culture Sport and Tourism,054235,Bishop Auckland Town Hall Cafe,Supplies and Services,324117,Provisions E324,02-Apr-2019,000008447113103,BATLEYS PERTH,5300,Catering costs - provisions,16.98,2.83,14.15
Regeneration and Local Services,Culture Sport and Tourism,054235,Bishop Auckland Town Hall Cafe,Supplies and Services,324117,Provisions E324,02-Apr-2019,000008447113103 - 1,BATLEYS PERTH,5300,Catering costs - provisions,130.53,,130.53
Regeneration and Local Services,Corporate Property and Land,021324,Catering - Meadowfield,Supplies and Services,324117,Provisions E324,02-Apr-2019,000008447113139,BATLEYS PERTH,5300,Catering costs - provisions,89.82,14.97,74.85
Regeneration and Local Services,Corporate Property and Land,021324,Catering - Meadowfield,Supplies and Services,324117,Provisions E324,02-Apr-2019,000008447113139 - 1,BATLEYS PERTH,5300,Catering costs - provisions,129.57,,129.57
Regeneration and Local Services,Development and Housing,031500,Housing Solutions - Core Team,Employees,040149,Recruitment Instruction and Training,02-Apr-2019,000008447113313,PREMIER INN,3811,Training-all costs,93.50,0.00,93.50
Regeneration and Local Services,Environmental Services,031221,North Pennines - Bowlees,Supplies and Services,304221,Equipment and Materials,03-Apr-2019,000006295397158,GRAHAMS LOGS & TIMBER,5211,Direct materials,73.00,0.00,73.00
Adult and Health Services,Head of Adults,055202,Support and Recovery,Supplies and Services,324117,Provisions E324,03-Apr-2019,000006295397304,RIVERSIDE EVENTS,5811,Catering costs - provisions,6.60,1.10,5.50
Children and Young Peoples Services,Head of Education and Skills,075021,Youth Employment Initiative,Supplies and Services,384999,Miscellaneous Expenses,03-Apr-2019,000008441770521,AMZN Mktp UK MZ3PZ0TI4,5942,Other expenses,11.28,0.00,11.28
Children and Young Peoples Services,Head of Education and Skills,071801,Selby Cottage Childcare Centre,Supplies and Services,312011,Newspapers books and periodicals E312,03-Apr-2019,000008447112087,HOME BARGAINS,5251,Books-school library,129.99,0.00,129.99
Children and Young Peoples Services,Head of Education and Skills,054640,Durham Learning Resources 054640,Supplies and Services,304245,Equipment and Materials,03-Apr-2019,000008447112095,AMZNMktplace,5999,Materials,71.88,0.00,71.88
Regeneration and Local Services,Development and Housing,030773,CLLD North,Employees,040029,Recruitment Instruction and Training,03-Apr-2019,000008447112113,DISCLOSURE & BARRING,9399,Interview expenses,13.00,0.00,13.00
Children and Young Peoples Services,Head of Education and Skills,075021,Youth Employment Initiative,Supplies and Services,384999,Miscellaneous Expenses,03-Apr-2019,000008447112131,AMZNMktplace,5999,Other expenses,29.94,4.99,24.95
Children and Young Peoples Services,Head of Education and Skills,075021,Youth Employment Initiative,Supplies and Services,384999,Miscellaneous Expenses,03-Apr-2019,000008447112137,AMZN Mktp UK MZ26Q7ET4,5942,Other expenses,22.48,0.00,22.48
Children and Young Peoples Services,Head of Education and Skills,075021,Youth Employment Initiative,Supplies and Services,384999,Miscellaneous Expenses,03-Apr-2019,000008447112141,ASDA GEORGE COM LEEDS,5411,Other expenses,31.00,0.00,31.00
Children and Young Peoples Services,Head of Childrens Social Care,085342,9 Cedar Drive Aycliffe,Supplies and Services,348037,Subsistence E348,03-Apr-2019,000008447112145,COSTA COFFEE,5814,Subsistence,5.00,0.00,5.00
Children and Young Peoples Services,Head of Childrens Social Care,085342,9 Cedar Drive Aycliffe,Supplies and Services,328041,Clothing uniforms and laundry E328,03-Apr-2019,000008447112151,NEW LOOK 1996,5621,Clothing uniforms and laundry,39.12,0.00,39.12
Children and Young Peoples Services,Head of Childrens Social Care,085342,9 Cedar Drive Aycliffe,Supplies and Services,304999,Equipment and Materials,03-Apr-2019,000008447112157,SUPERDRUG STORES PLC,5912,Misc equipment tools and materials,23.81,0.00,23.81
Children and Young Peoples Services,Head of Childrens Social Care,085342,9 Cedar Drive Aycliffe,Supplies and Services,328041,Clothing uniforms and laundry E328,03-Apr-2019,000008447112163,H & M,5691,Clothing uniforms and laundry,16.99,0.00,16.99
Children and Young Peoples Services,Head of Childrens Social Care,085332,Middlestone Moor CU,Supplies and Services,324117,Provisions E324,03-Apr-2019,000008447112169,ASDA STORES,5411,Catering costs - provisions,24.49,0.00,24.49
Regeneration and Local Services,Business Durham CL0850,030699,Business Growth and Innovation General,Supplies and Services,304403,Equipment and Materials,03-Apr-2019,000008447112179,ADOBE CREATIVE CLOUD,5734,Other consumables,49.94,8.32,41.62
Adult and Health Services,Head of Adults,052760,OP Management,Charges,720130,Fees and Charges,03-Apr-2019,000008447112211,WWW.MONEYCLAIM.GOV,9399,Fees-legal,60.00,0.00,60.00
Adult and Health Services,Head of Adults,052760,OP Management,Charges,720130,Fees and Charges,03-Apr-2019,000008447112221,WWW.MONEYCLAIM.GOV,9399,Fees-legal,70.00,0.00,70.00
Children and Young Peoples Services,Head of Early Help Inclusion & Vulnerable Children.,071570,Taylor Road Building,Supplies and Services,304405,Equipment and Materials,03-Apr-2019,000008447112291,AMZN Mktp UK MZ97P8AD4,5942,Medical supplies,1.29,0.22,1.07
Children and Young Peoples Services,Head of Early Help Inclusion & Vulnerable Children.,088104,BA/BC/Crook 0-19 Targeted Family Support,Supplies and Services,312009,Newspapers books and periodicals E312,03-Apr-2019,000008447112297,Amazon.co.uk MZ82S2A74,5969,Newspapers books and periodicals,19.69,0.00,19.69
Children and Young Peoples Services,Head of Childrens Social Care,085624,Families First Crook,Supplies and Services,384700,Miscellaneous Expenses,03-Apr-2019,000008447112301,ARGOS RETAIL GROUP,5310,Miscellaneous grants,45.98,0.00,45.98
Regeneration and Local Services,Corporate Property and Land,021242,Catering - County Hall,Supplies and Services,324117,Provisions E324,03-Apr-2019,000008447112323,JR HOLLAND FOODSERVICE,5499,Catering costs - provisions,250.50,0.00,250.50
Regeneration and Local Services,Corporate Property and Land,021242,Catering - County Hall,Supplies and Services,324117,Provisions E324,03-Apr-2019,000008447112329,JR HOLLAND FOODSERVICE,5499,Catering costs - provisions,141.96,0.00,141.96
Regeneration and Local Services,Corporate Property and Land,021242,Catering - County Hall,Supplies and Services,324117,Provisions E324,03-Apr-2019,000008447112331,JR HOLLAND FOODSERVICE,5499,Catering costs - provisions,13.80,0.00,13.80
Children and Young Peoples Services,Head of Early Help Inclusion & Vulnerable Children.,088106,Ferryhill & N.Aycliffe 0-19 Targeted Family Support,Supplies and Services,308011,Furniture,03-Apr-2019,000008447112337,WWW.ARGOS.CO.UK,5310,Furniture repair and replacement,179.95,0.00,179.95
Regeneration and Local Services,Development and Housing,030544,Rural Employability - Client Engagement,Transport,235057,Public Transport,03-Apr-2019,000008447112351,WALKERGATE CAR PAR,7523,Staff travelling,1.80,0.00,1.80
Regeneration and Local Services,Culture Sport and Tourism,054812,Gala Theatre - Catering etc,Supplies and Services,324117,Provisions E324,03-Apr-2019,000008447112359,JR HOLLAND FOODSERVICE,5499,Catering costs - provisions,26.86,0.00,26.86
Children and Young Peoples Services,Head of Childrens Social Care,085333,Coxhoe Satelite Home,Supplies and Services,312011,Newspapers books and periodicals E312,03-Apr-2019,000008447112375,AMZN Mktp UK MZ6G92AA4,5942,Books-school library,34.99,0.00,34.99
Children and Young Peoples Services,Head of Childrens Social Care,085333,Coxhoe Satelite Home,Supplies and Services,312011,Newspapers books and periodicals E312,03-Apr-2019,000008447112381,AMZN Mktp UK MZ6KX0A34,5942,Books-school library,8.90,0.00,8.90
Children and Young Peoples Services,Head of Childrens Social Care,085333,Coxhoe Satelite Home,Supplies and Services,342033,Computers and Communications,03-Apr-2019,000008447112387,18650 UK LTD,7372,Computer hardware,20.76,3.46,17.30
Children and Young Peoples Services,Head of Childrens Social Care,085333,Coxhoe Satelite Home,Supplies and Services,304403,Equipment and Materials,03-Apr-2019,000008447112393,AMZNMktplace,5999,Other consumables,19.98,0.00,19.98
Children and Young Peoples Services,Head of Childrens Social Care,085352,Tow Law CU,Supplies and Services,312011,Newspapers books and periodicals E312,03-Apr-2019,000008447112427,HOME BARGAINS,5251,Books-school library,79.39,0.00,79.39
Children and Young Peoples Services,Head of Childrens Social Care,085352,Tow Law CU,Supplies and Services,348037,Subsistence E348,03-Apr-2019,000008447112435,MARCH HARE,5813,Subsistence,26.25,0.00,26.25
Children and Young Peoples Services,Head of Education and Skills,071903,EYDCP-Sustainability EDS,Supplies and Services,304403,Equipment and Materials,03-Apr-2019,000008447112549,AMZNMktplace,5999,Other consumables,22.49,0.00,22.49
Regeneration and Local Services,Development and Housing,030771,Durham Advance Flexible Fund,Transport,235057,Public Transport,03-Apr-2019,000008447112581,WALKERGATE CAR PAR,7523,Staff travelling,3.00,0.50,2.50
Regeneration and Local Services,Development and Housing,030771,Durham Advance Flexible Fund,Supplies and Services,384700,Miscellaneous Expenses,03-Apr-2019,000008447112583,DVLA DRIVER ONLINE,9399,Miscellaneous grants,34.00,0.00,34.00
Children and Young Peoples Services,Head of Early Help Inclusion & Vulnerable Children.,085962,Aycliffe Secure - Durham,Supplies and Services,328041,Clothing uniforms and laundry E328,03-Apr-2019,000008447112623,FOOTASYLUM PLC,5691,Clothing uniforms and laundry,29.99,0.00,29.99
Children and Young Peoples Services,Head of Early Help Inclusion & Vulnerable Children.,085956,Lumley,Supplies and Services,328041,Clothing uniforms and laundry E328,03-Apr-2019,000008447112629,WWW.BOOHOO.COM,5691,Clothing uniforms and laundry,8.55,0.00,8.55
Children and Young Peoples Services,Head of Early Help Inclusion & Vulnerable Children.,085956,Lumley,Supplies and Services,328041,Clothing uniforms and laundry E328,03-Apr-2019,000008447112631,21THREE CLOTHING COMPA,5691,Clothing uniforms and laundry,21.99,0.00,21.99
Children and Young Peoples Services,Head of Early Help Inclusion & Vulnerable Children.,085962,Aycliffe Secure - Durham,Supplies and Services,324117,Provisions E324,03-Apr-2019,000008447112635,TESCO STORES 6329,5411,Catering costs - provisions,154.94,0.00,154.94
Children and Young Peoples Services,Head of Early Help Inclusion & Vulnerable Children.,085956,Lumley,Supplies and Services,328041,Clothing uniforms and laundry E328,03-Apr-2019,000008447112639,VERY,5964,Clothing uniforms and laundry,28.99,0.00,28.99
Regeneration and Local Services,Culture Sport and Tourism,054813,Gala Theatre - Technical,Supplies and Services,304403,Equipment and Materials,03-Apr-2019,000008447112653,ROTACLOUD,5734,Other consumables,108.00,0.00,108.00
Regeneration and Local Services,Culture Sport and Tourism,054813,Gala Theatre - Technical,Supplies and Services,304403,Equipment and Materials,03-Apr-2019,000008447112659,ROTACLOUD,5734,Other consumables,108.00,0.00,108.00
Regeneration and Local Services,Environmental Services,011060,C&G - Hardwick Park Catering,Supplies and Services,324117,Provisions E324,03-Apr-2019,000008447112681,JR HOLLAND FOODSERVICE,5499,Catering costs - provisions,47.53,0.00,47.53
Regeneration and Local Services,Development and Housing,030755,Durham Employment & Skills - Other Training,Employees,040149,Recruitment Instruction and Training,03-Apr-2019,000008447112701,NCS VUE CITB HS&E REV,8299,Training-all costs,483.00,0.00,483.00
Regeneration and Local Services,Corporate Property and Land,010525,Catering - Green Lane,Supplies and Services,324117,Provisions E324,03-Apr-2019,000008447112743,JR HOLLAND FOODSERVICE,5499,Catering costs - provisions,3.92,0.00,3.92
Regeneration and Local Services,Corporate Property and Land,010525,Catering - Green Lane,Supplies and Services,324117,Provisions E324,03-Apr-2019,000008447112747,JR HOLLAND FOODSERVICE,5499,Catering costs - provisions,21.43,0.00,21.43
Children and Young Peoples Services,Head of Childrens Social Care,085352,Tow Law CU,Supplies and Services,312011,Newspapers books and periodicals E312,03-Apr-2019,000008447112755,HOME BARGAINS,5251,Books-school library,22.71,3.79,18.92
Children and Young Peoples Services,Head of Childrens Social Care,085352,Tow Law CU,Supplies and Services,304259,Equipment and Materials,03-Apr-2019,000008447112763,JD SPORTS PLC,5941,Equipment-purchase and rental,94.00,0.00,94.00
Regeneration and Local Services,Development and Housing,030771,Durham Advance Flexible Fund,Transport,235057,Public Transport,03-Apr-2019,000008447112779,AUCKLAND CASTLE,7523,Staff travelling,0.60,0.00,0.60
Children and Young Peoples Services,Head of Childrens Social Care,085352,Tow Law CU,Supplies and Services,324117,Provisions E324,03-Apr-2019,000008447112877,ASDA SUPERSTORE 4987,5411,Catering costs - provisions,55.57,0.00,55.57
Adult and Health Services,Head of Adults,055643,Hawthorn House LD Respite Unit,Supplies and Services,324117,Provisions E324,03-Apr-2019,000008447112915,JR HOLLAND FOODSERVICE,5499,Catering costs - provisions,11.96,0.00,11.96
Regeneration and Local Services,Environmental Services,010301,C&G - North Grounds Maintenance,Supplies and Services,304221,Equipment and Materials,03-Apr-2019,000008447112967,B & Q 1332,5211,Direct materials,46.00,0.00,46.00
Resources BK0010,Digital and Customer Services,070205,School Services - Health and Safety Services,Supplies and Services,304639,Equipment and Materials,03-Apr-2019,000008447112971,WWW.TOOLSTATION.COM,5251,Technicians-supplies,19.64,3.27,16.37
Resources BK0010,Digital and Customer Services,070205,School Services - Health and Safety Services,Supplies and Services,304639,Equipment and Materials,03-Apr-2019,000008447112977,WWW.TOOLSTATION.COM,5251,Technicians-supplies,13.28,2.21,11.07
Regeneration and Local Services,Development and Housing,030771,Durham Advance Flexible Fund,Supplies and Services,348037,Subsistence E348,03-Apr-2019,000008447113003,COSTA COFFEE,5814,Subsistence,2.45,0.41,2.04
Regeneration and Local Services,Development and Housing,030771,Durham Advance Flexible Fund,Transport,235057,Public Transport,03-Apr-2019,000008447113013,GO NORTH EAST LIMITED,4131,Staff travelling,25.00,0.00,25.00
Resources BK0010,Legal & Democratic Services,067910,Democratic Representation 067910,Supplies and Services,384199,Miscellaneous Expenses,03-Apr-2019,000008447113047,WWW.ICO.GOV.UK,9399,Other hired and contracted services,40.00,0.00,40.00
Resources BK0010,Legal & Democratic Services,067910,Democratic Representation 067910,Supplies and Services,340001,Postages E340,03-Apr-2019,000008447113057,WWW.ICO.GOV.UK,9399,Postages,40.00,0.00,40.00
Transformation and Partnerships,Business Support,052986,CYPS - Locality and Operational Support,Transport,235057,Public Transport,03-Apr-2019,000008447113075,ARRIVA NORTH EAST,4131,Staff travelling,23.00,0.00,23.00
Regeneration and Local Services,Business Durham CL0850,030690,Durham Dales Centre - Tourist Information Centre,Supplies and Services,384999,Miscellaneous Expenses,03-Apr-2019,000008447113085,GAINSBOROUGH GIFTWARE,5950,Other expenses,865.64,144.27,721.37
Regeneration and Local Services,Environmental Services,026591,C&G - Hardwick Park,Supplies and Services,332047,Printing Stationery and Gen Off Exps,03-Apr-2019,000008447113127,AMZN MKTP UK MZ2724AB4,5942,Stationery,38.16,6.36,31.80
Regeneration and Local Services,Environmental Services,026591,C&G - Hardwick Park,Supplies and Services,332047,Printing Stationery and Gen Off Exps,03-Apr-2019,000008447113133,TESCO STORE 2638,5411,Stationery,91.40,0.00,91.40
Regeneration and Local Services,Environmental Services,010301,C&G - North Grounds Maintenance,Supplies and Services,304999,Equipment and Materials,03-Apr-2019,000008447113157,HEXHAM MACHINERY CENTR,0780,Misc equipment tools and materials,335.51,55.92,279.59
Children and Young Peoples Services,Head of Childrens Social Care,085333,Coxhoe Satelite Home,Supplies and Services,324117,Provisions E324,03-Apr-2019,000008447113221,TESCO STORES 2916,5411,Catering costs - provisions,85.89,0.00,85.89
Adult and Health Services,Head of Adults,055306,Spennymoor Pathways,Supplies and Services,328041,Clothing uniforms and laundry E328,03-Apr-2019,000008447113425,ARGOS LTD,5310,Clothing uniforms and laundry,7.99,0.00,7.99
Regeneration and Local Services,Corporate Property and Land,021235,Catering - Wharton Park,Supplies and Services,324117,Provisions E324,03-Apr-2019,000008447113463,JR HOLLAND FOODSERVICE,5499,Catering costs - provisions,26.69,0.00,26.69
Regeneration and Local Services,Business Durham CL0850,030694,Plexus 2,Supplies and Services,304403,Equipment and Materials,03-Apr-2019,000008447113583,AMZNMktplace,5999,Other consumables,19.96,0.00,19.96
Regeneration and Local Services,Business Durham CL0850,030694,Plexus 2,Supplies and Services,312011,Newspapers books and periodicals E312,03-Apr-2019,000008447113595,AMZN Mktp UK MZ4BJ4AS4,5942,Books-school library,9.50,0.00,9.50
Regeneration and Local Services,Business Durham CL0850,030694,Plexus 2,Supplies and Services,312011,Newspapers books and periodicals E312,03-Apr-2019,000008447113603,AMZN Mktp UK MZ9YY7AF4,5942,Books-school library,10.05,0.00,10.05
Regeneration and Local Services,Business Durham CL0850,030694,Plexus 2,Supplies and Services,312011,Newspapers books and periodicals E312,03-Apr-2019,000008447113611,Amazon.co.uk MZ3616E64,5969,Books-school library,10.99,0.00,10.99
Regeneration and Local Services,Corporate Property and Land,030691,Catering - Durham Dales Centre,Supplies and Services,384999,Miscellaneous Expenses,03-Apr-2019,000008447113625,WWW.CAFFEVINCI.COM,5046,Other expenses,380.10,0.00,380.10
Children and Young Peoples Services,Head of Childrens Social Care,085333,Coxhoe Satelite Home,Supplies and Services,304403,Equipment and Materials,03-Apr-2019,000008452638421,AMZNMKTPLACE AMAZON.CO,5999,Other consumables,15.99,0.00,15.99
Children and Young Peoples Services,Head of Childrens Social Care,085352,Tow Law CU,Supplies and Services,308011,Furniture,03-Apr-2019,000008452638461,WWW.IKEA.COM,5712,Furniture repair and replacement,322.00,0.00,322.00
Children and Young Peoples Services,Head of Childrens Social Care,085352,Tow Law CU,Supplies and Services,328041,Clothing uniforms and laundry E328,03-Apr-2019,000008452638471,WWW.ARGOS.CO.UK,5310,Clothing uniforms and laundry,52.00,0.00,52.00
Children and Young Peoples Services,Head of Childrens Social Care,085352,Tow Law CU,Supplies and Services,328041,Clothing uniforms and laundry E328,03-Apr-2019,000008452638479,WWW.ARGOS.CO.UK,5310,Clothing uniforms and laundry,354.95,0.00,354.95
Children and Young Peoples Services,Head of Early Help Inclusion & Vulnerable Children.,085962,Aycliffe Secure - Durham,Supplies and Services,328041,Clothing uniforms and laundry E328,03-Apr-2019,000008452638609,SPORTSDIRECT.COM,5941,Clothing uniforms and laundry,171.95,28.66,143.29
Regeneration and Local Services,Environmental Services,011060,C&G - Hardwick Park Catering,Supplies and Services,324117,Provisions E324,03-Apr-2019,000008452638721,BATLEYS PERTH,5300,Catering costs - provisions,-12.50,0.00,-12.50
Regeneration and Local Services,Development and Housing,031500,Housing Solutions - Core Team,Employees,040149,Recruitment Instruction and Training,03-Apr-2019,000008452639083,PREMIER INN,3811,Training-all costs,352.00,58.67,293.33
Regeneration and Local Services,Business Durham CL0850,030690,Durham Dales Centre - Tourist Information Centre,Supplies and Services,328041,Clothing uniforms and laundry E328,03-Apr-2019,000008452639257,WWW.AKHOSIERY.CO.UK,5621,Clothing uniforms and laundry,411.84,68.64,343.20
Regeneration and Local Services,Development and Housing,031500,Housing Solutions - Core Team,Employees,040149,Recruitment Instruction and Training,03-Apr-2019,000008452639403,PREMIER INN,3811,Training-all costs,92.50,0.00,92.50
Transformation and Partnerships,Business Support,069010,Administration 069010,Employees,040149,Recruitment Instruction and Training,03-Apr-2019,000008452639491,THE CHARTERED INSTITUT,8398,Training-all costs,79.00,0.00,79.00
Transformation and Partnerships,Business Support,069010,Administration 069010,Employees,040149,Recruitment Instruction and Training,03-Apr-2019,000008452639495,THE CHARTERED INSTITUT,8398,Training-all costs,79.00,0.00,79.00
Children and Young Peoples Services,Head of Childrens Social Care,085342,9 Cedar Drive Aycliffe,Supplies and Services,328041,Clothing uniforms and laundry E328,04-Apr-2019,000006295396682,PRIMARK,5651,Clothing uniforms and laundry,14.50,0.00,14.50
Regeneration and Local Services,Corporate Property and Land,021242,Catering - County Hall,Supplies and Services,324117,Provisions E324,04-Apr-2019,000006295396792,BATLEYS PERTH,5300,Catering costs - provisions,245.70,40.95,204.75
Regeneration and Local Services,Corporate Property and Land,021242,Catering - County Hall,Supplies and Services,324117,Provisions E324,04-Apr-2019,000006295396792 - 1,BATLEYS PERTH,5300,Catering costs - provisions,181.57,,181.57
Regeneration and Local Services,Environmental Services,011060,C&G - Hardwick Park Catering,Supplies and Services,324117,Provisions E324,04-Apr-2019,000006295397426,BATLEYS PERTH,5300,Catering costs - provisions,131.22,21.87,109.35
Regeneration and Local Services,Environmental Services,011060,C&G - Hardwick Park Catering,Supplies and Services,324117,Provisions E324,04-Apr-2019,000006295397426 - 1,BATLEYS PERTH,5300,Catering costs - provisions,183.56,,183.56
Children and Young Peoples Services,Head of Childrens Social Care,085352,Tow Law CU,Supplies and Services,312011,Newspapers books and periodicals E312,04-Apr-2019,000006295397508,C.L.A.S.S,5251,Books-school library,55.20,9.20,46.00
Resources BK0010,Digital and Customer Services,065335,School Services - Implementations,Supplies and Services,304639,Equipment and Materials,04-Apr-2019,000006295397840,AMZNMKTPLACE AMAZON.CO,5999,Technicians-supplies,279.96,0.00,279.96
Regeneration and Local Services,Culture Sport and Tourism,054820,Gala Theatre - Overheads,Supplies and Services,384999,Miscellaneous Expenses,04-Apr-2019,000006295398142,DURHAM CITY WATCHES,5944,Other expenses,6.50,0.00,6.50
Regeneration and Local Services,Development and Housing,031500,Housing Solutions - Core Team,Employees,040149,Recruitment Instruction and Training,04-Apr-2019,000006295398222,PREMIER INN,3811,Training-all costs,299.00,0.00,299.00
Regeneration and Local Services,Corporate Property and Land,021235,Catering - Wharton Park,Supplies and Services,324117,Provisions E324,04-Apr-2019,000006295398360,BATLEYS PERTH,5300,Catering costs - provisions,127.56,21.26,106.30
Regeneration and Local Services,Corporate Property and Land,021235,Catering - Wharton Park,Supplies and Services,324117,Provisions E324,04-Apr-2019,000006295398360 - 1,BATLEYS PERTH,5300,Catering costs - provisions,19.57,,19.57
Transformation and Partnerships,Business Support,069010,Administration 069010,Supplies and Services,336005,Advertising E336,04-Apr-2019,000008447113415,FACEBK NQAKFJ25B2,7311,Advertising other than for staff,500.00,0.00,500.00
Children and Young Peoples Services,Head of Education and Skills,071801,Selby Cottage Childcare Centre,Supplies and Services,324117,Provisions E324,04-Apr-2019,000008452637899,JR HOLLAND FOODSERVICE,5499,Catering costs - provisions,298.27,0.00,298.27
Children and Young Peoples Services,Head of Education and Skills,071801,Selby Cottage Childcare Centre,Supplies and Services,324117,Provisions E324,04-Apr-2019,000008452637907,SAINSBURYS SACAT 0776,5411,Catering costs - provisions,5.10,0.00,5.10
Transformation and Partnerships,Business Support,065461,Business Support 065461,Supplies and Services,342053,Computers and Communications,04-Apr-2019,000008452637921,BITEABLE PTY LTD,7392,Computer software,22.20,0.00,22.20
Resources BK0010,Legal & Democratic Services,066564,Lord Lieutenancy 066564,Supplies and Services,312011,Newspapers books and periodicals E312,04-Apr-2019,000008452637927,STATIONERY OFFICE BOOK,5942,Books-school library,27.18,4.53,22.65
Regeneration and Local Services,Development and Housing,030773,CLLD North,Transport,235057,Public Transport,04-Apr-2019,000008452637935,RADAR TAXIS LIMITED,4121,Staff travelling,47.00,0.00,47.00
Regeneration and Local Services,Business Durham CL0850,030699,Business Growth and Innovation General,Supplies and Services,304403,Equipment and Materials,04-Apr-2019,000008452637971,MEETEDGAR MONTHLY,5734,Other consumables,37.51,0.00,37.51
Regeneration and Local Services,Business Durham CL0850,030699,Business Growth and Innovation General,Supplies and Services,312011,Newspapers books and periodicals E312,04-Apr-2019,000008452637987,FASTHOSTS INTERNET,4816,Books-school library,6.34,1.06,5.28
Children and Young Peoples Services,Head of Childrens Social Care,085342,9 Cedar Drive Aycliffe,Supplies and Services,348037,Subsistence E348,04-Apr-2019,000008452638021,COSTA COFFEE,5814,Subsistence,18.65,0.00,18.65
Children and Young Peoples Services,Head of Childrens Social Care,085342,9 Cedar Drive Aycliffe,Transport,235057,Public Transport,04-Apr-2019,000008452638027,3C_ CORNMILL SHOPPING,7523,Staff travelling,2.00,0.00,2.00
Children and Young Peoples Services,Head of Childrens Social Care,085342,9 Cedar Drive Aycliffe,Supplies and Services,304259,Equipment and Materials,04-Apr-2019,000008452638031,SPORTSDIRECT.COM,5941,Equipment-purchase and rental,73.99,0.00,73.99
Children and Young Peoples Services,Head of Early Help Inclusion & Vulnerable Children.,088111,Easington & Peterlee 0-19 Community Family Hub,Supplies and Services,324117,Provisions E324,04-Apr-2019,000008452638051,ASDA STORES LTD,5411,Catering costs - provisions,10.79,0.00,10.79
Children and Young Peoples Services,Head of Early Help Inclusion & Vulnerable Children.,088111,Easington & Peterlee 0-19 Community Family Hub,Supplies and Services,328041,Clothing uniforms and laundry E328,04-Apr-2019,000008452638063,POUNDLAND LTD,5310,Clothing uniforms and laundry,14.10,0.00,14.10
Children and Young Peoples Services,Head of Early Help Inclusion & Vulnerable Children.,088111,Easington & Peterlee 0-19 Community Family Hub,Supplies and Services,304259,Equipment and Materials,04-Apr-2019,000008452638069,WILKO RETAIL LIMIT,5722,Equipment-purchase and rental,9.00,0.00,9.00
Children and Young Peoples Services,Head of Childrens Social Care,085333,Coxhoe Satelite Home,Supplies and Services,324117,Provisions E324,04-Apr-2019,000008452638093,CO-OP GROUP 310016,5411,Catering costs - provisions,3.76,0.00,3.76
Regeneration and Local Services,Corporate Property and Land,021242,Catering - County Hall,Supplies and Services,324117,Provisions E324,04-Apr-2019,000008452638229,JR HOLLAND FOODSERVICE,5499,Catering costs - provisions,13.80,0.00,13.80
Regeneration and Local Services,Corporate Property and Land,021242,Catering - County Hall,Supplies and Services,324117,Provisions E324,04-Apr-2019,000008452638237,JR HOLLAND FOODSERVICE,5499,Catering costs - provisions,61.93,0.00,61.93
Regeneration and Local Services,Corporate Property and Land,021242,Catering - County Hall,Supplies and Services,324117,Provisions E324,04-Apr-2019,000008452638245,JR HOLLAND FOODSERVICE,5499,Catering costs - provisions,76.45,0.00,76.45
Regeneration and Local Services,Development and Housing,030771,Durham Advance Flexible Fund,Supplies and Services,328041,Clothing uniforms and laundry E328,04-Apr-2019,000008452638257,M&CO,5621,Clothing uniforms and laundry,26.00,0.00,26.00
Regeneration and Local Services,Development and Housing,030771,Durham Advance Flexible Fund,Supplies and Services,384999,Miscellaneous Expenses,04-Apr-2019,000008452638265,NEXT DIRECTORY,5965,Other expenses,13.00,0.00,13.00
Regeneration and Local Services,Development and Housing,030771,Durham Advance Flexible Fund,Supplies and Services,328041,Clothing uniforms and laundry E328,04-Apr-2019,000008452638269,DURHAM JB,5661,Clothing uniforms and laundry,37.50,0.00,37.50
Regeneration and Local Services,Development and Housing,030771,Durham Advance Flexible Fund,Supplies and Services,304259,Equipment and Materials,04-Apr-2019,000008452638279,Durham County CNCL,9399,Equipment-purchase and rental,-11.00,0.00,-11.00
Children and Young Peoples Services,Head of Early Help Inclusion & Vulnerable Children.,088106,Ferryhill & N.Aycliffe 0-19 Targeted Family Support,Supplies and Services,308011,Furniture,04-Apr-2019,000008452638285,FRANKS THE FLOORING ST,5713,Furniture repair and replacement,200.00,0.00,200.00
Regeneration and Local Services,Development and Housing,030544,Rural Employability - Client Engagement,Supplies and Services,324117,Provisions E324,04-Apr-2019,000008452638293,COSTA COFFEE SEAHAM,5812,Catering costs - provisions,6.20,0.00,6.20
Regeneration and Local Services,Development and Housing,030544,Rural Employability - Client Engagement,Transport,235057,Public Transport,04-Apr-2019,000008452638299,WALKERGATE CAR PAR,7523,Staff travelling,3.00,0.00,3.00
Children and Young Peoples Services,Head of Childrens Social Care,085362,LAC & Permanence Team 2,Supplies and Services,384999,Miscellaneous Expenses,04-Apr-2019,000008452638381,HM PASSPORT OFFICE,9399,Other expenses,49.00,0.00,49.00
Children and Young Peoples Services,Head of Childrens Social Care,085362,LAC & Permanence Team 2,Supplies and Services,384999,Miscellaneous Expenses,04-Apr-2019,000008452638391,HM PASSPORT OFFICE,9399,Other expenses,49.00,0.00,49.00
Children and Young Peoples Services,Head of Childrens Social Care,085362,LAC & Permanence Team 2,Supplies and Services,384999,Miscellaneous Expenses,04-Apr-2019,000008452638397,HM PASSPORT OFFICE,9399,Other expenses,49.00,0.00,49.00
Regeneration and Local Services,Culture Sport and Tourism,054813,Gala Theatre - Technical,Supplies and Services,308011,Furniture,04-Apr-2019,000008452638523,WWW.CULTFURNITURE.COM,5712,Furniture repair and replacement,493.90,0.00,493.90
Children and Young Peoples Services,Head of Early Help Inclusion & Vulnerable Children.,085955,Auckland,Supplies and Services,328041,Clothing uniforms and laundry E328,04-Apr-2019,000008452638583,FOOTASYLUM PLC,5691,Clothing uniforms and laundry,34.99,0.00,34.99
Children and Young Peoples Services,Head of Early Help Inclusion & Vulnerable Children.,085957,Secure Management,Supplies and Services,304259,Equipment and Materials,04-Apr-2019,000008452638593,VAX LTD,5722,Equipment-purchase and rental,9.99,1.67,8.32
Children and Young Peoples Services,Head of Early Help Inclusion & Vulnerable Children.,085955,Auckland,Supplies and Services,324117,Provisions E324,04-Apr-2019,000008452638601,TESCO STORES 6329,5411,Catering costs - provisions,44.10,0.00,44.10
Regeneration and Local Services,Culture Sport and Tourism,054813,Gala Theatre - Technical,Supplies and Services,304259,Equipment and Materials,04-Apr-2019,000008452638625,Prime Video MZ93X5ES4,5735,Equipment-purchase and rental,2.49,0.00,2.49
Regeneration and Local Services,Culture Sport and Tourism,054813,Gala Theatre - Technical,Supplies and Services,304999,Equipment and Materials,04-Apr-2019,000008452638637,Prime Video,5968,Misc equipment tools and materials,7.99,0.00,7.99
Regeneration and Local Services,Culture Sport and Tourism,054813,Gala Theatre - Technical,Supplies and Services,304999,Equipment and Materials,04-Apr-2019,000008452638645,ASTROTEX LTD,0780,Misc equipment tools and materials,483.78,0.00,483.78
Regeneration and Local Services,Culture Sport and Tourism,054813,Gala Theatre - Technical,Supplies and Services,304999,Equipment and Materials,04-Apr-2019,000008452638651,Amazon Prime MZ3HK6EG4,5968,Misc equipment tools and materials,7.99,0.00,7.99
Regeneration and Local Services,Culture Sport and Tourism,054813,Gala Theatre - Technical,Supplies and Services,308011,Furniture,04-Apr-2019,000008452638659,WWW.CULTFURNITURE.COM,5712,Furniture repair and replacement,246.95,0.00,246.95
Regeneration and Local Services,Culture Sport and Tourism,054813,Gala Theatre - Technical,Supplies and Services,308011,Furniture,04-Apr-2019,000008452638663,WWW.CULTFURNITURE.COM,5712,Furniture repair and replacement,303.95,0.00,303.95
Regeneration and Local Services,Culture Sport and Tourism,054813,Gala Theatre - Technical,Supplies and Services,304221,Equipment and Materials,04-Apr-2019,000008452638669,WICKES BUILDING,5211,Direct materials,149.99,0.00,149.99
Regeneration and Local Services,Culture Sport and Tourism,054813,Gala Theatre - Technical,Supplies and Services,308011,Furniture,04-Apr-2019,000008452638675,BARKER&STONEHOUSE,5712,Furniture repair and replacement,499.00,0.00,499.00
Regeneration and Local Services,Environmental Services,010367,C&G - South Grounds Maintenance,Supplies and Services,304221,Equipment and Materials,04-Apr-2019,000008452638697,SCREWFIX PETERLEE,5211,Direct materials,8.18,1.36,6.82
Regeneration and Local Services,Environmental Services,011060,C&G - Hardwick Park Catering,Supplies and Services,324117,Provisions E324,04-Apr-2019,000008452638717,JR HOLLAND FOODSERVICE,5499,Catering costs - provisions,38.31,0.00,38.31
Regeneration and Local Services,Corporate Property and Land,021234,Catering - Locomotion,Supplies and Services,324117,Provisions E324,04-Apr-2019,000008452638759,JR HOLLAND FOODSERVICE,5499,Catering costs - provisions,39.03,0.00,39.03
Regeneration and Local Services,Corporate Property and Land,010525,Catering - Green Lane,Supplies and Services,324117,Provisions E324,04-Apr-2019,000008452638839,JR HOLLAND FOODSERVICE,5499,Catering costs - provisions,101.82,0.00,101.82
Children and Young Peoples Services,Head of Childrens Social Care,085551,Short Break Services-Park Hse Sher,Supplies and Services,324117,Provisions E324,04-Apr-2019,000008452638867,ICELAND,5411,Catering costs - provisions,19.35,0.00,19.35
Regeneration and Local Services,Culture Sport and Tourism,011269,Louisa Centre Nursery,Supplies and Services,304259,Equipment and Materials,04-Apr-2019,000008452638875,WWW.ICO.GOV.UK,9399,Equipment-purchase and rental,60.00,0.00,60.00
Regeneration and Local Services,Development and Housing,030554,International Relations 030554,Supplies and Services,332047,Printing Stationery and Gen Off Exps,04-Apr-2019,000008452638929,WWW.HOTLINE.CO.UK,5943,Stationery,939.12,156.52,782.60
Children and Young Peoples Services,Childrens Services Operational Support CG0080,052711,CYPS - Development and Learning,Supplies and Services,332047,Printing Stationery and Gen Off Exps,04-Apr-2019,000008452638949,Amazon.co.uk MZ8V39EO4,5969,Stationery,123.05,0.00,123.05
Transformation and Partnerships,Business Support,052986,CYPS - Locality and Operational Support,Supplies and Services,304403,Equipment and Materials,04-Apr-2019,000008452638957,AMZNMktplace,5999,Other consumables,12.88,0.00,12.88
Children and Young Peoples Services,Head of Early Help Inclusion & Vulnerable Children.,071443,Stanley One Point Hub,Supplies and Services,324117,Provisions E324,04-Apr-2019,000008452638965,ASDA GROCERIES ONLINE,5411,Catering costs - provisions,27.96,0.00,27.96
Regeneration and Local Services,Environmental Services,010367,C&G - South Grounds Maintenance,Supplies and Services,324117,Provisions E324,04-Apr-2019,000008452639005,J M RAINE,5399,Catering costs - provisions,273.47,0.00,273.47
Regeneration and Local Services,Development and Housing,030771,Durham Advance Flexible Fund,Employees,040149,Recruitment Instruction and Training,04-Apr-2019,000008452639033,VUE NCS CITB HS&E TEST,8299,Training-all costs,21.00,0.00,21.00
Regeneration and Local Services,Development and Housing,030771,Durham Advance Flexible Fund,Transport,230031,Contract Hire,04-Apr-2019,000008452639041,Trainline,4112,Pupils-transport to play fields etc,8.69,0.00,8.69
Regeneration and Local Services,Development and Housing,030771,Durham Advance Flexible Fund,Transport,235057,Public Transport,04-Apr-2019,000008452639047,WALKERGATE CAR PAR,7523,Staff travelling,1.80,0.30,1.50
Children and Young Peoples Services,Head of Childrens Social Care,085333,Coxhoe Satelite Home,Supplies and Services,324117,Provisions E324,04-Apr-2019,000008452639069,TESCO STORES 2371,5411,Catering costs - provisions,84.79,0.00,84.79
Children and Young Peoples Services,Head of Childrens Social Care,085333,Coxhoe Satelite Home,Supplies and Services,324117,Provisions E324,04-Apr-2019,000008452639073,ASDA SUPERSTORE 4987,5411,Catering costs - provisions,36.65,0.00,36.65
Children and Young Peoples Services,Head of Childrens Social Care,085342,9 Cedar Drive Aycliffe,Supplies and Services,324117,Provisions E324,04-Apr-2019,000008452639085,TESCO STORES 2916,5411,Catering costs - provisions,38.97,0.00,38.97
Children and Young Peoples Services,Head of Childrens Social Care,085352,Tow Law CU,Supplies and Services,312011,Newspapers books and periodicals E312,04-Apr-2019,000008452639105,AMZN Mktp UK MZ1ML3E74,5942,Books-school library,5.92,0.00,5.92
Children and Young Peoples Services,Head of Childrens Social Care,085352,Tow Law CU,Supplies and Services,304403,Equipment and Materials,04-Apr-2019,000008452639109,AMZNMktplace,5999,Other consumables,13.48,0.00,13.48
Children and Young Peoples Services,Head of Childrens Social Care,085352,Tow Law CU,Supplies and Services,312011,Newspapers books and periodicals E312,04-Apr-2019,000008452639111,AMZN Mktp UK MZ7I56E04,5942,Books-school library,38.84,0.00,38.84
Children and Young Peoples Services,Head of Childrens Social Care,085352,Tow Law CU,Supplies and Services,308011,Furniture,04-Apr-2019,000008452639115,"HOMEFAIR BLINDS,",5714,Furniture repair and replacement,619.00,103.17,515.83
Regeneration and Local Services,Corporate Property and Land,030691,Catering - Durham Dales Centre,Supplies and Services,324117,Provisions E324,04-Apr-2019,000008452639119,JR HOLLAND FOODSERVICE,5499,Catering costs - provisions,158.43,0.00,158.43
Adult and Health Services,Head of Adults,055643,Hawthorn House LD Respite Unit,Supplies and Services,324117,Provisions E324,04-Apr-2019,000008452639129,JR HOLLAND FOODSERVICE,5499,Catering costs - provisions,10.55,0.00,10.55
Adult and Health Services,Head of Adults,055643,Hawthorn House LD Respite Unit,Supplies and Services,324117,Provisions E324,04-Apr-2019,000008452639133,JR HOLLAND FOODSERVICE,5499,Catering costs - provisions,13.37,0.00,13.37
Children and Young Peoples Services,Head of Education and Skills,070264,EDC Premises,Supplies and Services,324117,Provisions E324,04-Apr-2019,000008452639163,ASDA STORES,5411,Catering costs - provisions,14.54,0.00,14.54
Transformation and Partnerships,Business Support,052986,CYPS - Locality and Operational Support,Supplies and Services,348037,Subsistence E348,04-Apr-2019,000008452639173,CAFE INTERLUDE,5814,Subsistence,75.30,0.00,75.30
Transformation and Partnerships,Business Support,052986,CYPS - Locality and Operational Support,Supplies and Services,324117,Provisions E324,04-Apr-2019,000008452639177,ASDA GROCERIES ONLINE,5411,Catering costs - provisions,52.00,0.00,52.00
Children and Young Peoples Services,Head of Early Help Inclusion & Vulnerable Children.,074000,TTF-Attachment and Results,Transfer Payments,525033,Other,04-Apr-2019,000008452639181,ASDA GEORGE COM LEEDS,5411,Grants to individuals,24.50,4.08,20.42
Transformation and Partnerships,Business Support,065461,Business Support 065461,Supplies and Services,342033,Computers and Communications,04-Apr-2019,000008452639189,AMZNMktplace,5999,Computer hardware,32.74,5.46,27.28
Resources BK0010,Digital and Customer Services,065335,School Services - Implementations,Supplies and Services,304639,Equipment and Materials,04-Apr-2019,000008452639197,WWW.ALIEXPRESS.COM,5964,Technicians-supplies,58.59,0.00,58.59
Resources BK0010,Digital and Customer Services,065335,School Services - Implementations,Supplies and Services,304639,Equipment and Materials,04-Apr-2019,000008452639201,box.co.uk,5732,Technicians-supplies,34.92,5.82,29.10
Children and Young Peoples Services,Head of Childrens Social Care,085342,9 Cedar Drive Aycliffe,Supplies and Services,312011,Newspapers books and periodicals E312,04-Apr-2019,000008452639205,Amazon.co.uk MZ7TH4E84,5969,Books-school library,23.48,0.00,23.48
Regeneration and Local Services,Development and Housing,030771,Durham Advance Flexible Fund,Supplies and Services,328041,Clothing uniforms and laundry E328,04-Apr-2019,000008452639227,SHOE ZONE (INTERNET),5661,Clothing uniforms and laundry,24.99,0.00,24.99
Children and Young Peoples Services,Head of Early Help Inclusion & Vulnerable Children.,085957,Secure Management,Supplies and Services,384999,Miscellaneous Expenses,04-Apr-2019,000008452639235,VIVANTAGE,5047,Other expenses,61.10,10.18,50.92
Children and Young Peoples Services,Head of Early Help Inclusion & Vulnerable Children.,085956,Lumley,Supplies and Services,304405,Equipment and Materials,04-Apr-2019,000008452639239,DOMICILARY,8043,Medical supplies,13.92,2.32,11.60
Children and Young Peoples Services,Head of Early Help Inclusion & Vulnerable Children.,085956,Lumley,Supplies and Services,304405,Equipment and Materials,04-Apr-2019,000008452639239 - 1,DOMICILARY,8043,Medical supplies,31.08,,31.08
Transformation and Partnerships,Business Support,052986,CYPS - Locality and Operational Support,Supplies and Services,304259,Equipment and Materials,04-Apr-2019,000008452639243,HM PASSPORT OFFICE,9399,Equipment-purchase and rental,75.50,0.00,75.50
Transformation and Partnerships,Business Support,052986,CYPS - Locality and Operational Support,Employees,040149,Recruitment Instruction and Training,04-Apr-2019,000008452639249,LANCASHIRE CC CALL CEN,8299,Training-all costs,22.00,0.00,22.00
Transformation and Partnerships,Business Support,052986,CYPS - Locality and Operational Support,Supplies and Services,304259,Equipment and Materials,04-Apr-2019,000008452639253,Durham County CNCL,9399,Equipment-purchase and rental,11.00,0.00,11.00
Regeneration and Local Services,Culture Sport and Tourism,054235,Bishop Auckland Town Hall Cafe,Supplies and Services,324117,Provisions E324,04-Apr-2019,000008452639269,JR HOLLAND FOODSERVICE,5499,Catering costs - provisions,11.17,0.00,11.17
Regeneration and Local Services,Culture Sport and Tourism,011204,Festival and Events,Supplies and Services,364320,Grants to Voluntary Organisations,04-Apr-2019,000008452639275,"REDWORTH HALL, DARLING",7011,Accommodation assistance,206.85,0.00,206.85
Regeneration and Local Services,Corporate Property and Land,021324,Catering - Meadowfield,Supplies and Services,324117,Provisions E324,04-Apr-2019,000008452639283,JR HOLLAND FOODSERVICE,5499,Catering costs - provisions,10.35,0.00,10.35
Regeneration and Local Services,Corporate Property and Land,021324,Catering - Meadowfield,Supplies and Services,324117,Provisions E324,04-Apr-2019,000008452639285,JR HOLLAND FOODSERVICE,5499,Catering costs - provisions,60.80,0.00,60.80
Children and Young Peoples Services,Head of Education and Skills,070169,Durham SSP,Supplies and Services,384199,Miscellaneous Expenses,04-Apr-2019,000008452639313,Trainline.com,7922,Other hired and contracted services,53.39,0.00,53.39
Children and Young Peoples Services,Head of Education and Skills,070169,Durham SSP,Supplies and Services,384199,Miscellaneous Expenses,04-Apr-2019,000008452639317,NET WORLD SPORTS,5999,Other hired and contracted services,121.91,0.00,121.91
Regeneration and Local Services,Culture Sport and Tourism,011263,Louisa Centre 011263,Supplies and Services,304221,Equipment and Materials,04-Apr-2019,000008452639383,SCREWFIX CHESTER L,5211,Direct materials,59.98,0.00,59.98
Regeneration and Local Services,Development and Housing,031500,Housing Solutions - Core Team,Supplies and Services,352001,Conference Expenses,04-Apr-2019,000008452639409,HOTEL 52,7011,Conferencesseminars fees etc,307.96,0.00,307.96
Adult and Health Services,Head of Adults,055306,Spennymoor Pathways,Supplies and Services,304403,Equipment and Materials,04-Apr-2019,000008452639473,W BOYES & CO LTD NEWTO,5310,Other consumables,1.98,0.00,1.98
Adult and Health Services,Head of Adults,055306,Spennymoor Pathways,Supplies and Services,304403,Equipment and Materials,04-Apr-2019,000008452639479,WILKO RETAIL LIMIT,5722,Other consumables,2.25,0.00,2.25
Adult and Health Services,Head of Adults,055807,Newton Aycliffe Pathways,Supplies and Services,304403,Equipment and Materials,04-Apr-2019,000008452639483,WILKO RETAIL LIMIT,5722,Other consumables,2.00,0.00,2.00
Transformation and Partnerships,Business Support,069010,Administration 069010,Supplies and Services,304403,Equipment and Materials,04-Apr-2019,000008452639489,AMZNMKTPLACE AMAZON.CO,5999,Other consumables,18.90,3.15,15.75
Transformation and Partnerships,Business Support,069010,Administration 069010,Supplies and Services,304403,Equipment and Materials,04-Apr-2019,000008452639489 - 1,AMZNMKTPLACE AMAZON.CO,5999,Other consumables,3.60,,3.60
Regeneration and Local Services,Development and Housing,030771,Durham Advance Flexible Fund,Transport,235057,Public Transport,04-Apr-2019,000008452639513,GO NORTH EAST LIMITED,4131,Staff travelling,6.70,0.00,6.70
Regeneration and Local Services,Development and Housing,030771,Durham Advance Flexible Fund,Transport,235057,Public Transport,04-Apr-2019,000008452639517,GO NORTH EAST LIMITED,4131,Staff travelling,50.00,0.00,50.00
Regeneration and Local Services,Development and Housing,030771,Durham Advance Flexible Fund,Supplies and Services,304259,Equipment and Materials,04-Apr-2019,000008452639519,WWW.DURHAM.GOV.UK,9399,Equipment-purchase and rental,11.00,0.00,11.00
Regeneration and Local Services,Business Durham CL0850,030694,Plexus 2,Supplies and Services,324117,Provisions E324,04-Apr-2019,000008452639523,SAINSBURYS (2303),5411,Catering costs - provisions,17.40,0.00,17.40
Regeneration and Local Services,Development and Housing,030773,CLLD North,Transport,215995,Running Costs of Vehicles,05-Apr-2019,000006295396566,OUSTON SVS STN,5541,Vehicle running expenses,35.00,5.83,29.17
Regeneration and Local Services,Development and Housing,030773,CLLD North,Transport,235057,Public Transport,05-Apr-2019,000006295396570,RADAR TAXIS LIMITED,4121,Staff travelling,26.40,0.00,26.40
Regeneration and Local Services,Development and Housing,030773,CLLD North,Supplies and Services,328041,Clothing uniforms and laundry E328,05-Apr-2019,000006295396580,WORKWEAR EXPRESS LIMIT,5137,Clothing uniforms and laundry,66.71,11.12,55.59
Regeneration and Local Services,Business Durham CL0850,030699,Business Growth and Innovation General,Supplies and Services,342033,Computers and Communications,05-Apr-2019,000006295396660,STK Shutterstock,7333,Computer hardware,19.00,0.00,19.00
Transformation and Partnerships,Business Support,052986,CYPS - Locality and Operational Support,Supplies and Services,342033,Computers and Communications,05-Apr-2019,000006295396718,SQ COLOURFUL CHAMELEO,7333,Computer hardware,10.00,0.00,10.00
Regeneration and Local Services,Development and Housing,030544,Rural Employability - Client Engagement,Transport,230031,Contract Hire,05-Apr-2019,000006295396764,ARRIVA NORTH EAST,4131,Pupils-transport to play fields etc,25.50,0.00,25.50
Regeneration and Local Services,Corporate Property and Land,021242,Catering - County Hall,Supplies and Services,324117,Provisions E324,05-Apr-2019,000006295396772,HOPWELLS LTD,5811,Catering costs - provisions,252.55,0.00,252.55
Regeneration and Local Services,Corporate Property and Land,021242,Catering - County Hall,Supplies and Services,324117,Provisions E324,05-Apr-2019,000006295396776,HOPWELLS LTD,5811,Catering costs - provisions,243.64,0.00,243.64
Regeneration and Local Services,Corporate Property and Land,021242,Catering - County Hall,Supplies and Services,324117,Provisions E324,05-Apr-2019,000006295396786,HOPWELLS LTD,5811,Catering costs - provisions,112.14,0.00,112.14
Regeneration and Local Services,Corporate Property and Land,021242,Catering - County Hall,Premises,145009,Cleaning and Domestic Supplies,05-Apr-2019,000006295396796,ALLIANCE DISPOSABLES L,2842,Other cleaning and domestic costs,723.39,120.57,602.82
Regeneration and Local Services,Corporate Property and Land,021242,Catering - County Hall,Supplies and Services,324117,Provisions E324,05-Apr-2019,000006295396804,JR HOLLAND FOODSERVICE,5499,Catering costs - provisions,343.93,0.00,343.93
Regeneration and Local Services,Corporate Property and Land,021242,Catering - County Hall,Supplies and Services,324117,Provisions E324,05-Apr-2019,000006295396810,JR HOLLAND FOODSERVICE,5499,Catering costs - provisions,6.94,0.00,6.94
Regeneration and Local Services,Corporate Property and Land,021242,Catering - County Hall,Supplies and Services,324117,Provisions E324,05-Apr-2019,000006295396814,JR HOLLAND FOODSERVICE,5499,Catering costs - provisions,15.50,0.00,15.50
Regeneration and Local Services,Development and Housing,030544,Rural Employability - Client Engagement,Supplies and Services,384700,Miscellaneous Expenses,05-Apr-2019,000006295396822,ARRIVA NORTH EAST,4131,Miscellaneous grants,7.20,0.00,7.20
Regeneration and Local Services,Culture Sport and Tourism,054812,Gala Theatre - Catering etc,Supplies and Services,324117,Provisions E324,05-Apr-2019,000006295396830,HOPWELLS LTD,5811,Catering costs - provisions,117.11,0.00,117.11
Regeneration and Local Services,Culture Sport and Tourism,054812,Gala Theatre - Catering etc,Premises,145009,Cleaning and Domestic Supplies,05-Apr-2019,000006295396834,ALLIANCE DISPOSABLES L,2842,Other cleaning and domestic costs,147.48,24.58,122.90
Regeneration and Local Services,Culture Sport and Tourism,054812,Gala Theatre - Catering etc,Premises,145009,Cleaning and Domestic Supplies,05-Apr-2019,000006295396834 - 1,ALLIANCE DISPOSABLES L,2842,Other cleaning and domestic costs,0.06,,0.06
Children and Young Peoples Services,Head of Childrens Social Care,085511,Emergency Duty Team,Employees,040149,Recruitment Instruction and Training,05-Apr-2019,000006295396884,PREMIER INN,3811,Training-all costs,146.00,0.00,146.00
Regeneration and Local Services,Development and Housing,030773,CLLD North,Supplies and Services,324117,Provisions E324,05-Apr-2019,000006295396962,ASDA SUPERSTORE 4987,5411,Catering costs - provisions,54.95,0.00,54.95
Children and Young Peoples Services,Head of Childrens Social Care,085362,LAC & Permanence Team 2,Supplies and Services,384871,Miscellaneous Expenses,05-Apr-2019,000006295396968,PAYPAL BATTLEZONEP,5661,Training-other activities,30.00,0.00,30.00
Children and Young Peoples Services,Head of Childrens Social Care,085362,LAC & Permanence Team 2,Supplies and Services,384999,Miscellaneous Expenses,05-Apr-2019,000006295396974,WWW.NORTHYORKS.GOV.UK,9399,Other expenses,11.00,0.00,11.00
Children and Young Peoples Services,Head of Childrens Social Care,085334,West Rainton Satelite Home,Supplies and Services,324117,Provisions E324,05-Apr-2019,000006295397006,SAINSBURYS 0776,5411,Catering costs - provisions,9.95,0.00,9.95
Children and Young Peoples Services,Head of Childrens Social Care,085334,West Rainton Satelite Home,Supplies and Services,384999,Miscellaneous Expenses,05-Apr-2019,000006295397008,SMYTHS TOYS DURHAM,5945,Other expenses,14.99,0.00,14.99
Children and Young Peoples Services,Head of Childrens Social Care,085334,West Rainton Satelite Home,Supplies and Services,324117,Provisions E324,05-Apr-2019,000006295397014,TESCO STORES 2371,5411,Catering costs - provisions,124.48,0.00,124.48
Regeneration and Local Services,Environmental Services,031221,North Pennines - Bowlees,Supplies and Services,324117,Provisions E324,05-Apr-2019,000006295397164,LIDL GB CONSETT,5411,Catering costs - provisions,6.78,0.00,6.78
Regeneration and Local Services,Environmental Services,031221,North Pennines - Bowlees,Supplies and Services,304221,Equipment and Materials,05-Apr-2019,000006295397168,B & Q 1332,5211,Direct materials,3.78,0.00,3.78
Resources BK0010,Legal & Democratic Services,067910,Democratic Representation 067910,Supplies and Services,384965,Miscellaneous Expenses,05-Apr-2019,000006295397174,DURHAM CITY STUDIOS,7221,Civic Functions,175.00,29.17,145.83
Regeneration and Local Services,Development and Housing,031500,Housing Solutions - Core Team,Transport,235073,Public Transport,05-Apr-2019,000006295397330,CHEVRON TAXIS,4121,Travel-clients/students/children,20.50,0.00,20.50
Regeneration and Local Services,Development and Housing,031500,Housing Solutions - Core Team,Supplies and Services,364320,Grants to Voluntary Organisations,05-Apr-2019,000006295397336,PREMIER INN,3811,Accommodation assistance,245.50,0.00,245.50
Regeneration and Local Services,Business Durham CL0850,030674,Business Services General,Supplies and Services,304999,Equipment and Materials,05-Apr-2019,000006295397342,ENVATOMARKET46811971,5815,Misc equipment tools and materials,29.52,0.00,29.52
Children and Young Peoples Services,Head of Early Help Inclusion & Vulnerable Children.,071445,Chester le Street One Point Hub,Supplies and Services,324117,Provisions E324,05-Apr-2019,000006295397352,ASDA GROCERIES ONLINE,5411,Catering costs - provisions,56.00,0.00,56.00
Children and Young Peoples Services,Head of Early Help Inclusion & Vulnerable Children.,071445,Chester le Street One Point Hub,Supplies and Services,324117,Provisions E324,05-Apr-2019,000006295397356,ASDA GROCERIES ONLINE,5411,Catering costs - provisions,-20.00,0.00,-20.00
Children and Young Peoples Services,Head of Early Help Inclusion & Vulnerable Children.,085965,Barnard,Supplies and Services,324117,Provisions E324,05-Apr-2019,000006295397362,TESCO STORES 6329,5411,Catering costs - provisions,55.69,0.00,55.69
Children and Young Peoples Services,Head of Early Help Inclusion & Vulnerable Children.,085957,Secure Management,Supplies and Services,304403,Equipment and Materials,05-Apr-2019,000006295397368,AMZNMKTPLACE AMAZON.CO,5999,Other consumables,71.25,11.88,59.37
Regeneration and Local Services,Culture Sport and Tourism,054813,Gala Theatre - Technical,Supplies and Services,312011,Newspapers books and periodicals E312,05-Apr-2019,000006295397390,Amazon.co.uk MZ2BO51T4,5969,Books-school library,40.56,0.00,40.56
Regeneration and Local Services,Environmental Services,011060,C&G - Hardwick Park Catering,Supplies and Services,324117,Provisions E324,05-Apr-2019,000006295397410,HOPWELLS LTD,5811,Catering costs - provisions,254.22,42.37,211.85
Regeneration and Local Services,Environmental Services,011060,C&G - Hardwick Park Catering,Supplies and Services,324117,Provisions E324,05-Apr-2019,000006295397410 - 1,HOPWELLS LTD,5811,Catering costs - provisions,148.66,,148.66
Regeneration and Local Services,Environmental Services,011060,C&G - Hardwick Park Catering,Supplies and Services,324117,Provisions E324,05-Apr-2019,000006295397418,HOPWELLS LTD,5811,Catering costs - provisions,258.18,43.03,215.15
Regeneration and Local Services,Environmental Services,011060,C&G - Hardwick Park Catering,Supplies and Services,324117,Provisions E324,05-Apr-2019,000006295397418 - 1,HOPWELLS LTD,5811,Catering costs - provisions,109.12,,109.12
Regeneration and Local Services,Environmental Services,011060,C&G - Hardwick Park Catering,Supplies and Services,324117,Provisions E324,05-Apr-2019,000006295397436,HOPWELLS LTD,5811,Catering costs - provisions,-19.19,-1.23,-17.96
Regeneration and Local Services,Corporate Property and Land,021234,Catering - Locomotion,Supplies and Services,324117,Provisions E324,05-Apr-2019,000006295397456,HOPWELLS LTD,5811,Catering costs - provisions,22.20,3.70,18.50
Regeneration and Local Services,Corporate Property and Land,021234,Catering - Locomotion,Supplies and Services,324117,Provisions E324,05-Apr-2019,000006295397456 - 1,HOPWELLS LTD,5811,Catering costs - provisions,300.52,,300.52
Regeneration and Local Services,Corporate Property and Land,021234,Catering - Locomotion,Supplies and Services,324117,Provisions E324,05-Apr-2019,000006295397466,HOPWELLS LTD,5811,Catering costs - provisions,100.62,16.77,83.85
Regeneration and Local Services,Corporate Property and Land,021234,Catering - Locomotion,Supplies and Services,324117,Provisions E324,05-Apr-2019,000006295397466 - 1,HOPWELLS LTD,5811,Catering costs - provisions,138.42,,138.42
Regeneration and Local Services,Corporate Property and Land,021234,Catering - Locomotion,Supplies and Services,324117,Provisions E324,05-Apr-2019,000006295397474,HOPWELLS LTD,5811,Catering costs - provisions,15.02,0.00,15.02
Regeneration and Local Services,Corporate Property and Land,021234,Catering - Locomotion,Supplies and Services,324117,Provisions E324,05-Apr-2019,000006295397478,HOPWELLS LTD,5811,Catering costs - provisions,-15.02,0.00,-15.02
Children and Young Peoples Services,Head of Childrens Social Care,085334,West Rainton Satelite Home,Supplies and Services,332047,Printing Stationery and Gen Off Exps,05-Apr-2019,000006295397486,RYMAN,5943,Stationery,22.49,0.00,22.49
Regeneration and Local Services,Corporate Property and Land,010525,Catering - Green Lane,Supplies and Services,324117,Provisions E324,05-Apr-2019,000006295397490,HOPWELLS LTD,5811,Catering costs - provisions,158.66,0.00,158.66
Regeneration and Local Services,Corporate Property and Land,010525,Catering - Green Lane,Supplies and Services,324117,Provisions E324,05-Apr-2019,000006295397498,HOPWELLS LTD,5811,Catering costs - provisions,139.10,0.00,139.10
Children and Young Peoples Services,Head of Childrens Social Care,085352,Tow Law CU,Supplies and Services,304259,Equipment and Materials,05-Apr-2019,000006295397502,CURRYS ONLINE,5732,Equipment-purchase and rental,419.00,69.83,349.17
Children and Young Peoples Services,Head of Childrens Social Care,085551,Short Break Services-Park Hse Sher,Supplies and Services,324117,Provisions E324,05-Apr-2019,000006295397522,ICELAND,5411,Catering costs - provisions,16.00,0.00,16.00
Children and Young Peoples Services,Head of Childrens Social Care,085551,Short Break Services-Park Hse Sher,Supplies and Services,324117,Provisions E324,05-Apr-2019,000006295397528,ALDI 12 774,5411,Catering costs - provisions,52.01,8.67,43.34
Regeneration and Local Services,Development and Housing,030554,International Relations 030554,Transport,235057,Public Transport,05-Apr-2019,000006295397562,ROYAL DUTCH AIRLINES (KLM),3010,Staff travelling,274.28,0.00,274.28
Children and Young Peoples Services,Head of Childrens Social Care,085331,New Lea Childrens Home,Supplies and Services,308011,Furniture,05-Apr-2019,000006295397568,CLIFFORD CENTRE,5712,Furniture repair and replacement,119.95,0.00,119.95
Children and Young Peoples Services,Head of Childrens Social Care,085334,West Rainton Satelite Home,Supplies and Services,324117,Provisions E324,05-Apr-2019,000006295397622,SAINSBURYS SACAT 0776,5411,Catering costs - provisions,103.23,0.00,103.23
Regeneration and Local Services,Corporate Property and Land,020079,Bldg Serv - R&M Div 79- Electrical,Supplies and Services,304221,Equipment and Materials,05-Apr-2019,000006295397644,AMZNMktplace,5999,Direct materials,24.99,4.17,20.82
Regeneration and Local Services,Environmental Services,019100,Fleet - Strategic Fleet,Employees,040149,Recruitment Instruction and Training,05-Apr-2019,000006295397708,DSA,9399,Training-all costs,"1,000.00",0.00,1000.00
Regeneration and Local Services,Environmental Services,019100,Fleet - Strategic Fleet,Employees,040149,Recruitment Instruction and Training,05-Apr-2019,000006295397714,DSA,9399,Training-all costs,"1,000.00",0.00,1000.00
Regeneration and Local Services,Corporate Property and Land,030691,Catering - Durham Dales Centre,Supplies and Services,324117,Provisions E324,05-Apr-2019,000006295397740,HOPWELLS LTD,5811,Catering costs - provisions,63.84,10.64,53.20
Regeneration and Local Services,Corporate Property and Land,030691,Catering - Durham Dales Centre,Supplies and Services,324117,Provisions E324,05-Apr-2019,000006295397740 - 1,HOPWELLS LTD,5811,Catering costs - provisions,165.06,,165.06
Regeneration and Local Services,Corporate Property and Land,030691,Catering - Durham Dales Centre,Supplies and Services,324117,Provisions E324,05-Apr-2019,000006295397750,HOPWELLS LTD,5811,Catering costs - provisions,84.13,0.00,84.13
Regeneration and Local Services,Corporate Property and Land,030691,Catering - Durham Dales Centre,Supplies and Services,324117,Provisions E324,05-Apr-2019,000006295397756,HOPWELLS LTD,5811,Catering costs - provisions,83.82,0.00,83.82
Regeneration and Local Services,Corporate Property and Land,030691,Catering - Durham Dales Centre,Premises,145009,Cleaning and Domestic Supplies,05-Apr-2019,000006295397762,ALLIANCE DISPOSABLES L,2842,Other cleaning and domestic costs,102.06,17.01,85.05
Regeneration and Local Services,Corporate Property and Land,030691,Catering - Durham Dales Centre,Premises,145009,Cleaning and Domestic Supplies,05-Apr-2019,000006295397762 - 1,ALLIANCE DISPOSABLES L,2842,Other cleaning and domestic costs,38.13,,38.13
Adult and Health Services,Head of Adults,055643,Hawthorn House LD Respite Unit,Supplies and Services,324117,Provisions E324,05-Apr-2019,000006295397800,HOPWELLS LTD,5811,Catering costs - provisions,3.00,0.50,2.50
Adult and Health Services,Head of Adults,055643,Hawthorn House LD Respite Unit,Supplies and Services,324117,Provisions E324,05-Apr-2019,000006295397800 - 1,HOPWELLS LTD,5811,Catering costs - provisions,64.25,,64.25
Regeneration and Local Services,Culture Sport and Tourism,011204,Festival and Events,Supplies and Services,304403,Equipment and Materials,05-Apr-2019,000006295397900,PAYPAL Envato Market,5999,Other consumables,14.28,0.00,14.28
Transformation and Partnerships,Business Support,052986,CYPS - Locality and Operational Support,Transport,235057,Public Transport,05-Apr-2019,000006295397910,ARRIVA NORTH EAST,4131,Staff travelling,29.00,0.00,29.00
Children and Young Peoples Services,Head of Education and Skills,071903,EYDCP-Sustainability EDS,Supplies and Services,312011,Newspapers books and periodicals E312,05-Apr-2019,000006295397938,Amazon.co.uk MZ6NT50H4,5969,Books-school library,3.10,0.52,2.58
Children and Young Peoples Services,Head of Education and Skills,071903,EYDCP-Sustainability EDS,Supplies and Services,312011,Newspapers books and periodicals E312,05-Apr-2019,000006295397946,Amazon.co.uk MZ8K820E4,5969,Books-school library,5.10,0.85,4.25
Children and Young Peoples Services,Head of Education and Skills,071903,EYDCP-Sustainability EDS,Supplies and Services,304403,Equipment and Materials,05-Apr-2019,000006295397952,AMZNMktplace,5999,Other consumables,5.29,0.00,5.29
Children and Young Peoples Services,Head of Education and Skills,071903,EYDCP-Sustainability EDS,Supplies and Services,304403,Equipment and Materials,05-Apr-2019,000006295397954,AMZNMktplace,5999,Other consumables,5.37,0.90,4.47
Regeneration and Local Services,Culture Sport and Tourism,054235,Bishop Auckland Town Hall Cafe,Supplies and Services,324117,Provisions E324,05-Apr-2019,000006295397984,HOPWELLS LTD,5811,Catering costs - provisions,113.35,0.00,113.35
Regeneration and Local Services,Transport and Contracted Services,031701,Care Connect All Localities,Supplies and Services,304259,Equipment and Materials,05-Apr-2019,000006295397990,AMZNMktplace,5999,Equipment-purchase and rental,12.99,0.00,12.99
Regeneration and Local Services,Corporate Property and Land,021324,Catering - Meadowfield,Supplies and Services,324117,Provisions E324,05-Apr-2019,000006295398014,HOPWELLS LTD,5811,Catering costs - provisions,66.76,0.00,66.76
Regeneration and Local Services,Corporate Property and Land,021324,Catering - Meadowfield,Premises,145009,Cleaning and Domestic Supplies,05-Apr-2019,000006295398020,ALLIANCE DISPOSABLES L,2842,Other cleaning and domestic costs,181.21,30.20,151.01
Regeneration and Local Services,Business Durham CL0850,030671,Business Space 030671,Supplies and Services,342033,Computers and Communications,05-Apr-2019,000006295398036,WWW.NISBETS.COM,5964,Computer hardware,39.58,6.60,32.98
Children and Young Peoples Services,Head of Childrens Social Care,085333,Coxhoe Satelite Home,Supplies and Services,324117,Provisions E324,05-Apr-2019,000006295398072,TESCO STORES 2916,5411,Catering costs - provisions,75.50,0.00,75.50
Children and Young Peoples Services,Head of Education and Skills,070169,Durham SSP,Supplies and Services,384199,Miscellaneous Expenses,05-Apr-2019,000006295398114,WUKI_EDUCAREEV,5691,Other hired and contracted services,420.74,70.12,350.62
Transformation and Partnerships,Business Support,069010,Administration 069010,Supplies and Services,312011,Newspapers books and periodicals E312,05-Apr-2019,000006295398294,Amazon.co.uk MZ9X48064,5969,Books-school library,310.50,0.00,310.50
Regeneration and Local Services,Corporate Property and Land,021235,Catering - Wharton Park,Supplies and Services,324117,Provisions E324,05-Apr-2019,000006295398340,HOPWELLS LTD,5811,Catering costs - provisions,253.92,42.32,211.60
Regeneration and Local Services,Corporate Property and Land,021235,Catering - Wharton Park,Supplies and Services,324117,Provisions E324,05-Apr-2019,000006295398340 - 1,HOPWELLS LTD,5811,Catering costs - provisions,14.89,,14.89
Regeneration and Local Services,Corporate Property and Land,021235,Catering - Wharton Park,Supplies and Services,324117,Provisions E324,05-Apr-2019,000006295398352,HOPWELLS LTD,5811,Catering costs - provisions,41.64,6.94,34.70
Regeneration and Local Services,Corporate Property and Land,021235,Catering - Wharton Park,Supplies and Services,324117,Provisions E324,05-Apr-2019,000006295398352 - 1,HOPWELLS LTD,5811,Catering costs - provisions,80.89,,80.89
Regeneration and Local Services,Corporate Property and Land,021235,Catering - Wharton Park,Premises,145009,Cleaning and Domestic Supplies,05-Apr-2019,000006295398366,ALLIANCE DISPOSABLES L,2842,Other cleaning and domestic costs,91.24,15.21,76.03
Children and Young Peoples Services,Head of Childrens Social Care,085363,LAC & Permanence Team 3,Supplies and Services,304259,Equipment and Materials,05-Apr-2019,000006295398392,SUNDERLAND CC,9399,Equipment-purchase and rental,66.00,0.00,66.00
Children and Young Peoples Services,Head of Childrens Social Care,085363,LAC & Permanence Team 3,Supplies and Services,304259,Equipment and Materials,05-Apr-2019,000006295398404,CITY OF NEWCASTLE INTE,9399,Equipment-purchase and rental,22.00,0.00,22.00
Children and Young Peoples Services,Head of Childrens Social Care,085363,LAC & Permanence Team 3,Supplies and Services,304259,Equipment and Materials,05-Apr-2019,000006295398410,DARLINGTON BC INTERNET,9399,Equipment-purchase and rental,11.00,0.00,11.00
Children and Young Peoples Services,Head of Childrens Social Care,085363,LAC & Permanence Team 3,Supplies and Services,304259,Equipment and Materials,05-Apr-2019,000006295398416,DARLINGTON BC INTERNET,9399,Equipment-purchase and rental,22.00,0.00,22.00
Children and Young Peoples Services,Head of Childrens Social Care,085363,LAC & Permanence Team 3,Supplies and Services,304259,Equipment and Materials,05-Apr-2019,000006295398424,DARLINGTON BC INTERNET,9399,Equipment-purchase and rental,22.00,0.00,22.00
Children and Young Peoples Services,Head of Childrens Social Care,085363,LAC & Permanence Team 3,Supplies and Services,304259,Equipment and Materials,05-Apr-2019,000006295398430,Durham County CNCL,9399,Equipment-purchase and rental,110.00,0.00,110.00
Regeneration and Local Services,Business Durham CL0850,030694,Plexus 2,Supplies and Services,324117,Provisions E324,05-Apr-2019,000006295398520,SAINSBURYS SACAT (2303,5411,Catering costs - provisions,3.15,0.00,3.15
Children and Young Peoples Services,Head of Early Help Inclusion & Vulnerable Children.,085810,CDYOS - Interventions Team,Supplies and Services,324117,Provisions E324,05-Apr-2019,000006295398542,WILKO.COM,5399,Catering costs - provisions,10.00,0.00,10.00
Regeneration and Local Services,Environmental Services,011060,C&G - Hardwick Park Catering,Supplies and Services,324117,Provisions E324,05-Apr-2019,000006303691610,BATLEYS PERTH,5300,Catering costs - provisions,264.66,44.11,220.55
Regeneration and Local Services,Environmental Services,011060,C&G - Hardwick Park Catering,Supplies and Services,324117,Provisions E324,05-Apr-2019,000006303691610 - 1,BATLEYS PERTH,5300,Catering costs - provisions,265.39,,265.39
Regeneration and Local Services,Corporate Property and Land,010525,Catering - Green Lane,Supplies and Services,324117,Provisions E324,05-Apr-2019,000006303691654,BATLEYS PERTH,5300,Catering costs - provisions,159.66,26.61,133.05
Regeneration and Local Services,Corporate Property and Land,010525,Catering - Green Lane,Supplies and Services,324117,Provisions E324,05-Apr-2019,000006303691654 - 1,BATLEYS PERTH,5300,Catering costs - provisions,70.35,,70.35
Adult and Health Services,Head of Adults,055643,Hawthorn House LD Respite Unit,Supplies and Services,324117,Provisions E324,05-Apr-2019,000006303691768,BATLEYS PERTH,5300,Catering costs - provisions,17.94,2.99,14.95
Adult and Health Services,Head of Adults,055643,Hawthorn House LD Respite Unit,Supplies and Services,324117,Provisions E324,05-Apr-2019,000006303691768 - 1,BATLEYS PERTH,5300,Catering costs - provisions,89.86,,89.86
Children and Young Peoples Services,Head of Early Help Inclusion & Vulnerable Children.,085957,Secure Management,Supplies and Services,304245,Equipment and Materials,05-Apr-2019,000006303691804,WWW.IRONMONGERYDIRECT.,5231,Materials,45.84,7.64,38.20
Transformation and Partnerships,Business Support,065461,Business Support 065461,Supplies and Services,342053,Computers and Communications,05-Apr-2019,000008452637931,BITEABLE PTY LTD,7392,Computer software,0.61,0.00,0.61
Regeneration and Local Services,Business Durham CL0850,030699,Business Growth and Innovation General,Supplies and Services,304403,Equipment and Materials,05-Apr-2019,000008452637991,MEETEDGAR MONTHLY,5734,Other consumables,1.03,0.00,1.03
Resources BK0010,Digital and Customer Services,070110,School Services - Man Info System (MIS) Support Team,Supplies and Services,304403,Equipment and Materials,06-Apr-2019,000006295396530,AMZNMktplace,5999,Other consumables,14.04,2.34,11.70
Resources BK0010,Digital and Customer Services,070110,School Services - Man Info System (MIS) Support Team,Supplies and Services,304403,Equipment and Materials,06-Apr-2019,000006295396530 - 1,AMZNMktplace,5999,Other consumables,8.93,,8.93
Children and Young Peoples Services,Head of Childrens Social Care,085342,9 Cedar Drive Aycliffe,Supplies and Services,332047,Printing Stationery and Gen Off Exps,06-Apr-2019,000006295396648,VUE BSL SITE,7832,Stationery,5.29,0.00,5.29
Children and Young Peoples Services,Head of Childrens Social Care,085342,9 Cedar Drive Aycliffe,Supplies and Services,332047,Printing Stationery and Gen Off Exps,06-Apr-2019,000006295396656,VUE CINEMAS WWW,7832,Stationery,15.48,0.00,15.48
Transformation and Partnerships,Business Support,052986,CYPS - Locality and Operational Support,Supplies and Services,342033,Computers and Communications,06-Apr-2019,000006295396722,SQ COLOURFUL CHAMELEO,7333,Computer hardware,113.90,0.00,113.90
Transformation and Partnerships,Business Support,052986,CYPS - Locality and Operational Support,Supplies and Services,324117,Provisions E324,06-Apr-2019,000006295397032,TESCO STORES 2916,5411,Catering costs - provisions,5.00,0.00,5.00
Children and Young Peoples Services,Head of Early Help Inclusion & Vulnerable Children.,085956,Lumley,Supplies and Services,324117,Provisions E324,06-Apr-2019,000006295397370,TESCO STORES 6329,5411,Catering costs - provisions,54.33,0.00,54.33
Children and Young Peoples Services,Head of Early Help Inclusion & Vulnerable Children.,085957,Secure Management,Supplies and Services,304999,Equipment and Materials,06-Apr-2019,000006295397380,TESCO DELIVERY SAVER2,5968,Misc equipment tools and materials,6.99,0.00,6.99
Regeneration and Local Services,Culture Sport and Tourism,054813,Gala Theatre - Technical,Supplies and Services,304403,Equipment and Materials,06-Apr-2019,000006295397394,AMZNMktplace,5999,Other consumables,12.20,0.00,12.20
Regeneration and Local Services,Development and Housing,031500,Housing Solutions - Core Team,Employees,040149,Recruitment Instruction and Training,06-Apr-2019,000006295397680,PREMIER INN,3811,Training-all costs,189.00,31.50,157.50
Children and Young Peoples Services,Head of Childrens Social Care,085342,9 Cedar Drive Aycliffe,Supplies and Services,324117,Provisions E324,06-Apr-2019,000006295397850,TESCO STORES 2916,5411,Catering costs - provisions,72.57,0.00,72.57
Children and Young Peoples Services,Head of Early Help Inclusion & Vulnerable Children.,085962,Aycliffe Secure - Durham,Supplies and Services,328041,Clothing uniforms and laundry E328,06-Apr-2019,000006295397882,WWW.NIKESTORE.COM,5691,Clothing uniforms and laundry,90.47,15.08,75.39
Children and Young Peoples Services,Head of Education and Skills,071903,EYDCP-Sustainability EDS,Supplies and Services,312011,Newspapers books and periodicals E312,06-Apr-2019,000006295397960,AMZN Mktp UK MZ9Y121X4,5942,Books-school library,7.34,0.00,7.34
Children and Young Peoples Services,Head of Education and Skills,071903,EYDCP-Sustainability EDS,Supplies and Services,304403,Equipment and Materials,06-Apr-2019,000006295397964,AMZNMktplace,5999,Other consumables,3.04,0.00,3.04
Children and Young Peoples Services,Head of Education and Skills,071903,EYDCP-Sustainability EDS,Supplies and Services,304403,Equipment and Materials,06-Apr-2019,000006295397970,AMZNMktplace,5999,Other consumables,6.45,0.00,6.45
Regeneration and Local Services,Environmental Services,026591,C&G - Hardwick Park,Supplies and Services,332047,Printing Stationery and Gen Off Exps,06-Apr-2019,000006295397998,Amazon.co.uk MZ7HH10A4,5969,Stationery,7.98,0.00,7.98
Children and Young Peoples Services,Head of Childrens Social Care,085332,Middlestone Moor CU,Premises,115125,Repairs to Grounds,06-Apr-2019,000006295398162,HOMEBASE LTD 511,5211,General maintenance,12.00,0.00,12.00
Children and Young Peoples Services,Head of Childrens Social Care,085333,Coxhoe Satelite Home,Transport,235057,Public Transport,07-Apr-2019,000006295396990,LNER WEB SALES,4112,Staff travelling,106.40,0.00,106.40
Children and Young Peoples Services,Head of Early Help Inclusion & Vulnerable Children.,085954,Walworth,Supplies and Services,324117,Provisions E324,07-Apr-2019,000006295397376,TESCO STORES 6329,5411,Catering costs - provisions,111.01,0.00,111.01
Children and Young Peoples Services,Head of Childrens Social Care,085333,Coxhoe Satelite Home,Supplies and Services,324117,Provisions E324,07-Apr-2019,000006295397656,TESCO STORES 2371,5411,Catering costs - provisions,47.25,0.00,47.25
Children and Young Peoples Services,Head of Childrens Social Care,085333,Coxhoe Satelite Home,Supplies and Services,324117,Provisions E324,07-Apr-2019,000006295397662,TESCO STORES 2371,5411,Catering costs - provisions,14.55,0.00,14.55
Children and Young Peoples Services,Head of Childrens Social Care,085333,Coxhoe Satelite Home,Supplies and Services,304403,Equipment and Materials,07-Apr-2019,000006295397668,CARD FACTORY,5947,Other consumables,5.48,0.00,5.48
Resources BK0010,Resources Management CK0450,069000,Resources Management 069000,Supplies and Services,324117,Provisions E324,07-Apr-2019,000006295397674,CO-OP GROUP 310016,5411,Catering costs - provisions,9.80,0.00,9.80
Children and Young Peoples Services,Head of Childrens Social Care,085537,Full Circle,Supplies and Services,304403,Equipment and Materials,07-Apr-2019,000006295397728,AMZNMktplace,5999,Other consumables,78.01,0.00,78.01
Regeneration and Local Services,Culture Sport and Tourism,011215,Museums Heritage & Collections 011215,Supplies and Services,332047,Printing Stationery and Gen Off Exps,07-Apr-2019,000006295397808,AMZN Mktp UK MZ6X01P54,5942,Stationery,21.71,0.00,21.71
Regeneration and Local Services,Culture Sport and Tourism,011215,Museums Heritage & Collections 011215,Supplies and Services,332047,Printing Stationery and Gen Off Exps,07-Apr-2019,000006295397816,AMZNMktplace,5999,Stationery,18.04,0.00,18.04
Children and Young Peoples Services,Head of Early Help Inclusion & Vulnerable Children.,085954,Walworth,Supplies and Services,328041,Clothing uniforms and laundry E328,07-Apr-2019,000006295397888,WWW.NIKESTORE.COM,5691,Clothing uniforms and laundry,111.47,0.00,111.47
Children and Young Peoples Services,Head of Education and Skills,071903,EYDCP-Sustainability EDS,Supplies and Services,304403,Equipment and Materials,07-Apr-2019,000006295397976,AMZNMktplace,5999,Other consumables,68.46,0.00,68.46
Adult and Health Services,Commissioning inc Supporting People,052100,Supporting the Provider Market,Supplies and Services,304403,Equipment and Materials,07-Apr-2019,000006295398302,AMZNMktplace,5999,Other consumables,310.56,51.76,258.80
Transformation and Partnerships,Business Support,069010,Administration 069010,Supplies and Services,304403,Equipment and Materials,07-Apr-2019,000006295398302 - 1,AMZNMktplace,5999,Other consumables,41.92,,41.92
Transformation and Partnerships,Business Support,069010,Administration 069010,Supplies and Services,304403,Equipment and Materials,07-Apr-2019,000006295398308,AMZNMktplace,5999,Other consumables,41.98,0.00,41.98
Regeneration and Local Services,Business Durham CL0850,030674,Business Services General,Supplies and Services,304999,Equipment and Materials,08-Apr-2019,000006295397346,ENVATOMARKET46811971,5815,Misc equipment tools and materials,0.81,0.00,0.81
Children and Young Peoples Services,Head of Education and Skills,071801,Selby Cottage Childcare Centre,Supplies and Services,304999,Equipment and Materials,08-Apr-2019,000006303691164,Amazon Prime MZ1U73GO4,5968,Misc equipment tools and materials,7.99,0.00,7.99
Children and Young Peoples Services,Head of Education and Skills,071801,Selby Cottage Childcare Centre,Supplies and Services,324117,Provisions E324,08-Apr-2019,000006303691172,TESCO STORES 2278,5411,Catering costs - provisions,16.45,0.00,16.45
Resources BK0010,Digital and Customer Services,065432,Web Development Group,Supplies and Services,342053,Computers and Communications,08-Apr-2019,000006303691178,WORDFENCE,5045,Computer software,452.32,0.00,452.32
Resources BK0010,Digital and Customer Services,065432,Web Development Group,Supplies and Services,342053,Computers and Communications,08-Apr-2019,000006303691184,WORDFENCE,5045,Computer software,741.19,0.00,741.19
Children and Young Peoples Services,Head of Education and Skills,075021,Youth Employment Initiative,Supplies and Services,384199,Miscellaneous Expenses,08-Apr-2019,000006303691214,VUE NCS CITB HS&E TEST,8299,Other hired and contracted services,21.00,0.00,21.00
Children and Young Peoples Services,Head of Education and Skills,075021,Youth Employment Initiative,Supplies and Services,384199,Miscellaneous Expenses,08-Apr-2019,000006303691218,WWW.REED.CO.UK,7361,Other hired and contracted services,25.00,0.00,25.00
Regeneration and Local Services,Environmental Services,031200,North Pennines Core,Supplies and Services,304083,Equipment and Materials,08-Apr-2019,000006303691222,WWW.IKEA.COM,5712,Catering equipment,63.45,0.00,63.45
Children and Young Peoples Services,Head of Childrens Social Care,085332,Middlestone Moor CU,Supplies and Services,324117,Provisions E324,08-Apr-2019,000006303691228,ALDI 59 774,5411,Catering costs - provisions,44.90,0.00,44.90
Children and Young Peoples Services,Head of Childrens Social Care,085333,Coxhoe Satelite Home,Supplies and Services,348037,Subsistence E348,08-Apr-2019,000006303691282,COAST TO COAST 7517,5812,Subsistence,46.10,0.00,46.10
Children and Young Peoples Services,Head of Childrens Social Care,085333,Coxhoe Satelite Home,Supplies and Services,304999,Equipment and Materials,08-Apr-2019,000006303691286,SAVERS HEALTH & BEAUTY,5912,Misc equipment tools and materials,6.73,0.00,6.73
Regeneration and Local Services,Environmental Services,010367,C&G - South Grounds Maintenance,Supplies and Services,304403,Equipment and Materials,08-Apr-2019,000006303691294,MAXWELLS DIY,5231,Other consumables,29.98,5.00,24.98
Regeneration and Local Services,Environmental Services,010367,C&G - South Grounds Maintenance,Supplies and Services,304221,Equipment and Materials,08-Apr-2019,000006303691300,SCREWFIX PETERLEE,5211,Direct materials,54.99,9.17,45.82
Children and Young Peoples Services,Head of Childrens Social Care,085624,Families First Crook,Supplies and Services,384199,Miscellaneous Expenses,08-Apr-2019,000006303691318,"SQ LITTLE CHEFS, BIG",8398,Other hired and contracted services,1.00,0.00,1.00
Regeneration and Local Services,Corporate Property and Land,021242,Catering - County Hall,Supplies and Services,324117,Provisions E324,08-Apr-2019,000006303691326,FREEMAN CATERING BUTCH,5422,Catering costs - provisions,46.86,0.00,46.86
Regeneration and Local Services,Corporate Property and Land,021242,Catering - County Hall,Supplies and Services,324117,Provisions E324,08-Apr-2019,000006303691334,FREEMAN CATERING BUTCH,5422,Catering costs - provisions,209.60,0.00,209.60
Regeneration and Local Services,Corporate Property and Land,021242,Catering - County Hall,Supplies and Services,324117,Provisions E324,08-Apr-2019,000006303691336,FREEMAN CATERING BUTCH,5422,Catering costs - provisions,216.02,0.00,216.02
Regeneration and Local Services,Corporate Property and Land,021242,Catering - County Hall,Supplies and Services,324117,Provisions E324,08-Apr-2019,000006303691342,FREEMAN CATERING BUTCH,5422,Catering costs - provisions,62.92,0.00,62.92
Regeneration and Local Services,Culture Sport and Tourism,054233,Bishop Auckland Town Hall Library,Supplies and Services,324117,Provisions E324,08-Apr-2019,000006303691348,HERON FOODS LTD,5499,Catering costs - provisions,4.36,0.00,4.36
Resources BK0010,Digital and Customer Services,065481,Technical Services 065481,Supplies and Services,372009,Subscriptions E372,08-Apr-2019,000006303691356,NOMINET UK,7392,Subscriptions 372009,13.50,2.25,11.25
Resources BK0010,Digital and Customer Services,065481,Technical Services 065481,Supplies and Services,372009,Subscriptions E372,08-Apr-2019,000006303691362,NOMINET UK,7392,Subscriptions 372009,9.00,1.50,7.50
Regeneration and Local Services,Culture Sport and Tourism,054812,Gala Theatre - Catering etc,Supplies and Services,324117,Provisions E324,08-Apr-2019,000006303691384,FREEMAN CATERING BUTCH,5422,Catering costs - provisions,107.08,0.00,107.08
Regeneration and Local Services,Culture Sport and Tourism,054812,Gala Theatre - Catering etc,Supplies and Services,324117,Provisions E324,08-Apr-2019,000006303691392,FREEMAN CATERING BUTCH,5422,Catering costs - provisions,16.89,0.00,16.89
Children and Young Peoples Services,Head of Childrens Social Care,085362,LAC & Permanence Team 2,Supplies and Services,384871,Miscellaneous Expenses,08-Apr-2019,000006303691412,WWW.INFINITEAIR.CO.UK,7991,Training-other activities,47.80,0.00,47.80
Children and Young Peoples Services,Head of Childrens Social Care,085361,LAC & Permanence Team 1,Supplies and Services,384999,Miscellaneous Expenses,08-Apr-2019,000006303691418,CITY OF NEWCASTLE INTE,9399,Other expenses,93.01,0.00,93.01
Children and Young Peoples Services,Head of Childrens Social Care,085333,Coxhoe Satelite Home,Supplies and Services,304403,Equipment and Materials,08-Apr-2019,000006303691428,AMZNMktplace,5999,Other consumables,19.90,0.00,19.90
Children and Young Peoples Services,Head of Childrens Social Care,085333,Coxhoe Satelite Home,Supplies and Services,304403,Equipment and Materials,08-Apr-2019,000006303691436,AMZNMktplace,5999,Other consumables,11.04,0.00,11.04
Children and Young Peoples Services,Head of Childrens Social Care,085333,Coxhoe Satelite Home,Supplies and Services,312011,Newspapers books and periodicals E312,08-Apr-2019,000006303691440,AMZN Mktp UK MZ5A47G54,5942,Books-school library,4.07,0.00,4.07
Regeneration and Local Services,Development and Housing,031576,B& B - Temp Accom,Supplies and Services,364320,Grants to Voluntary Organisations,08-Apr-2019,000006303691448,HAYAT HOTEL,7011,Accommodation assistance,250.00,0.00,250.00
Transformation and Partnerships,Business Support,052986,CYPS - Locality and Operational Support,Supplies and Services,324117,Provisions E324,08-Apr-2019,000006303691462,ASDA STORES,5411,Catering costs - provisions,51.24,0.00,51.24
Children and Young Peoples Services,Head of Childrens Social Care,085342,9 Cedar Drive Aycliffe,Transport,235057,Public Transport,08-Apr-2019,000006303691478,Trainline,4112,Staff travelling,18.90,0.00,18.90
Children and Young Peoples Services,Head of Education and Skills,071732,Dean Bank Childcare,Supplies and Services,312011,Newspapers books and periodicals E312,08-Apr-2019,000006303691510,AMZN Mktp UK MZ0P39PJ4,5942,Books-school library,8.95,0.00,8.95
Children and Young Peoples Services,Head of Education and Skills,071732,Dean Bank Childcare,Supplies and Services,304403,Equipment and Materials,08-Apr-2019,000006303691514,AMZNMktplace,5999,Other consumables,19.55,0.00,19.55
Children and Young Peoples Services,Head of Education and Skills,071732,Dean Bank Childcare,Supplies and Services,312011,Newspapers books and periodicals E312,08-Apr-2019,000006303691518,AMZN Mktp UK MZ80J6G74,5942,Books-school library,22.99,0.00,22.99
Children and Young Peoples Services,Head of Education and Skills,071732,Dean Bank Childcare,Supplies and Services,304403,Equipment and Materials,08-Apr-2019,000006303691524,AMZNMktplace,5999,Other consumables,36.45,0.00,36.45
Children and Young Peoples Services,Head of Education and Skills,071732,Dean Bank Childcare,Supplies and Services,304403,Equipment and Materials,08-Apr-2019,000006303691530,AMZNMktplace,5999,Other consumables,7.63,0.00,7.63
Children and Young Peoples Services,Head of Education and Skills,071732,Dean Bank Childcare,Supplies and Services,324117,Provisions E324,08-Apr-2019,000006303691536,ASDA GROCERIES ONLINE,5411,Catering costs - provisions,83.10,0.00,83.10
Regeneration and Local Services,Environmental Services,031221,North Pennines - Bowlees,Supplies and Services,324117,Provisions E324,08-Apr-2019,000006303691542,TESCO STORES 4358,5411,Catering costs - provisions,24.00,0.00,24.00
Children and Young Peoples Services,Head of Childrens Social Care,085334,West Rainton Satelite Home,Supplies and Services,324117,Provisions E324,08-Apr-2019,000006303691548,SPAR,5411,Catering costs - provisions,13.44,0.00,13.44
Children and Young Peoples Services,Head of Childrens Social Care,085334,West Rainton Satelite Home,Supplies and Services,304221,Equipment and Materials,08-Apr-2019,000006303691550,B & Q 1343,5211,Direct materials,106.73,0.00,106.73
Children and Young Peoples Services,Head of Childrens Social Care,085334,West Rainton Satelite Home,Supplies and Services,384999,Miscellaneous Expenses,08-Apr-2019,000006303691554,SILKSWORTH SPORTS,7997,Other expenses,30.00,0.00,30.00
Children and Young Peoples Services,Head of Childrens Social Care,085334,West Rainton Satelite Home,Supplies and Services,304259,Equipment and Materials,08-Apr-2019,000006303691558,DCC Theatres,9399,Equipment-purchase and rental,14.25,0.00,14.25
Regeneration and Local Services,Environmental Services,010301,C&G - North Grounds Maintenance,Supplies and Services,304403,Equipment and Materials,08-Apr-2019,000006303691584,BESCOL,5231,Other consumables,131.21,21.87,109.34
Regeneration and Local Services,Environmental Services,010301,C&G - North Grounds Maintenance,Supplies and Services,304221,Equipment and Materials,08-Apr-2019,000006303691590,HARELAW SAWMILL,5211,Direct materials,234.43,39.07,195.36
Regeneration and Local Services,Culture Sport and Tourism,054813,Gala Theatre - Technical,Supplies and Services,304259,Equipment and Materials,08-Apr-2019,000006303691606,Prime Video MZ15E9G44,5735,Equipment-purchase and rental,6.99,0.00,6.99
Regeneration and Local Services,Environmental Services,011060,C&G - Hardwick Park Catering,Supplies and Services,324117,Provisions E324,08-Apr-2019,000006303691618,FREEMAN CATERING BUTCH,5422,Catering costs - provisions,63.25,0.00,63.25
Regeneration and Local Services,Culture Sport and Tourism,054815,Gala Theatre Stage School,Supplies and Services,304403,Equipment and Materials,08-Apr-2019,000006303691626,AMZNMktplace,5999,Other consumables,40.00,0.00,40.00
Regeneration and Local Services,Culture Sport and Tourism,054815,Gala Theatre Stage School,Supplies and Services,324117,Provisions E324,08-Apr-2019,000006303691630,SAINSBURYS SACAT 0776,5411,Catering costs - provisions,47.50,0.00,47.50
Children and Young Peoples Services,Head of Childrens Social Care,085334,West Rainton Satelite Home,Supplies and Services,324117,Provisions E324,08-Apr-2019,000006303691644,TESCO STORES 2371,5411,Catering costs - provisions,34.67,0.00,34.67
Regeneration and Local Services,Corporate Property and Land,010525,Catering - Green Lane,Supplies and Services,324117,Provisions E324,08-Apr-2019,000006303691660,FREEMAN CATERING BUTCH,5422,Catering costs - provisions,71.65,0.00,71.65
Regeneration and Local Services,Corporate Property and Land,010525,Catering - Green Lane,Supplies and Services,324117,Provisions E324,08-Apr-2019,000006303691666,FREEMAN CATERING BUTCH,5422,Catering costs - provisions,42.72,0.00,42.72
Children and Young Peoples Services,Head of Childrens Social Care,085352,Tow Law CU,Supplies and Services,304221,Equipment and Materials,08-Apr-2019,000006303691670,SCREWFIX DARLINGTON,5211,Direct materials,8.73,1.46,7.27
Transformation and Partnerships,Communications Management,060131,County Records,Supplies and Services,328041,Clothing uniforms and laundry E328,08-Apr-2019,000006303691676,WWW.EXPORTAGLOBAL.CO.U,5699,Clothing uniforms and laundry,51.55,0.00,51.55
Children and Young Peoples Services,Head of Early Help Inclusion & Vulnerable Children.,088108,Spennymoor & Shildon 0-19 Targeted Family Support,Supplies and Services,324117,Provisions E324,08-Apr-2019,000006303691686,ASDA STORES,5411,Catering costs - provisions,30.40,0.00,30.40
Regeneration and Local Services,Development and Housing,030771,Durham Advance Flexible Fund,Supplies and Services,384700,Miscellaneous Expenses,08-Apr-2019,000006303691724,GEN REGISTER OFFICE,9399,Miscellaneous grants,14.00,0.00,14.00
Children and Young Peoples Services,Head of Childrens Social Care,085352,Tow Law CU,Supplies and Services,324117,Provisions E324,08-Apr-2019,000006303691744,ASDA STORES,5411,Catering costs - provisions,127.28,0.00,127.28
Regeneration and Local Services,Corporate Property and Land,030691,Catering - Durham Dales Centre,Supplies and Services,324117,Provisions E324,08-Apr-2019,000006303691748,FREEMAN CATERING BUTCH,5422,Catering costs - provisions,21.88,0.00,21.88
Regeneration and Local Services,Corporate Property and Land,030691,Catering - Durham Dales Centre,Supplies and Services,324117,Provisions E324,08-Apr-2019,000006303691754,FREEMAN CATERING BUTCH,5422,Catering costs - provisions,62.96,0.00,62.96
Regeneration and Local Services,Corporate Property and Land,030691,Catering - Durham Dales Centre,Supplies and Services,324117,Provisions E324,08-Apr-2019,000006303691760,FREEMAN CATERING BUTCH,5422,Catering costs - provisions,165.59,0.00,165.59
Adult and Health Services,Head of Adults,055643,Hawthorn House LD Respite Unit,Supplies and Services,324117,Provisions E324,08-Apr-2019,000006303691772,FREEMAN CATERING BUTCH,5422,Catering costs - provisions,41.46,0.00,41.46
Regeneration and Local Services,Environmental Services,010301,C&G - North Grounds Maintenance,Supplies and Services,324117,Provisions E324,08-Apr-2019,000006303691786,J VAN VLIET GATESHEAD,5399,Catering costs - provisions,109.44,18.24,91.20
Children and Young Peoples Services,Head of Early Help Inclusion & Vulnerable Children.,071445,Chester le Street One Point Hub,Supplies and Services,312011,Newspapers books and periodicals E312,08-Apr-2019,000006303691792,AMZN Mktp UK MZ6C56GY4,5942,Books-school library,25.25,0.00,25.25
Children and Young Peoples Services,Head of Early Help Inclusion & Vulnerable Children.,085957,Secure Management,Supplies and Services,304245,Equipment and Materials,08-Apr-2019,000006303691798,FAST KEY SERVICES LIMI,7399,Materials,33.27,5.55,27.72
Resources BK0010,Legal & Democratic Services,067953,Coroner County Durham & Darlington,Supplies and Services,384199,Miscellaneous Expenses,08-Apr-2019,000006303691812,EYE NETWORK,5732,Other hired and contracted services,162.00,27.00,135.00
Regeneration and Local Services,Transport and Contracted Services,032061,Traffic 032061,Supplies and Services,304259,Equipment and Materials,08-Apr-2019,000006303691820,WWW.RADIO-SOLUTION.CO.,5732,Equipment-purchase and rental,383.98,64.00,319.98
Children and Young Peoples Services,Head of Education and Skills,071903,EYDCP-Sustainability EDS,Employees,040149,Recruitment Instruction and Training,08-Apr-2019,000006303691846,WWW.KATHYBRODIE.COM,8999,Training-all costs,15.00,0.00,15.00
Regeneration and Local Services,Environmental Services,026591,C&G - Hardwick Park,Supplies and Services,332047,Printing Stationery and Gen Off Exps,08-Apr-2019,000006303691850,AMZNMKTPLACE AMAZON.CO,5999,Stationery,5.99,0.00,5.99
Regeneration and Local Services,Environmental Services,026591,C&G - Hardwick Park,Supplies and Services,304337,Equipment and Materials,08-Apr-2019,000006303691856,WWW.ANGELWHOLESALE.CO.,5970,Consumables/items for resale,173.73,28.96,144.77
Regeneration and Local Services,Corporate Property and Land,021324,Catering - Meadowfield,Supplies and Services,324117,Provisions E324,08-Apr-2019,000006303691872,FREEMAN CATERING BUTCH,5422,Catering costs - provisions,57.97,0.00,57.97
Regeneration and Local Services,Corporate Property and Land,021324,Catering - Meadowfield,Supplies and Services,324117,Provisions E324,08-Apr-2019,000006303691878,FREEMAN CATERING BUTCH,5422,Catering costs - provisions,51.37,0.00,51.37
Regeneration and Local Services,Corporate Property and Land,021324,Catering - Meadowfield,Supplies and Services,324117,Provisions E324,08-Apr-2019,000006303691884,FREEMAN CATERING BUTCH,5422,Catering costs - provisions,37.03,0.00,37.03
Children and Young Peoples Services,Head of Childrens Social Care,085380,Operations Manager LAC Resources,Supplies and Services,324117,Provisions E324,08-Apr-2019,000006303691942,ASDA STORES,5411,Catering costs - provisions,7.48,0.00,7.48
Regeneration and Local Services,Culture Sport and Tourism,054233,Bishop Auckland Town Hall Library,Employees,040149,Recruitment Instruction and Training,08-Apr-2019,000006303691948,WWW.FILMBANK.CO.UK,7829,Training-all costs,99.60,0.00,99.60
Adult and Health Services,Head of Adults,055306,Spennymoor Pathways,Supplies and Services,324117,Provisions E324,08-Apr-2019,000006303691962,ASDA SUPERSTORE 4987,5411,Catering costs - provisions,12.99,0.00,12.99
Transformation and Partnerships,Business Support,069010,Administration 069010,Supplies and Services,336005,Advertising E336,08-Apr-2019,000006303692002,FACEBK NA9ABKN4B2,7311,Advertising other than for staff,500.00,0.00,500.00
Adult and Health Services,Head of Adults,055306,Spennymoor Pathways,Supplies and Services,324117,Provisions E324,08-Apr-2019,000006303692008,ASDA SUPERSTORE 4987,5411,Catering costs - provisions,1.99,0.00,1.99
Children and Young Peoples Services,Head of Early Help Inclusion & Vulnerable Children.,085962,Aycliffe Secure - Durham,Supplies and Services,348037,Subsistence E348,08-Apr-2019,000006303692014,Just Eat,5814,Subsistence,69.90,0.00,69.90
Children and Young Peoples Services,Head of Childrens Social Care,085363,LAC & Permanence Team 3,Supplies and Services,304259,Equipment and Materials,08-Apr-2019,000006303692020,STOCKTON BOROUGH COUNC,9399,Equipment-purchase and rental,66.00,0.00,66.00
Children and Young Peoples Services,Head of Childrens Social Care,085363,LAC & Permanence Team 3,Employees,040149,Recruitment Instruction and Training,08-Apr-2019,000006303692024,FOUNDATION OFLIGHT,8398,Training-all costs,15.00,0.00,15.00
Transformation and Partnerships,Partnerships & Community Engagement Div.,060472,Syrian Vulnerable Persons Scheme,Supplies and Services,384999,Miscellaneous Expenses,08-Apr-2019,000006303692038,B&Q DIRECT,5200,Other expenses,195.00,32.50,162.50
Children and Young Peoples Services,Head of Childrens Social Care,085333,Coxhoe Satelite Home,Supplies and Services,328041,Clothing uniforms and laundry E328,08-Apr-2019,000006307921016,PRIMARK 670 GATESHEAD,5651,Clothing uniforms and laundry,16.00,0.00,16.00
Regeneration and Local Services,Culture Sport and Tourism,054812,Gala Theatre - Catering etc,Supplies and Services,324117,Provisions E324,08-Apr-2019,000006307921064,BATLEYS PERTH,5300,Catering costs - provisions,203.04,33.84,169.20
Regeneration and Local Services,Culture Sport and Tourism,054812,Gala Theatre - Catering etc,Supplies and Services,324117,Provisions E324,08-Apr-2019,000006307921064 - 1,BATLEYS PERTH,5300,Catering costs - provisions,107.75,,107.75
Regeneration and Local Services,Development and Housing,031576,B& B - Temp Accom,Supplies and Services,364320,Grants to Voluntary Organisations,08-Apr-2019,000006307921078,PREMIER INN,3811,Accommodation assistance,207.00,34.50,172.50
Regeneration and Local Services,Corporate Property and Land,030691,Catering - Durham Dales Centre,Supplies and Services,324117,Provisions E324,08-Apr-2019,000006307921714,BATLEYS PERTH,5300,Catering costs - provisions,46.20,7.70,38.50
Regeneration and Local Services,Corporate Property and Land,030691,Catering - Durham Dales Centre,Supplies and Services,324117,Provisions E324,08-Apr-2019,000006307921714 - 1,BATLEYS PERTH,5300,Catering costs - provisions,94.59,,94.59
Regeneration and Local Services,Development and Housing,031500,Housing Solutions - Core Team,Employees,040149,Recruitment Instruction and Training,08-Apr-2019,000006307921980,PREMIER INN,3811,Training-all costs,80.50,0.00,80.50
Resources BK0010,Digital and Customer Services,065432,Web Development Group,Supplies and Services,342053,Computers and Communications,09-Apr-2019,000006303691188,WORDFENCE,5045,Computer software,12.44,0.00,12.44
Resources BK0010,Digital and Customer Services,065432,Web Development Group,Supplies and Services,342053,Computers and Communications,09-Apr-2019,000006303691190,WORDFENCE,5045,Computer software,20.38,0.00,20.38
Children and Young Peoples Services,Head of Education and Skills,071801,Selby Cottage Childcare Centre,Supplies and Services,324117,Provisions E324,09-Apr-2019,000006307920902,ASDA GROCERIES ONLINE,5411,Catering costs - provisions,87.14,0.00,87.14
Children and Young Peoples Services,Head of Education and Skills,054640,Durham Learning Resources 054640,Supplies and Services,304245,Equipment and Materials,09-Apr-2019,000006307920924,WWW.BRITISHMUSEUM.ORG,7991,Materials,43.50,0.00,43.50
Regeneration and Local Services,Environmental Services,010905,Nei.Prot - Anti Social Behaviour,Supplies and Services,304403,Equipment and Materials,09-Apr-2019,000006307920932,AMZNMktplace,5999,Other consumables,39.96,6.66,33.30
Children and Young Peoples Services,Head of Childrens Social Care,085332,Middlestone Moor CU,Supplies and Services,324117,Provisions E324,09-Apr-2019,000006307920962,TESCO STORES 2916,5411,Catering costs - provisions,4.50,0.00,4.50
Children and Young Peoples Services,Head of Childrens Social Care,085332,Middlestone Moor CU,Supplies and Services,324117,Provisions E324,09-Apr-2019,000006307920966,TESCO STORES 2371,5411,Catering costs - provisions,191.99,0.00,191.99
Children and Young Peoples Services,Head of Childrens Social Care,085332,Middlestone Moor CU,Supplies and Services,324117,Provisions E324,09-Apr-2019,000006307920970,TESCO STORES 2371,5411,Catering costs - provisions,-3.00,0.00,-3.00
Regeneration and Local Services,Business Durham CL0850,030699,Business Growth and Innovation General,Supplies and Services,304999,Equipment and Materials,09-Apr-2019,000006307920974,MAILCHIMP MONTHLY,5968,Misc equipment tools and materials,61.38,0.00,61.38
Regeneration and Local Services,Business Durham CL0850,030699,Business Growth and Innovation General,Supplies and Services,342033,Computers and Communications,09-Apr-2019,000006307920982,SLICKPLAN.COM,7372,Computer hardware,7.66,0.00,7.66
Children and Young Peoples Services,Head of Early Help Inclusion & Vulnerable Children.,088114,Team Around the School,Supplies and Services,304649,Equipment and Materials,09-Apr-2019,000006307921028,AMZN Mktp UK MZ6FQ7XH4,5942,Toys,14.89,0.00,14.89
Children and Young Peoples Services,Head of Early Help Inclusion & Vulnerable Children.,088114,Team Around the School,Supplies and Services,304649,Equipment and Materials,09-Apr-2019,000006307921034,AMZN Mktp UK MZ6TA7X54,5942,Toys,14.89,0.00,14.89
Children and Young Peoples Services,Head of Early Help Inclusion & Vulnerable Children.,088114,Team Around the School,Supplies and Services,304649,Equipment and Materials,09-Apr-2019,000006307921038,PAYPAL WI SHIPPING,5331,Toys,53.04,0.00,53.04
Children and Young Peoples Services,Head of Early Help Inclusion & Vulnerable Children.,088114,Team Around the School,Supplies and Services,304649,Equipment and Materials,09-Apr-2019,000006307921042,PAYPAL CHILDTHERAP,5945,Toys,225.77,0.00,225.77
Children and Young Peoples Services,Head of Early Help Inclusion & Vulnerable Children.,088114,Team Around the School,Supplies and Services,304649,Equipment and Materials,09-Apr-2019,000006307921046,AMZN Mktp UK MZ90Z9X04,5942,Toys,36.84,6.14,30.70
Children and Young Peoples Services,Head of Early Help Inclusion & Vulnerable Children.,088114,Team Around the School,Supplies and Services,304649,Equipment and Materials,09-Apr-2019,000006307921050,AMZNMktplace,5999,Toys,23.99,0.00,23.99
Regeneration and Local Services,Development and Housing,030544,Rural Employability - Client Engagement,Supplies and Services,332047,Printing Stationery and Gen Off Exps,09-Apr-2019,000006307921054,AMZN Mktp UK MZ3HQ9GT4,5942,Stationery,29.99,0.00,29.99
Children and Young Peoples Services,Head of Childrens Social Care,085333,Coxhoe Satelite Home,Supplies and Services,304999,Equipment and Materials,09-Apr-2019,000006307921086,SAVERS HEALTH & BEAUTY,5912,Misc equipment tools and materials,12.22,0.00,12.22
Children and Young Peoples Services,Head of Childrens Social Care,085334,West Rainton Satelite Home,Supplies and Services,312011,Newspapers books and periodicals E312,09-Apr-2019,000006307921096,HOME BARGAINS,5251,Books-school library,9.05,0.00,9.05
Children and Young Peoples Services,Head of Childrens Social Care,085334,West Rainton Satelite Home,Supplies and Services,304221,Equipment and Materials,09-Apr-2019,000006307921102,SCREWFIX DURHAM,5211,Direct materials,25.98,4.33,21.65
Transformation and Partnerships,Business Support,010832,Business Support 010832,Supplies and Services,304259,Equipment and Materials,09-Apr-2019,000006307921108,DVLA VEHICLE TAX,9399,Equipment-purchase and rental,167.50,0.00,167.50
Transformation and Partnerships,Business Support,010832,Business Support 010832,Supplies and Services,304259,Equipment and Materials,09-Apr-2019,000006307921114,DVLA VEHICLE TAX,9399,Equipment-purchase and rental,147.50,0.00,147.50
Transformation and Partnerships,Business Support,010832,Business Support 010832,Supplies and Services,304259,Equipment and Materials,09-Apr-2019,000006307921120,DVLA VEHICLE TAX,9399,Equipment-purchase and rental,167.50,0.00,167.50
Transformation and Partnerships,Business Support,010832,Business Support 010832,Supplies and Services,304259,Equipment and Materials,09-Apr-2019,000006307921124,DVLA VEHICLE TAX,9399,Equipment-purchase and rental,167.50,0.00,167.50
Transformation and Partnerships,Business Support,010832,Business Support 010832,Supplies and Services,304259,Equipment and Materials,09-Apr-2019,000006307921128,DVLA VEHICLE TAX,9399,Equipment-purchase and rental,167.50,0.00,167.50
Transformation and Partnerships,Business Support,010832,Business Support 010832,Supplies and Services,304259,Equipment and Materials,09-Apr-2019,000006307921142,DVLA VEHICLE TAX,9399,Equipment-purchase and rental,167.50,0.00,167.50
Transformation and Partnerships,Business Support,010832,Business Support 010832,Supplies and Services,304259,Equipment and Materials,09-Apr-2019,000006307921148,DVLA VEHICLE TAX,9399,Equipment-purchase and rental,147.50,0.00,147.50
Transformation and Partnerships,Business Support,010832,Business Support 010832,Supplies and Services,304259,Equipment and Materials,09-Apr-2019,000006307921154,DVLA VEHICLE TAX,9399,Equipment-purchase and rental,167.50,0.00,167.50
Transformation and Partnerships,Business Support,010832,Business Support 010832,Supplies and Services,304259,Equipment and Materials,09-Apr-2019,000006307921158,DVLA VEHICLE TAX,9399,Equipment-purchase and rental,167.50,0.00,167.50
Transformation and Partnerships,Business Support,010832,Business Support 010832,Supplies and Services,304259,Equipment and Materials,09-Apr-2019,000006307921162,DVLA VEHICLE TAX,9399,Equipment-purchase and rental,167.50,0.00,167.50
Children and Young Peoples Services,Head of Childrens Social Care,085342,9 Cedar Drive Aycliffe,Supplies and Services,324117,Provisions E324,09-Apr-2019,000006307921166,ASDA STORES 4320,5411,Catering costs - provisions,15.00,0.00,15.00
Children and Young Peoples Services,Head of Childrens Social Care,085342,9 Cedar Drive Aycliffe,Supplies and Services,304403,Equipment and Materials,09-Apr-2019,000006307921174,YORK MUSEUMS TRUST,5734,Other consumables,21.80,0.00,21.80
Children and Young Peoples Services,Head of Childrens Social Care,085342,9 Cedar Drive Aycliffe,Supplies and Services,328041,Clothing uniforms and laundry E328,09-Apr-2019,000006307921178,ARGOS LTD,5310,Clothing uniforms and laundry,24.99,0.00,24.99
Children and Young Peoples Services,Head of Childrens Social Care,085342,9 Cedar Drive Aycliffe,Supplies and Services,304259,Equipment and Materials,09-Apr-2019,000006307921184,SPORTSDIRECT 246,5941,Equipment-purchase and rental,75.99,0.00,75.99
Regeneration and Local Services,Culture Sport and Tourism,054813,Gala Theatre - Technical,Supplies and Services,312011,Newspapers books and periodicals E312,09-Apr-2019,000006307921192,AMZN Mktp UK MZ5RM9G74,5942,Books-school library,55.00,0.00,55.00
Regeneration and Local Services,Culture Sport and Tourism,054813,Gala Theatre - Technical,Supplies and Services,304403,Equipment and Materials,09-Apr-2019,000006307921204,AMZNMktplace,5999,Other consumables,62.00,0.00,62.00
Children and Young Peoples Services,Head of Childrens Social Care,085334,West Rainton Satelite Home,Supplies and Services,304221,Equipment and Materials,09-Apr-2019,000006307921250,B & Q 1343,5211,Direct materials,9.50,0.00,9.50
Children and Young Peoples Services,Head of Childrens Social Care,085334,West Rainton Satelite Home,Supplies and Services,304221,Equipment and Materials,09-Apr-2019,000006307921266,B & Q 1343,5211,Direct materials,22.00,0.00,22.00
Regeneration and Local Services,Development and Housing,030771,Durham Advance Flexible Fund,Supplies and Services,324117,Provisions E324,09-Apr-2019,000006307921378,COSTA COFFEE 43038640,5814,Catering costs - provisions,4.65,0.78,3.87
Regeneration and Local Services,Business Durham CL0850,030674,Business Services General,Third Party Payments 4THIRD,430100,Rendered by Private Contractors,09-Apr-2019,000006307921384,EB MADE FOR SPACE NEW,7399,Payments to sub-contractors,348.00,58.00,290.00
Children and Young Peoples Services,Head of Early Help Inclusion & Vulnerable Children.,071445,Chester le Street One Point Hub,Supplies and Services,324117,Provisions E324,09-Apr-2019,000006307921390,WILKO.COM,5399,Catering costs - provisions,90.00,0.00,90.00
Children and Young Peoples Services,Head of Early Help Inclusion & Vulnerable Children.,085957,Secure Management,Supplies and Services,304403,Equipment and Materials,09-Apr-2019,000006307921400,Amazon.co.uk MZ21J2XY4,5969,Other consumables,6.37,1.06,5.31
Children and Young Peoples Services,Head of Early Help Inclusion & Vulnerable Children.,085955,Auckland,Supplies and Services,304649,Equipment and Materials,09-Apr-2019,000006307921406,Amazon.co.uk MZ3859GY4,5969,Toys,19.99,3.33,16.66
Children and Young Peoples Services,Head of Early Help Inclusion & Vulnerable Children.,085956,Lumley,Supplies and Services,328041,Clothing uniforms and laundry E328,09-Apr-2019,000006307921416,M and M Direct Ltd,5941,Clothing uniforms and laundry,87.93,0.00,87.93
Children and Young Peoples Services,Head of Early Help Inclusion & Vulnerable Children.,085957,Secure Management,Supplies and Services,304259,Equipment and Materials,09-Apr-2019,000006307921432,AMZNMKTPLACE AMAZON.CO,5999,Equipment-purchase and rental,19.99,0.00,19.99
Children and Young Peoples Services,Head of Early Help Inclusion & Vulnerable Children.,085952,Secure Education,Supplies and Services,312011,Newspapers books and periodicals E312,09-Apr-2019,000006307921436,AMZN MKTP UK MZ6109XO4,5942,Books-school library,20.98,0.00,20.98
Children and Young Peoples Services,Head of Early Help Inclusion & Vulnerable Children.,085956,Lumley,Supplies and Services,328041,Clothing uniforms and laundry E328,09-Apr-2019,000006307921440,FOOTASYLUM PLC,5691,Clothing uniforms and laundry,14.99,0.00,14.99
Children and Young Peoples Services,Head of Early Help Inclusion & Vulnerable Children.,085954,Walworth,Supplies and Services,328041,Clothing uniforms and laundry E328,09-Apr-2019,000006307921446,FOOTASYLUM PLC,5691,Clothing uniforms and laundry,79.99,0.00,79.99
Children and Young Peoples Services,Head of Early Help Inclusion & Vulnerable Children.,085955,Auckland,Supplies and Services,328041,Clothing uniforms and laundry E328,09-Apr-2019,000006307921456,FOOTASYLUM PLC,5691,Clothing uniforms and laundry,49.99,0.00,49.99
Children and Young Peoples Services,Head of Early Help Inclusion & Vulnerable Children.,085955,Auckland,Supplies and Services,384871,Miscellaneous Expenses,09-Apr-2019,000006307921464,WWW.INSECTLORE-EUROPE.,5964,Training-other activities,14.98,0.00,14.98
Children and Young Peoples Services,Head of Early Help Inclusion & Vulnerable Children.,085956,Lumley,Supplies and Services,328041,Clothing uniforms and laundry E328,09-Apr-2019,000006307921478,VERY,5964,Clothing uniforms and laundry,38.99,0.00,38.99
Children and Young Peoples Services,Head of Early Help Inclusion & Vulnerable Children.,085952,Secure Education,Supplies and Services,312011,Newspapers books and periodicals E312,09-Apr-2019,000006307921484,AMZN MKTP UK MZ9347XB4,5942,Books-school library,15.98,0.00,15.98
Children and Young Peoples Services,Head of Early Help Inclusion & Vulnerable Children.,085956,Lumley,Supplies and Services,384999,Miscellaneous Expenses,09-Apr-2019,000006307921490,WWW.ARGOS.CO.UK,5310,Other expenses,55.91,0.00,55.91
Children and Young Peoples Services,Head of Early Help Inclusion & Vulnerable Children.,085954,Walworth,Supplies and Services,384999,Miscellaneous Expenses,09-Apr-2019,000006307921496,WWW.ARGOS.CO.UK,5310,Other expenses,48.93,0.00,48.93
Children and Young Peoples Services,Head of Early Help Inclusion & Vulnerable Children.,085954,Walworth,Supplies and Services,328041,Clothing uniforms and laundry E328,09-Apr-2019,000006307921500,JD SPORTS INTERNET,5941,Clothing uniforms and laundry,53.99,0.00,53.99
Regeneration and Local Services,Culture Sport and Tourism,054813,Gala Theatre - Technical,Supplies and Services,312011,Newspapers books and periodicals E312,09-Apr-2019,000006307921508,Amazon.co.uk MZ4JV8XL4,5969,Books-school library,462.99,0.00,462.99
Regeneration and Local Services,Culture Sport and Tourism,054813,Gala Theatre - Technical,Supplies and Services,312011,Newspapers books and periodicals E312,09-Apr-2019,000006307921512,Amazon.co.uk MZ5XQ8X54,5969,Books-school library,11.98,0.00,11.98
Regeneration and Local Services,Development and Housing,030764,Work & Health Programme (Reed),Supplies and Services,304259,Equipment and Materials,09-Apr-2019,000006307921522,GEN REGISTER OFFICE,9399,Equipment-purchase and rental,38.00,0.00,38.00
Regeneration and Local Services,Development and Housing,030764,Work & Health Programme (Reed),Supplies and Services,304259,Equipment and Materials,09-Apr-2019,000006307921530,GEN REGISTER OFFICE,9399,Equipment-purchase and rental,14.00,0.00,14.00
Regeneration and Local Services,Corporate Property and Land,021234,Catering - Locomotion,Supplies and Services,312011,Newspapers books and periodicals E312,09-Apr-2019,000006307921606,HOME BARGAINS SPENNYMO,5251,Books-school library,5.20,0.00,5.20
Regeneration and Local Services,Corporate Property and Land,021234,Catering - Locomotion,Supplies and Services,312011,Newspapers books and periodicals E312,09-Apr-2019,000006307921622,HOME BARGAINS SPENNYMO,5251,Books-school library,2.10,0.00,2.10
Children and Young Peoples Services,Head of Childrens Social Care,085342,9 Cedar Drive Aycliffe,Supplies and Services,384999,Miscellaneous Expenses,09-Apr-2019,000006307921654,HOBBYCRAFT,5970,Other expenses,10.00,1.67,8.33
Children and Young Peoples Services,Head of Childrens Social Care,085342,9 Cedar Drive Aycliffe,Supplies and Services,324117,Provisions E324,09-Apr-2019,000006307921658,TESCO STORES 2916,5411,Catering costs - provisions,15.85,0.00,15.85
Children and Young Peoples Services,Head of Childrens Social Care,085342,9 Cedar Drive Aycliffe,Supplies and Services,332047,Printing Stationery and Gen Off Exps,09-Apr-2019,000006307921662,VUE BSL LTD,7832,Stationery,23.22,0.00,23.22
Children and Young Peoples Services,Head of Childrens Social Care,085342,9 Cedar Drive Aycliffe,Supplies and Services,348037,Subsistence E348,09-Apr-2019,000006307921668,MCDONALDS,5814,Subsistence,21.34,3.56,17.78
Children and Young Peoples Services,Head of Childrens Social Care,085537,Full Circle,Supplies and Services,324117,Provisions E324,09-Apr-2019,000006307921684,SAINSBURYS 0776,5411,Catering costs - provisions,147.45,0.00,147.45
Children and Young Peoples Services,Head of Childrens Social Care,085537,Full Circle,Supplies and Services,384999,Miscellaneous Expenses,09-Apr-2019,000006307921694,SMYTHS TOYS DURHAM,5945,Other expenses,32.89,5.48,27.41
Children and Young Peoples Services,Head of Childrens Social Care,085352,Tow Law CU,Supplies and Services,328041,Clothing uniforms and laundry E328,09-Apr-2019,000006307921700,POUNDSTRETCHER 692,5331,Clothing uniforms and laundry,25.18,0.00,25.18
Children and Young Peoples Services,Head of Childrens Social Care,085352,Tow Law CU,Supplies and Services,304221,Equipment and Materials,09-Apr-2019,000006307921704,B & Q 1120,5211,Direct materials,8.10,0.00,8.10
Regeneration and Local Services,Environmental Services,010367,C&G - South Grounds Maintenance,Supplies and Services,312011,Newspapers books and periodicals E312,09-Apr-2019,000006307921736,BLACK & DECKER,5251,Books-school library,79.00,0.00,79.00
Regeneration and Local Services,Environmental Services,010367,C&G - South Grounds Maintenance,Supplies and Services,304221,Equipment and Materials,09-Apr-2019,000006307921746,SCREWFIX BISHOP AUCKLA,5211,Direct materials,37.92,0.00,37.92
Regeneration and Local Services,Environmental Services,010301,C&G - North Grounds Maintenance,Supplies and Services,304403,Equipment and Materials,09-Apr-2019,000006307921810,BESCOL,5231,Other consumables,33.17,5.53,27.64
Children and Young Peoples Services,Head of Early Help Inclusion & Vulnerable Children.,074000,TTF-Attachment and Results,Transfer Payments,525033,Other,09-Apr-2019,000006307921816,ASDA GROCERIES ONLINE,5411,Grants to individuals,43.79,0.00,43.79
Regeneration and Local Services,Development and Housing,030771,Durham Advance Flexible Fund,Supplies and Services,340001,Postages E340,09-Apr-2019,000006307921826,POST OFFICE COUNTER,9402,Postages,220.00,0.00,220.00
Children and Young Peoples Services,Head of Early Help Inclusion & Vulnerable Children.,085957,Secure Management,Supplies and Services,324117,Provisions E324,09-Apr-2019,000006307921836,TESCO STORES 6329,5411,Catering costs - provisions,102.52,0.00,102.52
Children and Young Peoples Services,Head of Early Help Inclusion & Vulnerable Children.,085957,Secure Management,Premises,115125,Repairs to Grounds,09-Apr-2019,000006307921840,SCREWFIX DIRECT,5200,General maintenance,69.50,11.58,57.92
Regeneration and Local Services,Environmental Services,011060,C&G - Hardwick Park Catering,Supplies and Services,304403,Equipment and Materials,09-Apr-2019,000006307921846,WILKO.COM,5399,Other consumables,13.00,0.00,13.00
Regeneration and Local Services,Culture Sport and Tourism,011204,Festival and Events,Supplies and Services,324117,Provisions E324,09-Apr-2019,000006307921852,WWW.EVENTSUPPLIES.CO.U,5811,Catering costs - provisions,31.78,0.00,31.78
Regeneration and Local Services,Environmental Services,010301,C&G - North Grounds Maintenance,Third Party Payments 4THIRD,430100,Rendered by Private Contractors,09-Apr-2019,000006307921862,JOHN WARREN (ANIMAL BY,7399,Payments to sub-contractors,36.00,6.00,30.00
Regeneration and Local Services,Environmental Services,010301,C&G - North Grounds Maintenance,Supplies and Services,328041,Clothing uniforms and laundry E328,09-Apr-2019,000006307921866,THOMAS OWEN & SONS /N/,5611,Clothing uniforms and laundry,20.40,0.00,20.40
Children and Young Peoples Services,Head of Childrens Social Care,085333,Coxhoe Satelite Home,Supplies and Services,324117,Provisions E324,09-Apr-2019,000006307921886,TESCO STORES 2916,5411,Catering costs - provisions,40.14,0.00,40.14
Children and Young Peoples Services,Head of Childrens Social Care,085332,Middlestone Moor CU,Supplies and Services,348037,Subsistence E348,09-Apr-2019,000006307921950,MARCH HARE,5813,Subsistence,39.90,6.65,33.25
Regeneration and Local Services,Environmental Services,031200,North Pennines Core,Supplies and Services,304999,Equipment and Materials,09-Apr-2019,000006307921962,WWW.BATTERY-FORCE.CO.U,5251,Misc equipment tools and materials,19.50,3.25,16.25
Regeneration and Local Services,Environmental Services,031200,North Pennines Core,Supplies and Services,304999,Equipment and Materials,09-Apr-2019,000006307921962 - 1,WWW.BATTERY-FORCE.CO.U,5251,Misc equipment tools and materials,5.99,,5.99
Adult and Health Services,Head of Adults,055807,Newton Aycliffe Pathways,Supplies and Services,324117,Provisions E324,09-Apr-2019,000006307921986,ALDI 74 774,5411,Catering costs - provisions,2.28,0.00,2.28
Adult and Health Services,Head of Adults,055807,Newton Aycliffe Pathways,Supplies and Services,324117,Provisions E324,09-Apr-2019,000006307921992,WILKO RETAIL LIMIT,5722,Catering costs - provisions,2.50,0.00,2.50
Regeneration and Local Services,Environmental Services,031200,North Pennines Core,Supplies and Services,348037,Subsistence E348,09-Apr-2019,000006307922022,LIBERTY CAFE,5812,Subsistence,8.18,0.00,8.18
Regeneration and Local Services,Environmental Services,031200,North Pennines Core,Supplies and Services,348037,Subsistence E348,09-Apr-2019,000006307922030,UPPER CRUST - 18271712,5814,Subsistence,3.25,0.00,3.25
Children and Young Peoples Services,Head of Early Help Inclusion & Vulnerable Children.,085810,CDYOS - Interventions Team,Supplies and Services,348037,Subsistence E348,09-Apr-2019,000006307922054,MCDONALDS,5812,Subsistence,30.52,0.00,30.52
Transformation and Partnerships,Business Support,065305,Design & Print - Digital,Supplies and Services,304259,Equipment and Materials,09-Apr-2019,000006313212646,HALFORDS ON LINE,5940,Equipment-purchase and rental,95.99,16.00,79.99
Regeneration and Local Services,Corporate Property and Land,021242,Catering - County Hall,Supplies and Services,324117,Provisions E324,09-Apr-2019,000006313212758,BATLEYS PERTH,5300,Catering costs - provisions,194.76,32.46,162.30
Regeneration and Local Services,Corporate Property and Land,021242,Catering - County Hall,Supplies and Services,324117,Provisions E324,09-Apr-2019,000006313212758 - 1,BATLEYS PERTH,5300,Catering costs - provisions,266.74,,266.74
Regeneration and Local Services,Development and Housing,031576,B& B - Temp Accom,Supplies and Services,364320,Grants to Voluntary Organisations,09-Apr-2019,000006313212852,PREMIER INN,3811,Accommodation assistance,-9.50,0.00,-9.50
Regeneration and Local Services,Development and Housing,031576,B& B - Temp Accom,Supplies and Services,364320,Grants to Voluntary Organisations,09-Apr-2019,000006313212924,PREMIER INN,3811,Accommodation assistance,90.50,15.08,75.42
Children and Young Peoples Services,Head of Early Help Inclusion & Vulnerable Children.,071445,Chester le Street One Point Hub,Supplies and Services,304259,Equipment and Materials,09-Apr-2019,000006313213078,SPORTSDIRECT.COM,5941,Equipment-purchase and rental,24.98,0.00,24.98
Children and Young Peoples Services,Head of Early Help Inclusion & Vulnerable Children.,085952,Secure Education,Supplies and Services,312011,Newspapers books and periodicals E312,09-Apr-2019,000006313213102,AMZN MKTP UK MZ9PD7XW4,5942,Books-school library,20.64,0.00,20.64
Regeneration and Local Services,Environmental Services,011060,C&G - Hardwick Park Catering,Supplies and Services,324117,Provisions E324,09-Apr-2019,000006313213154,BATLEYS PERTH,5300,Catering costs - provisions,117.54,19.59,97.95
Regeneration and Local Services,Environmental Services,011060,C&G - Hardwick Park Catering,Supplies and Services,324117,Provisions E324,09-Apr-2019,000006313213154 - 1,BATLEYS PERTH,5300,Catering costs - provisions,150.42,,150.42
Regeneration and Local Services,Corporate Property and Land,021234,Catering - Locomotion,Supplies and Services,324117,Provisions E324,09-Apr-2019,000006313213206,BATLEYS PERTH,5300,Catering costs - provisions,294.90,49.15,245.75
Regeneration and Local Services,Corporate Property and Land,021234,Catering - Locomotion,Supplies and Services,324117,Provisions E324,09-Apr-2019,000006313213206 - 1,BATLEYS PERTH,5300,Catering costs - provisions,114.51,,114.51
Regeneration and Local Services,Corporate Property and Land,010525,Catering - Green Lane,Premises,145009,Cleaning and Domestic Supplies,09-Apr-2019,000006313213250,ALLIANCE DISPOSABLES L,2842,Other cleaning and domestic costs,114.32,19.05,95.27
Regeneration and Local Services,Corporate Property and Land,021324,Catering - Meadowfield,Supplies and Services,324117,Provisions E324,09-Apr-2019,000006313213632,BATLEYS PERTH,5300,Catering costs - provisions,107.70,17.95,89.75
Regeneration and Local Services,Corporate Property and Land,021324,Catering - Meadowfield,Supplies and Services,324117,Provisions E324,09-Apr-2019,000006313213632 - 1,BATLEYS PERTH,5300,Catering costs - provisions,125.56,,125.56
Regeneration and Local Services,Development and Housing,031500,Housing Solutions - Core Team,Employees,040149,Recruitment Instruction and Training,09-Apr-2019,000006313213778,PREMIER INN,3811,Training-all costs,183.00,0.00,183.00
Regeneration and Local Services,Development and Housing,031500,Housing Solutions - Core Team,Employees,040149,Recruitment Instruction and Training,09-Apr-2019,000006313213784,PREMIER INN,3811,Training-all costs,212.00,0.00,212.00
Regeneration and Local Services,Development and Housing,031500,Housing Solutions - Core Team,Employees,040149,Recruitment Instruction and Training,09-Apr-2019,000006313213790,PREMIER INN,3811,Training-all costs,-17.00,0.00,-17.00
Regeneration and Local Services,Business Durham CL0850,030699,Business Growth and Innovation General,Supplies and Services,304999,Equipment and Materials,10-Apr-2019,000006307920986,MAILCHIMP MONTHLY,5968,Misc equipment tools and materials,1.69,0.00,1.69
Regeneration and Local Services,Business Durham CL0850,030699,Business Growth and Innovation General,Supplies and Services,342033,Computers and Communications,10-Apr-2019,000006307920994,SLICKPLAN.COM,7372,Computer hardware,0.21,0.00,0.21
Regeneration and Local Services,Environmental Services,031200,North Pennines Core,Supplies and Services,348037,Subsistence E348,10-Apr-2019,000006307922034,LIBERTY CAFE,5812,Subsistence,0.22,0.00,0.22
Children and Young Peoples Services,Head of Education and Skills,071801,Selby Cottage Childcare Centre,Supplies and Services,312011,Newspapers books and periodicals E312,10-Apr-2019,000006313212588,Amazon.co.uk MZ1G86VI4,5969,Books-school library,3.99,0.00,3.99
Children and Young Peoples Services,Head of Education and Skills,071801,Selby Cottage Childcare Centre,Supplies and Services,312011,Newspapers books and periodicals E312,10-Apr-2019,000006313212596,Amazon.co.uk MZ5P32VI4,5969,Books-school library,7.99,0.00,7.99
Children and Young Peoples Services,Head of Education and Skills,071801,Selby Cottage Childcare Centre,Supplies and Services,304403,Equipment and Materials,10-Apr-2019,000006313212600,AMZNMktplace,5999,Other consumables,8.49,0.00,8.49
Children and Young Peoples Services,Head of Education and Skills,071801,Selby Cottage Childcare Centre,Supplies and Services,304403,Equipment and Materials,10-Apr-2019,000006313212606,AMZNMktplace,5999,Other consumables,21.99,0.00,21.99
Children and Young Peoples Services,Head of Education and Skills,071801,Selby Cottage Childcare Centre,Supplies and Services,312011,Newspapers books and periodicals E312,10-Apr-2019,000006313212608,AMZN Mktp UK MZ5ZR0MB4,5942,Books-school library,6.84,0.00,6.84
Children and Young Peoples Services,Head of Education and Skills,071801,Selby Cottage Childcare Centre,Supplies and Services,312011,Newspapers books and periodicals E312,10-Apr-2019,000006313212612,Amazon.co.uk MZ4IG0VO4,5969,Books-school library,17.03,0.00,17.03
Children and Young Peoples Services,Head of Education and Skills,071801,Selby Cottage Childcare Centre,Supplies and Services,304403,Equipment and Materials,10-Apr-2019,000006313212618,AMZNMktplace,5999,Other consumables,11.99,0.00,11.99
Resources BK0010,Digital and Customer Services,070110,School Services - Man Info System (MIS) Support Team,Supplies and Services,312011,Newspapers books and periodicals E312,10-Apr-2019,000006313212630,Amazon.co.uk MZ0IY7VL4,5969,Books-school library,22.98,3.83,19.15
Resources BK0010,Digital and Customer Services,065321,Operations - Digital & Customer Services,Supplies and Services,304403,Equipment and Materials,10-Apr-2019,000006313212636,AMZNMKTPLACE AMAZON.CO,5999,Other consumables,7.63,1.27,6.36
Resources BK0010,Legal & Democratic Services,067910,Democratic Representation 067910,Supplies and Services,304403,Equipment and Materials,10-Apr-2019,000006313212642,WWW.ROYALIMAGES.CO.UK,2741,Other consumables,"1,108.80",184.80,924.00
Children and Young Peoples Services,Head of Education and Skills,075021,Youth Employment Initiative,Supplies and Services,384199,Miscellaneous Expenses,10-Apr-2019,000006313212668,CUMBRIA COUNTY COU,7375,Other hired and contracted services,11.00,0.00,11.00
Children and Young Peoples Services,Head of Education and Skills,075021,Youth Employment Initiative,Supplies and Services,384199,Miscellaneous Expenses,10-Apr-2019,000006313212678,WWW.DURHAM.GOV.UK,9399,Other hired and contracted services,11.00,0.00,11.00
Regeneration and Local Services,Environmental Services,010383,C&G - South Street Cleansing,Supplies and Services,304999,Equipment and Materials,10-Apr-2019,000006313212686,NEW ROW FARM NURSERIES,5193,Misc equipment tools and materials,252.60,42.10,210.50
Children and Young Peoples Services,Head of Childrens Social Care,085342,9 Cedar Drive Aycliffe,Supplies and Services,328041,Clothing uniforms and laundry E328,10-Apr-2019,000006313212698,PRINCESS PROM,5621,Clothing uniforms and laundry,64.99,0.00,64.99
Children and Young Peoples Services,Head of Childrens Social Care,085342,9 Cedar Drive Aycliffe,Supplies and Services,324117,Provisions E324,10-Apr-2019,000006313212704,TESCO STORES 2916,5411,Catering costs - provisions,10.60,0.00,10.60
Children and Young Peoples Services,Head of Childrens Social Care,085342,9 Cedar Drive Aycliffe,Supplies and Services,348037,Subsistence E348,10-Apr-2019,000006313212708,PIZZA EXPRESS,5812,Subsistence,44.08,0.00,44.08
Children and Young Peoples Services,Head of Childrens Social Care,085332,Middlestone Moor CU,Supplies and Services,308011,Furniture,10-Apr-2019,000006313212716,W BOYES & CO LTD NEWTO,5310,Furniture repair and replacement,10.00,0.00,10.00
Children and Young Peoples Services,Head of Early Help Inclusion & Vulnerable Children.,088114,Team Around the School,Supplies and Services,304649,Equipment and Materials,10-Apr-2019,000006313212744,AMZN Mktp UK MZ75V0V34,5942,Toys,63.96,0.00,63.96
Children and Young Peoples Services,Head of Early Help Inclusion & Vulnerable Children.,088114,Team Around the School,Supplies and Services,304649,Equipment and Materials,10-Apr-2019,000006313212748,AMZN Mktp UK MZ0220VZ4,5942,Toys,9.39,1.57,7.82
Regeneration and Local Services,Corporate Property and Land,021242,Catering - County Hall,Supplies and Services,324117,Provisions E324,10-Apr-2019,000006313212768,JR HOLLAND FOODSERVICE,5499,Catering costs - provisions,129.86,0.00,129.86
Regeneration and Local Services,Corporate Property and Land,021242,Catering - County Hall,Supplies and Services,324117,Provisions E324,10-Apr-2019,000006313212776,JR HOLLAND FOODSERVICE,5499,Catering costs - provisions,130.44,0.00,130.44
Regeneration and Local Services,Corporate Property and Land,021242,Catering - County Hall,Supplies and Services,324117,Provisions E324,10-Apr-2019,000006313212778,JR HOLLAND FOODSERVICE,5499,Catering costs - provisions,137.58,0.00,137.58
Regeneration and Local Services,Corporate Property and Land,021242,Catering - County Hall,Supplies and Services,324117,Provisions E324,10-Apr-2019,000006313212784,JR HOLLAND FOODSERVICE,5499,Catering costs - provisions,238.00,0.00,238.00
Regeneration and Local Services,Corporate Property and Land,021242,Catering - County Hall,Supplies and Services,324117,Provisions E324,10-Apr-2019,000006313212790,JR HOLLAND FOODSERVICE,5499,Catering costs - provisions,13.80,0.00,13.80
Regeneration and Local Services,Corporate Property and Land,021242,Catering - County Hall,Supplies and Services,324117,Provisions E324,10-Apr-2019,000006313212794,JR HOLLAND FOODSERVICE,5499,Catering costs - provisions,4.52,0.00,4.52
Regeneration and Local Services,Corporate Property and Land,021242,Catering - County Hall,Supplies and Services,324117,Provisions E324,10-Apr-2019,000006313212798,JR HOLLAND FOODSERVICE,5499,Catering costs - provisions,31.51,0.00,31.51
Regeneration and Local Services,Culture Sport and Tourism,054233,Bishop Auckland Town Hall Library,Supplies and Services,324117,Provisions E324,10-Apr-2019,000006313212808,WM MORRISONS STORE,5411,Catering costs - provisions,8.49,0.00,8.49
Children and Young Peoples Services,Head of Childrens Social Care,085622,Families First Ferryhill,Supplies and Services,308011,Furniture,10-Apr-2019,000006313212818,WWW.ARGOS.CO.UK,5310,Furniture repair and replacement,141.95,0.00,141.95
Regeneration and Local Services,Development and Housing,030544,Rural Employability - Client Engagement,Supplies and Services,384700,Miscellaneous Expenses,10-Apr-2019,000006313212826,DVLA DRIVER ONLINE,9399,Miscellaneous grants,34.00,0.00,34.00
Regeneration and Local Services,Culture Sport and Tourism,054812,Gala Theatre - Catering etc,Supplies and Services,324117,Provisions E324,10-Apr-2019,000006313212840,JR HOLLAND FOODSERVICE,5499,Catering costs - provisions,49.30,0.00,49.30
Regeneration and Local Services,Culture Sport and Tourism,054812,Gala Theatre - Catering etc,Supplies and Services,324117,Provisions E324,10-Apr-2019,000006313212844,JR HOLLAND FOODSERVICE,5499,Catering costs - provisions,32.70,0.00,32.70
Regeneration and Local Services,Corporate Property and Land,021242,Catering - County Hall,Supplies and Services,324117,Provisions E324,10-Apr-2019,000006313212860,LIDL GB DURHAM,5411,Catering costs - provisions,15.08,0.00,15.08
Children and Young Peoples Services,Head of Childrens Social Care,085362,LAC & Permanence Team 2,Supplies and Services,384999,Miscellaneous Expenses,10-Apr-2019,000006313212878,HM PASSPORT OFFICE,9399,Other expenses,49.00,0.00,49.00
Children and Young Peoples Services,Head of Childrens Social Care,085362,LAC & Permanence Team 2,Supplies and Services,384999,Miscellaneous Expenses,10-Apr-2019,000006313212884,HM PASSPORT OFFICE,9399,Other expenses,49.00,0.00,49.00
Children and Young Peoples Services,Head of Childrens Social Care,085362,LAC & Permanence Team 2,Supplies and Services,384871,Miscellaneous Expenses,10-Apr-2019,000006313212886,WWW.INFINITEAIR.CO.UK,7991,Training-other activities,11.95,0.00,11.95
Children and Young Peoples Services,Head of Childrens Social Care,085362,LAC & Permanence Team 2,Supplies and Services,384999,Miscellaneous Expenses,10-Apr-2019,000006313212892,WWW.DURHAM.GOV.UK,9399,Other expenses,11.00,0.00,11.00
Regeneration and Local Services,Culture Sport and Tourism,011208,Aquatics 011208,Supplies and Services,304999,Equipment and Materials,10-Apr-2019,000006313212908,VIMEO.COM,5968,Misc equipment tools and materials,250.00,0.00,250.00
Regeneration and Local Services,Culture Sport and Tourism,011217,Commercial Management 011217,Supplies and Services,332047,Printing Stationery and Gen Off Exps,10-Apr-2019,000006313212914,WWW.MAGIBOARDS.COM,5943,Stationery,79.61,13.27,66.34
Children and Young Peoples Services,Head of Childrens Social Care,085352,Tow Law CU,Supplies and Services,338099,Services,10-Apr-2019,000006313212934,PARKDEAN RESORTS H,7033,Other services,75.00,0.00,75.00
Transformation and Partnerships,Business Support,010832,Business Support 010832,Supplies and Services,304259,Equipment and Materials,10-Apr-2019,000006313212944,DVLA VEHICLE TAX,9399,Equipment-purchase and rental,167.50,0.00,167.50
Transformation and Partnerships,Business Support,010832,Business Support 010832,Supplies and Services,304259,Equipment and Materials,10-Apr-2019,000006313212948,DVLA VEHICLE TAX,9399,Equipment-purchase and rental,167.50,0.00,167.50
Children and Young Peoples Services,Head of Education and Skills,071732,Dean Bank Childcare,Supplies and Services,340001,Postages E340,10-Apr-2019,000006313212972,THE POST OFFICE,9402,Postages,4.20,0.00,4.20
Regeneration and Local Services,Culture Sport and Tourism,054813,Gala Theatre - Technical,Supplies and Services,312011,Newspapers books and periodicals E312,10-Apr-2019,000006313212982,AMZN Mktp UK MZ3882VM4,5942,Books-school library,31.00,0.00,31.00
Regeneration and Local Services,Culture Sport and Tourism,054813,Gala Theatre - Technical,Supplies and Services,312011,Newspapers books and periodicals E312,10-Apr-2019,000006313212988,AMZN Mktp UK MZ6SI8VA4,5942,Books-school library,33.62,0.00,33.62
Regeneration and Local Services,Culture Sport and Tourism,054813,Gala Theatre - Technical,Supplies and Services,308011,Furniture,10-Apr-2019,000006313212992,J & C JOEL,5714,Furniture repair and replacement,59.22,0.00,59.22
Children and Young Peoples Services,Head of Education and Skills,071903,EYDCP-Sustainability EDS,Supplies and Services,342033,Computers and Communications,10-Apr-2019,000006313213028,iStock.com,7333,Computer hardware,228.00,38.00,190.00
Children and Young Peoples Services,Head of Early Help Inclusion & Vulnerable Children.,088107,Ferryhill & Newton Aycliffe 0-19 Community Family Hub,Supplies and Services,304403,Equipment and Materials,10-Apr-2019,000006313213054,AMZNMktplace,5999,Other consumables,35.98,0.00,35.98
Children and Young Peoples Services,Head of Early Help Inclusion & Vulnerable Children.,071445,Chester le Street One Point Hub,Supplies and Services,324117,Provisions E324,10-Apr-2019,000006313213060,BESTWAY WHOLESALE,5451,Catering costs - provisions,49.43,0.00,49.43
Children and Young Peoples Services,Head of Early Help Inclusion & Vulnerable Children.,071445,Chester le Street One Point Hub,Supplies and Services,324117,Provisions E324,10-Apr-2019,000006313213066,BESTWAY WHOLESALE,5451,Catering costs - provisions,129.88,0.00,129.88
Children and Young Peoples Services,Head of Early Help Inclusion & Vulnerable Children.,071445,Chester le Street One Point Hub,Supplies and Services,304403,Equipment and Materials,10-Apr-2019,000006313213070,AMZNMKTPLACE AMAZON.CO,5999,Other consumables,56.45,0.00,56.45
Children and Young Peoples Services,Head of Early Help Inclusion & Vulnerable Children.,085952,Secure Education,Supplies and Services,304403,Equipment and Materials,10-Apr-2019,000006313213086,AMZNMKTPLACE AMAZON.CO,5999,Other consumables,38.10,0.00,38.10
Children and Young Peoples Services,Head of Early Help Inclusion & Vulnerable Children.,085955,Auckland,Supplies and Services,304649,Equipment and Materials,10-Apr-2019,000006313213092,AMZN MKTP UK MZ3F52VH4,5942,Toys,29.50,0.00,29.50
Children and Young Peoples Services,Head of Early Help Inclusion & Vulnerable Children.,085952,Secure Education,Supplies and Services,384999,Miscellaneous Expenses,10-Apr-2019,000006313213098,AMZN MKTP UK MZ8UO0V94,5942,Other expenses,25.05,0.00,25.05
Children and Young Peoples Services,Head of Early Help Inclusion & Vulnerable Children.,085956,Lumley,Supplies and Services,328041,Clothing uniforms and laundry E328,10-Apr-2019,000006313213108,WWW.BOOHOO.COM,5691,Clothing uniforms and laundry,24.43,0.00,24.43
Children and Young Peoples Services,Head of Early Help Inclusion & Vulnerable Children.,085962,Aycliffe Secure - Durham,Supplies and Services,324117,Provisions E324,10-Apr-2019,000006313213112,TESCO STORES 6329,5411,Catering costs - provisions,74.63,0.00,74.63
Children and Young Peoples Services,Head of Early Help Inclusion & Vulnerable Children.,085956,Lumley,Supplies and Services,304403,Equipment and Materials,10-Apr-2019,000006313213116,AMZNMKTPLACE AMAZON.CO,5999,Other consumables,26.59,0.00,26.59
Children and Young Peoples Services,Head of Early Help Inclusion & Vulnerable Children.,085955,Auckland,Supplies and Services,328041,Clothing uniforms and laundry E328,10-Apr-2019,000006313213122,FOOTASYLUM PLC,5941,Clothing uniforms and laundry,49.99,0.00,49.99
Regeneration and Local Services,Culture Sport and Tourism,054813,Gala Theatre - Technical,Supplies and Services,304403,Equipment and Materials,10-Apr-2019,000006313213132,AMZNMktplace,5999,Other consumables,76.95,0.00,76.95
Regeneration and Local Services,Environmental Services,031222,North Pennines Allen Valleys Landscape Partnership,Supplies and Services,324117,Provisions E324,10-Apr-2019,000006313213146,CO-OP GROUP 700911,5411,Catering costs - provisions,22.24,0.00,22.24
Regeneration and Local Services,Environmental Services,011060,C&G - Hardwick Park Catering,Supplies and Services,324117,Provisions E324,10-Apr-2019,000006313213168,JR HOLLAND FOODSERVICE,5499,Catering costs - provisions,91.16,0.00,91.16
Regeneration and Local Services,Environmental Services,011060,C&G - Hardwick Park Catering,Supplies and Services,324117,Provisions E324,10-Apr-2019,000006313213174,JR HOLLAND FOODSERVICE,5499,Catering costs - provisions,4.70,0.00,4.70
Regeneration and Local Services,Environmental Services,011060,C&G - Hardwick Park Catering,Supplies and Services,324117,Provisions E324,10-Apr-2019,000006313213178,JR HOLLAND FOODSERVICE,5499,Catering costs - provisions,77.35,0.00,77.35
Regeneration and Local Services,Environmental Services,011060,C&G - Hardwick Park Catering,Supplies and Services,324117,Provisions E324,10-Apr-2019,000006313213184,JR HOLLAND FOODSERVICE,5499,Catering costs - provisions,27.57,0.00,27.57
Regeneration and Local Services,Environmental Services,011060,C&G - Hardwick Park Catering,Supplies and Services,324117,Provisions E324,10-Apr-2019,000006313213190,JR HOLLAND FOODSERVICE,5499,Catering costs - provisions,2.35,0.00,2.35
Regeneration and Local Services,Environmental Services,011060,C&G - Hardwick Park Catering,Supplies and Services,324117,Provisions E324,10-Apr-2019,000006313213196,JR HOLLAND FOODSERVICE,5499,Catering costs - provisions,79.14,0.00,79.14
Regeneration and Local Services,Corporate Property and Land,021234,Catering - Locomotion,Supplies and Services,324117,Provisions E324,10-Apr-2019,000006313213218,JR HOLLAND FOODSERVICE,5499,Catering costs - provisions,92.29,0.00,92.29
Regeneration and Local Services,Corporate Property and Land,010525,Catering - Green Lane,Supplies and Services,324117,Provisions E324,10-Apr-2019,000006313213260,JR HOLLAND FOODSERVICE,5499,Catering costs - provisions,81.22,0.00,81.22
Regeneration and Local Services,Corporate Property and Land,010525,Catering - Green Lane,Supplies and Services,324117,Provisions E324,10-Apr-2019,000006313213264,JR HOLLAND FOODSERVICE,5499,Catering costs - provisions,16.85,0.00,16.85
Regeneration and Local Services,Corporate Property and Land,010525,Catering - Green Lane,Supplies and Services,324117,Provisions E324,10-Apr-2019,000006313213268,JR HOLLAND FOODSERVICE,5499,Catering costs - provisions,-25.00,0.00,-25.00
Regeneration and Local Services,Corporate Property and Land,010525,Catering - Green Lane,Supplies and Services,324117,Provisions E324,10-Apr-2019,000006313213272,JR HOLLAND FOODSERVICE,5499,Catering costs - provisions,-0.57,0.00,-0.57
Transformation and Partnerships,Partnerships & Community Engagement Div.,060472,Syrian Vulnerable Persons Scheme,Supplies and Services,328041,Clothing uniforms and laundry E328,10-Apr-2019,000006313213278,J D FASHIONS,5621,Clothing uniforms and laundry,150.00,0.00,150.00
Regeneration and Local Services,Development and Housing,030771,Durham Advance Flexible Fund,Transport,235057,Public Transport,10-Apr-2019,000006313213284,AUCKLAND CASTLE,7523,Staff travelling,0.60,0.00,0.60
Children and Young Peoples Services,Head of Childrens Social Care,085551,Short Break Services-Park Hse Sher,Supplies and Services,324117,Provisions E324,10-Apr-2019,000006313213298,SAINSBURYS 0776,5411,Catering costs - provisions,16.15,0.00,16.15
Regeneration and Local Services,Corporate Property and Land,020076,Bldg Serv - R&M Div 76- Flooring,Supplies and Services,304221,Equipment and Materials,10-Apr-2019,000006313213304,HEADLAM FLOOR COV DIST,5713,Direct materials,429.48,71.58,357.90
Regeneration and Local Services,Corporate Property and Land,020073,Bldg Serv - R&M Div 73 - Gas Servicing,Supplies and Services,372009,Subscriptions E372,10-Apr-2019,000006313213384,CAPITA GAS,8699,Subscriptions 372009,31.18,5.20,25.98
Regeneration and Local Services,Corporate Property and Land,020061,Bldg Serv - R&M Div 61 - Building,Supplies and Services,304221,Equipment and Materials,10-Apr-2019,000006313213388,WWW.VENESTA.CO.UK,5712,Direct materials,38.32,6.39,31.93
Children and Young Peoples Services,Head of Childrens Social Care,085333,Coxhoe Satelite Home,Supplies and Services,328041,Clothing uniforms and laundry E328,10-Apr-2019,000006313213394,Nike Store 00802,5655,Clothing uniforms and laundry,30.00,0.00,30.00
Children and Young Peoples Services,Head of Childrens Social Care,085333,Coxhoe Satelite Home,Supplies and Services,324117,Provisions E324,10-Apr-2019,000006313213398,SAINSBURYS 0776,5411,Catering costs - provisions,23.70,0.00,23.70
Children and Young Peoples Services,Head of Childrens Social Care,085333,Coxhoe Satelite Home,Supplies and Services,324117,Provisions E324,10-Apr-2019,000006313213402,ASDA SUPERSTORE,5411,Catering costs - provisions,188.92,0.00,188.92
Children and Young Peoples Services,Head of Childrens Social Care,085333,Coxhoe Satelite Home,Supplies and Services,304403,Equipment and Materials,10-Apr-2019,000006313213406,CARD FACTORY,5947,Other consumables,6.93,0.00,6.93
Children and Young Peoples Services,Head of Childrens Social Care,085333,Coxhoe Satelite Home,Supplies and Services,304259,Equipment and Materials,10-Apr-2019,000006313213410,WILKO DURHAM 426,5722,Equipment-purchase and rental,6.30,0.00,6.30
Regeneration and Local Services,Corporate Property and Land,030691,Catering - Durham Dales Centre,Supplies and Services,324117,Provisions E324,10-Apr-2019,000006313213434,JR HOLLAND FOODSERVICE,5499,Catering costs - provisions,166.22,0.00,166.22
Regeneration and Local Services,Corporate Property and Land,030691,Catering - Durham Dales Centre,Supplies and Services,324117,Provisions E324,10-Apr-2019,000006313213438,JR HOLLAND FOODSERVICE,5499,Catering costs - provisions,68.93,0.00,68.93
Regeneration and Local Services,Corporate Property and Land,030691,Catering - Durham Dales Centre,Supplies and Services,324117,Provisions E324,10-Apr-2019,000006313213446,JR HOLLAND FOODSERVICE,5499,Catering costs - provisions,15.08,0.00,15.08
Regeneration and Local Services,Corporate Property and Land,030691,Catering - Durham Dales Centre,Supplies and Services,324117,Provisions E324,10-Apr-2019,000006313213452,JR HOLLAND FOODSERVICE,5499,Catering costs - provisions,-5.39,0.00,-5.39
Adult and Health Services,Head of Adults,055643,Hawthorn House LD Respite Unit,Supplies and Services,324117,Provisions E324,10-Apr-2019,000006313213460,JR HOLLAND FOODSERVICE,5499,Catering costs - provisions,16.36,0.00,16.36
Adult and Health Services,Head of Adults,055643,Hawthorn House LD Respite Unit,Supplies and Services,324117,Provisions E324,10-Apr-2019,000006313213466,JR HOLLAND FOODSERVICE,5499,Catering costs - provisions,17.34,0.00,17.34
Adult and Health Services,Head of Adults,055643,Hawthorn House LD Respite Unit,Supplies and Services,324117,Provisions E324,10-Apr-2019,000006313213472,JR HOLLAND FOODSERVICE,5499,Catering costs - provisions,17.38,0.00,17.38
Adult and Health Services,Head of Adults,055643,Hawthorn House LD Respite Unit,Supplies and Services,324117,Provisions E324,10-Apr-2019,000006313213478,JR HOLLAND FOODSERVICE,5499,Catering costs - provisions,26.51,0.00,26.51
Children and Young Peoples Services,Head of Childrens Social Care,085342,9 Cedar Drive Aycliffe,Supplies and Services,304221,Equipment and Materials,10-Apr-2019,000006313213526,SCREWFIX DIRECT,5200,Direct materials,12.99,2.17,10.82
Children and Young Peoples Services,Head of Childrens Social Care,085342,9 Cedar Drive Aycliffe,Premises,145009,Cleaning and Domestic Supplies,10-Apr-2019,000006313213530,MALCOLMS CLEANING,7349,Other cleaning and domestic costs,25.00,0.00,25.00
Children and Young Peoples Services,Head of Early Help Inclusion & Vulnerable Children.,085957,Secure Management,Supplies and Services,304245,Equipment and Materials,10-Apr-2019,000006313213544,WWW.SAFEOPTIONS.CO.UK,5999,Materials,109.50,18.25,91.25
Children and Young Peoples Services,Head of Early Help Inclusion & Vulnerable Children.,085957,Secure Management,Supplies and Services,384999,Miscellaneous Expenses,10-Apr-2019,000006313213546,SCREWFIX DIRECT,5200,Other expenses,59.97,10.00,49.97
Dedicated Schools Grant BG0015,DSG High Needs Block,079040,SENSS-HQ,Supplies and Services,324117,Provisions E324,10-Apr-2019,000006313213554,ASDA GROCERIES ONLINE,5411,Catering costs - provisions,59.70,0.00,59.70
Transformation and Partnerships,Business Support,052986,CYPS - Locality and Operational Support,Supplies and Services,312011,Newspapers books and periodicals E312,10-Apr-2019,000006313213568,Amazon.co.uk MZ4D02VI4,5969,Books-school library,13.90,2.32,11.58
Transformation and Partnerships,Business Support,052986,CYPS - Locality and Operational Support,Supplies and Services,312011,Newspapers books and periodicals E312,10-Apr-2019,000006313213574,Amazon.co.uk MZ7ZP6MR4,5969,Books-school library,143.99,24.00,119.99
Transformation and Partnerships,Business Support,052986,CYPS - Locality and Operational Support,Supplies and Services,328041,Clothing uniforms and laundry E328,10-Apr-2019,000006313213578,WWW.ARGOS.CO.UK,5310,Clothing uniforms and laundry,131.94,0.00,131.94
Regeneration and Local Services,Culture Sport and Tourism,054235,Bishop Auckland Town Hall Cafe,Supplies and Services,324117,Provisions E324,10-Apr-2019,000006313213588,JR HOLLAND FOODSERVICE,5499,Catering costs - provisions,11.27,0.00,11.27
Regeneration and Local Services,Culture Sport and Tourism,054235,Bishop Auckland Town Hall Cafe,Supplies and Services,324117,Provisions E324,10-Apr-2019,000006313213592,JR HOLLAND FOODSERVICE,5499,Catering costs - provisions,43.73,0.00,43.73
Regeneration and Local Services,Culture Sport and Tourism,054235,Bishop Auckland Town Hall Cafe,Supplies and Services,324117,Provisions E324,10-Apr-2019,000006313213598,JR HOLLAND FOODSERVICE,5499,Catering costs - provisions,36.18,0.00,36.18
Regeneration and Local Services,Culture Sport and Tourism,054235,Bishop Auckland Town Hall Cafe,Supplies and Services,324117,Provisions E324,10-Apr-2019,000006313213602,JR HOLLAND FOODSERVICE,5499,Catering costs - provisions,21.51,0.00,21.51
Regeneration and Local Services,Environmental Services,026591,C&G - Hardwick Park,Supplies and Services,304245,Equipment and Materials,10-Apr-2019,000006313213612,AMZNMktplace,5999,Materials,19.70,3.28,16.42
Regeneration and Local Services,Environmental Services,011060,C&G - Hardwick Park Catering,Supplies and Services,304083,Equipment and Materials,10-Apr-2019,000006313213620,WWW.NISBETS.COM,5964,Catering equipment,165.07,27.51,137.56
Regeneration and Local Services,Culture Sport and Tourism,011204,Festival and Events,Supplies and Services,304403,Equipment and Materials,10-Apr-2019,000006313213624,FIRSTAID4LESS.CO.UK,5999,Other consumables,43.68,0.00,43.68
Regeneration and Local Services,Corporate Property and Land,021324,Catering - Meadowfield,Supplies and Services,324117,Provisions E324,10-Apr-2019,000006313213642,JR HOLLAND FOODSERVICE,5499,Catering costs - provisions,27.07,0.00,27.07
Regeneration and Local Services,Corporate Property and Land,021324,Catering - Meadowfield,Supplies and Services,324117,Provisions E324,10-Apr-2019,000006313213646,JR HOLLAND FOODSERVICE,5499,Catering costs - provisions,18.75,0.00,18.75
Regeneration and Local Services,Corporate Property and Land,021324,Catering - Meadowfield,Supplies and Services,324117,Provisions E324,10-Apr-2019,000006313213650,JR HOLLAND FOODSERVICE,5499,Catering costs - provisions,20.97,0.00,20.97
Regeneration and Local Services,Environmental Services,010301,C&G - North Grounds Maintenance,Supplies and Services,304403,Equipment and Materials,10-Apr-2019,000006313213662,TIMPSON LTD,7251,Other consumables,12.00,0.00,12.00
Children and Young Peoples Services,Head of Childrens Social Care,085352,Tow Law CU,Supplies and Services,348037,Subsistence E348,10-Apr-2019,000006313213668,MCDONALDS,5814,Subsistence,3.47,0.00,3.47
Children and Young Peoples Services,Head of Childrens Social Care,085352,Tow Law CU,Supplies and Services,348037,Subsistence E348,10-Apr-2019,000006313213674,MCDONALDS,5814,Subsistence,2.38,0.00,2.38
Children and Young Peoples Services,Head of Childrens Social Care,085352,Tow Law CU,Supplies and Services,304403,Equipment and Materials,10-Apr-2019,000006313213680,NATIONAL RAILWAY M,5947,Other consumables,10.00,0.00,10.00
Regeneration and Local Services,Environmental Services,031200,North Pennines Core,Supplies and Services,304999,Equipment and Materials,10-Apr-2019,000006313213764,WWW.BLINDSBYPOST.CO.UK,5714,Misc equipment tools and materials,8.00,1.33,6.67
Transformation and Partnerships,Business Support,069010,Administration 069010,Supplies and Services,336005,Advertising E336,10-Apr-2019,000006313213830,FACEBK 2BMAKJ65B2,7311,Advertising other than for staff,500.00,0.00,500.00
Adult and Health Services,Head of Adults,055306,Spennymoor Pathways,Supplies and Services,304403,Equipment and Materials,10-Apr-2019,000006313213840,AMZNMKTPLACE AMAZON.CO,5999,Other consumables,46.92,0.00,46.92
